Body Name,Body,Service Area Catergorisation,Service Division Catergorisation,Responsible Unit,Expenses Type,Detailed Expenses Type,Expenses Code,Date,Transaction Number,Amount,Capital / Revenue,Supplier Name,Supplier ID
North East Lincolnshire Council,http://statistics.data.gov.uk/id/local-authority/00FC),Economy And Growth,Regeneration,Clee Hlf Townscape Heritage,Cap Infrastr-Prof Fees,Cap Infrastr-Prof Fees,YC103,03/09/2021,688391,4235.17,CAPITAL,ENGIE SERVICES LTD,133267
North East Lincolnshire Council,http://statistics.data.gov.uk/id/local-authority/00FC),Economy And Growth,Regeneration,Clee Hlf Townscape Heritage,Cap Infrastr-Prof Fees,Cap Infrastr-Prof Fees,YC103,24/09/2021,691542,4235.17,CAPITAL,ENGIE SERVICES LTD,133267
North East Lincolnshire Council,http://statistics.data.gov.uk/id/local-authority/00FC),Economy And Growth,Regeneration,Shiip Scheme,Cap Infrastr-Build Enh Wrk,Cap Infrastr-Build Enh Wrk,YC102,20/09/2021,690839,42971.29,CAPITAL,INTEGRATED UTILITY SERVICES,104162
North East Lincolnshire Council,http://statistics.data.gov.uk/id/local-authority/00FC),Economy And Growth,Regeneration,Shiip Scheme,Cap Infrastr-Build Enh Wrk,Cap Infrastr-Build Enh Wrk,YC102,07/09/2021,688227,379906.4,CAPITAL,C R REYNOLDS (CONSTRUCTION) LTD,103021
North East Lincolnshire Council,http://statistics.data.gov.uk/id/local-authority/00FC),Economy And Growth,Regeneration,Shiip Scheme,Cap Infrastr-Prof Fees,Cap Infrastr-Prof Fees,YC103,02/09/2021,688103,778.32,CAPITAL,RL STEPHENSON,149130
North East Lincolnshire Council,http://statistics.data.gov.uk/id/local-authority/00FC),Economy And Growth,Regeneration,Shiip Scheme,Cap Infrastr-Prof Fees,Cap Infrastr-Prof Fees,YC103,13/09/2021,689267,1284.4,CAPITAL,RL STEPHENSON,149130
North East Lincolnshire Council,http://statistics.data.gov.uk/id/local-authority/00FC),Economy And Growth,Regeneration,Unlocking The Potential,Cap Infrastr-Build Enh Wrk,Cap Infrastr-Build Enh Wrk,YC102,02/09/2021,688298,115078.2,CAPITAL,C R REYNOLDS (CONSTRUCTION) LTD,103021
North East Lincolnshire Council,http://statistics.data.gov.uk/id/local-authority/00FC),Economy And Growth,Regeneration,Unlocking The Potential,Cap Infrastr-Prof Fees,Cap Infrastr-Prof Fees,YC103,16/09/2021,690394,40000,CAPITAL,ENGIE SERVICES LTD,133267
North East Lincolnshire Council,http://statistics.data.gov.uk/id/local-authority/00FC),Economy And Growth,Regeneration,Unlocking The Potential,Cap Infrastr-Build Enh Wrk,Cap Infrastr-Build Enh Wrk,YC102,08/09/2021,687813,5984.49,CAPITAL,J MCCANN & CO LTD,100841
North East Lincolnshire Council,http://statistics.data.gov.uk/id/local-authority/00FC),Economy And Growth,Regeneration,Cleethorpes Public Art,Cap Infrastr-Prof Fees,Cap Infrastr-Prof Fees,YC103,17/09/2021,688181,2072,CAPITAL,ENGIE SERVICES LTD,133267
North East Lincolnshire Council,http://statistics.data.gov.uk/id/local-authority/00FC),Economy And Growth,Regeneration,Cleethorpes Public Art,Cap Infrastr-Prof Fees,Cap Infrastr-Prof Fees,YC103,16/09/2021,690447,3750,CAPITAL,WOLFGANG WEILEDER,142905
North East Lincolnshire Council,http://statistics.data.gov.uk/id/local-authority/00FC),Economy And Growth,Regeneration,Central Clee Regeneration,Cap Infrastr-Build Enh Wrk,Cap Infrastr-Build Enh Wrk,YC102,23/09/2021,684712,1250,CAPITAL,J MCCANN & CO LTD,100841
North East Lincolnshire Council,http://statistics.data.gov.uk/id/local-authority/00FC),Economy And Growth,Regeneration,Cdf - Open For Culture,Cap Land/Build-Prof Fees,Cap Land/Build-Prof Fees,YA103,07/09/2021,688694,1500,CAPITAL,ENGIE SERVICES LTD,133267
North East Lincolnshire Council,http://statistics.data.gov.uk/id/local-authority/00FC),Economy And Growth,Regeneration,Cdf - Open For Culture,Cap Land/Build-Prof Fees,Cap Land/Build-Prof Fees,YA103,09/09/2021,688041,1600,CAPITAL,MASON CLARK ASSOCIATES,100793
North East Lincolnshire Council,http://statistics.data.gov.uk/id/local-authority/00FC),Economy And Growth,Regeneration,Cdf - Open For Culture,Cap Land/Build-Build Enh Wrk,Cap Land/Build-Build Enh Wrk,YA102,24/09/2021,691548,-900,CAPITAL,CANNINGS CONNOLLY SOLICITORS,149629
North East Lincolnshire Council,http://statistics.data.gov.uk/id/local-authority/00FC),Economy And Growth,Regeneration,Cdf - Open For Culture,Cap Land/Build-Build Enh Wrk,Cap Land/Build-Build Enh Wrk,YA102,03/09/2021,688136,300,CAPITAL,CLARK WEIGHTMAN LTD,105391
North East Lincolnshire Council,http://statistics.data.gov.uk/id/local-authority/00FC),Economy And Growth,Regeneration,Cdf - Open For Culture,Cap Land/Build-Build Enh Wrk,Cap Land/Build-Build Enh Wrk,YA102,07/09/2021,688615,505.71,CAPITAL,GRIMSBY MINSTER,121870
North East Lincolnshire Council,http://statistics.data.gov.uk/id/local-authority/00FC),Economy And Growth,Regeneration,Cdf - Open For Culture,Cap Land/Build-Build Enh Wrk,Cap Land/Build-Build Enh Wrk,YA102,21/09/2021,690862,750,CAPITAL,CANNINGS CONNOLLY SOLICITORS,149629
North East Lincolnshire Council,http://statistics.data.gov.uk/id/local-authority/00FC),Economy And Growth,Regeneration,Cdf - Open For Culture,Cap Land/Build-Build Enh Wrk,Cap Land/Build-Build Enh Wrk,YA102,23/09/2021,691462,3575,CAPITAL,ENGIE SERVICES LTD,133267
North East Lincolnshire Council,http://statistics.data.gov.uk/id/local-authority/00FC),Economy And Growth,Regeneration,Cdf - Open For Culture,Cap Veh Plt Eqp-Purchase,Cap Veh Plt Eqp-Purchase,YB101,14/09/2021,688715,4675,CAPITAL,SPRINGBOARD RESEARCH LTD,102452
North East Lincolnshire Council,http://statistics.data.gov.uk/id/local-authority/00FC),Economy And Growth,Regeneration,Cdf - Open For Culture,Cap Veh Plt Eqp-Purchase,Cap Veh Plt Eqp-Purchase,YB101,10/09/2021,689270,-2160,CAPITAL,SPRINGBOARD RESEARCH LTD,102452
North East Lincolnshire Council,http://statistics.data.gov.uk/id/local-authority/00FC),Economy And Growth,Regeneration,Cdf - Open For Culture,Cap Veh Plt Eqp-Purchase,Cap Veh Plt Eqp-Purchase,YB101,07/09/2021,683201,2160,CAPITAL,SPRINGBOARD RESEARCH LTD,102452
North East Lincolnshire Council,http://statistics.data.gov.uk/id/local-authority/00FC),Economy And Growth,Regeneration,Cdf - Open For Culture,Cap Infrastr-Build Enh Wrk,Cap Infrastr-Build Enh Wrk,YC102,01/09/2021,684719,10099.5,CAPITAL,J MCCANN & CO LTD,100841
North East Lincolnshire Council,http://statistics.data.gov.uk/id/local-authority/00FC),Economy And Growth,Regeneration,Future High Street Funds,Cap Land/Build-Prof Fees,Cap Land/Build-Prof Fees,YA103,07/09/2021,688561,23000,CAPITAL,MONTAGU EVANS LLP,145979
North East Lincolnshire Council,http://statistics.data.gov.uk/id/local-authority/00FC),Economy And Growth,Regeneration,Future High Street Funds,Cap Land/Build-Prof Fees,Cap Land/Build-Prof Fees,YA103,13/09/2021,689268,3657.2,CAPITAL,FREETHS LLP,149375
North East Lincolnshire Council,http://statistics.data.gov.uk/id/local-authority/00FC),Economy And Growth,Housing Highways And Transport,Local Transport Plan Schemes,Cap Infrastr-Build Enh Wrk,Cap Infrastr-Build Enh Wrk,YC102,23/09/2021,688425,1600,CAPITAL,TRANPORT INITIATIVES,149382
North East Lincolnshire Council,http://statistics.data.gov.uk/id/local-authority/00FC),Economy And Growth,Housing Highways And Transport,Local Transport Plan Schemes,Cap Infrastr-Build Enh Wrk,Cap Infrastr-Build Enh Wrk,YC102,09/09/2021,689284,3625,CAPITAL,SPECIALIST SURFACING LIMITED,100579
North East Lincolnshire Council,http://statistics.data.gov.uk/id/local-authority/00FC),Economy And Growth,Housing Highways And Transport,Local Transport Plan Schemes,Cap Land/Build-Build Enh Wrk,Cap Land/Build-Build Enh Wrk,YA102,02/09/2021,687860,4034.72,CAPITAL,J MCCANN & CO LTD,100841
North East Lincolnshire Council,http://statistics.data.gov.uk/id/local-authority/00FC),Economy And Growth,Housing Highways And Transport,Local Transport Plan Schemes,Cap Land/Build-Build Enh Wrk,Cap Land/Build-Build Enh Wrk,YA102,02/09/2021,687855,12321.82,CAPITAL,J MCCANN & CO LTD,100841
North East Lincolnshire Council,http://statistics.data.gov.uk/id/local-authority/00FC),Economy And Growth,Housing Highways And Transport,Local Transport Plan Schemes,Cap Land/Build-Build Enh Wrk,Cap Land/Build-Build Enh Wrk,YA102,02/09/2021,687858,16324.18,CAPITAL,J MCCANN & CO LTD,100841
North East Lincolnshire Council,http://statistics.data.gov.uk/id/local-authority/00FC),Economy And Growth,Housing Highways And Transport,Local Transport Plan Schemes,Cap Infrastr-Build Enh Wrk,Cap Infrastr-Build Enh Wrk,YC102,21/09/2021,690720,27424.34,CAPITAL,SPECIALIST SURFACING LIMITED,100579
North East Lincolnshire Council,http://statistics.data.gov.uk/id/local-authority/00FC),Economy And Growth,Housing Highways And Transport,Local Transport Plan Schemes,Cap Infrastr-Build Enh Wrk,Cap Infrastr-Build Enh Wrk,YC102,16/09/2021,690452,850,CAPITAL,ONEWAY TM LIMITED,128602
North East Lincolnshire Council,http://statistics.data.gov.uk/id/local-authority/00FC),Economy And Growth,Housing Highways And Transport,Local Transport Plan Schemes,Cap Infrastr-Build Enh Wrk,Cap Infrastr-Build Enh Wrk,YC102,16/09/2021,690300,1513.4,CAPITAL,CGC ECOLOGY LTD,142378
North East Lincolnshire Council,http://statistics.data.gov.uk/id/local-authority/00FC),Economy And Growth,Housing Highways And Transport,Local Transport Plan Schemes,Cap Infrastr-Build Enh Wrk,Cap Infrastr-Build Enh Wrk,YC102,27/09/2021,691436,937.8,CAPITAL,CGC ECOLOGY LTD,142378
North East Lincolnshire Council,http://statistics.data.gov.uk/id/local-authority/00FC),Economy And Growth,Housing Highways And Transport,Local Transport Plan Schemes,Cap Infrastr-Prof Fees,Cap Infrastr-Prof Fees,YC103,01/09/2021,688050,1000,CAPITAL,DELTA-SIMONS ENVIRONMENTAL CONSULTANTS LTD,122455
North East Lincolnshire Council,http://statistics.data.gov.uk/id/local-authority/00FC),Economy And Growth,Housing Highways And Transport,Local Transport Plan Schemes,Cap Infrastr-Prof Fees,Cap Infrastr-Prof Fees,YC103,22/09/2021,691226,500,CAPITAL,DELTA-SIMONS ENVIRONMENTAL CONSULTANTS LTD,122455
North East Lincolnshire Council,http://statistics.data.gov.uk/id/local-authority/00FC),Economy And Growth,Housing Highways And Transport,Local Transport Plan Schemes,Cap Infrastr-Prof Fees,Cap Infrastr-Prof Fees,YC103,03/09/2021,679392,10178,CAPITAL,PREMIER SURVEYS LIMITED,146256
North East Lincolnshire Council,http://statistics.data.gov.uk/id/local-authority/00FC),Economy And Growth,Housing Highways And Transport,Local Transport Plan Schemes,Cap Infrastr-Build Enh Wrk,Cap Infrastr-Build Enh Wrk,YC102,09/09/2021,689286,22497.22,CAPITAL,SPECIALIST SURFACING LIMITED,100579
North East Lincolnshire Council,http://statistics.data.gov.uk/id/local-authority/00FC),Economy And Growth,Housing Highways And Transport,Local Transport Plan Schemes,Cap Infrastr-Build Enh Wrk,Cap Infrastr-Build Enh Wrk,YC102,09/09/2021,689285,100000,CAPITAL,SPECIALIST SURFACING LIMITED,100579
North East Lincolnshire Council,http://statistics.data.gov.uk/id/local-authority/00FC),Economy And Growth,Housing Highways And Transport,Local Transport Plan Schemes,Cap Infrastr-Build Enh Wrk,Cap Infrastr-Build Enh Wrk,YC102,10/09/2021,689320,20333.2,CAPITAL,ONEWAY TM LIMITED,128602
North East Lincolnshire Council,http://statistics.data.gov.uk/id/local-authority/00FC),Economy And Growth,Housing Highways And Transport,Local Transport Plan Schemes,Cap Infrastr-Build Enh Wrk,Cap Infrastr-Build Enh Wrk,YC102,15/09/2021,690209,22270,CAPITAL,ONEWAY TM LIMITED,128602
North East Lincolnshire Council,http://statistics.data.gov.uk/id/local-authority/00FC),Economy And Growth,Housing Highways And Transport,Local Transport Plan Schemes,Cap Infrastr-Build Enh Wrk,Cap Infrastr-Build Enh Wrk,YC102,27/09/2021,691679,504,CAPITAL,ONEWAY TM LIMITED,128602
North East Lincolnshire Council,http://statistics.data.gov.uk/id/local-authority/00FC),Economy And Growth,Housing Highways And Transport,Local Transport Plan Schemes,Cap Infrastr-Build Enh Wrk,Cap Infrastr-Build Enh Wrk,YC102,21/09/2021,690716,19704,CAPITAL,KIELY BROS LTD,106644
North East Lincolnshire Council,http://statistics.data.gov.uk/id/local-authority/00FC),Economy And Growth,Housing Highways And Transport,Local Transport Plan Schemes,Cap Infrastr-Build Enh Wrk,Cap Infrastr-Build Enh Wrk,YC102,23/09/2021,691468,84048,CAPITAL,KIELY BROS LTD,106644
North East Lincolnshire Council,http://statistics.data.gov.uk/id/local-authority/00FC),Economy And Growth,Housing Highways And Transport,Housing Assist Grants And Loan,Cap Grants To O/Side Sources,Cap Grants To O/Side Sources,YJ101,09/09/2021,688889,3096,CAPITAL,ENGIE SERVICES LTD,133267
North East Lincolnshire Council,http://statistics.data.gov.uk/id/local-authority/00FC),Economy And Growth,Housing Highways And Transport,Housing Assist Grants And Loan,Cap Grants To O/Side Sources,Cap Grants To O/Side Sources,YJ101,28/09/2021,691616,4140.96,CAPITAL,WIL-LEC GROUP LIMITED,121711
North East Lincolnshire Council,http://statistics.data.gov.uk/id/local-authority/00FC),Economy And Growth,Housing Highways And Transport,Housing Assist Grants And Loan,Cap Grants To O/Side Sources,Cap Grants To O/Side Sources,YJ101,02/09/2021,688109,899.67,CAPITAL,ENGIE SERVICES LTD,133267
North East Lincolnshire Council,http://statistics.data.gov.uk/id/local-authority/00FC),Economy And Growth,Housing Highways And Transport,Housing Assist Grants And Loan,Cap Grants To O/Side Sources,Cap Grants To O/Side Sources,YJ101,09/09/2021,688634,2346.91,CAPITAL,ENGIE SERVICES LTD,133267
North East Lincolnshire Council,http://statistics.data.gov.uk/id/local-authority/00FC),Economy And Growth,Housing Highways And Transport,Housing Assist Grants And Loan,Cap Grants To O/Side Sources,Cap Grants To O/Side Sources,YJ101,29/09/2021,692106,383.76,CAPITAL,ENGIE SERVICES LTD,133267
North East Lincolnshire Council,http://statistics.data.gov.uk/id/local-authority/00FC),Economy And Growth,Housing Highways And Transport,Housing Assist Grants And Loan,Cap Grants To O/Side Sources,Cap Grants To O/Side Sources,YJ101,09/09/2021,689283,46020.78,CAPITAL,JC POMFRET CONSTRUCTION LTD,136453
North East Lincolnshire Council,http://statistics.data.gov.uk/id/local-authority/00FC),Economy And Growth,Housing Highways And Transport,Housing Assist Grants And Loan,Cap Grants To O/Side Sources,Cap Grants To O/Side Sources,YJ101,21/09/2021,690729,1433.18,CAPITAL,JC POMFRET CONSTRUCTION LTD,136453
North East Lincolnshire Council,http://statistics.data.gov.uk/id/local-authority/00FC),Economy And Growth,Housing Highways And Transport,Housing Assist Grants And Loan,Cap Grants To O/Side Sources,Cap Grants To O/Side Sources,YJ101,30/09/2021,692325,5919.01,CAPITAL,ENGIE SERVICES LTD,133267
North East Lincolnshire Council,http://statistics.data.gov.uk/id/local-authority/00FC),Economy And Growth,Housing Highways And Transport,Community Hsg Fund,Cap Land/Build-Build Enh Wrk,Cap Land/Build-Build Enh Wrk,YA102,23/09/2021,689475,5000,CAPITAL,EAST MARSH COMMUNITY LIMITED,146797
North East Lincolnshire Council,http://statistics.data.gov.uk/id/local-authority/00FC),Economy And Growth,Housing Highways And Transport,Community Hsg Fund,Cap Land/Build-Build Enh Wrk,Cap Land/Build-Build Enh Wrk,YA102,13/09/2021,689546,34000,CAPITAL,CK PROPERTY,148264
North East Lincolnshire Council,http://statistics.data.gov.uk/id/local-authority/00FC),Economy And Growth,Housing Highways And Transport,Willingham / Peaks Drainage,Cap Land/Build-Prof Fees,Cap Land/Build-Prof Fees,YA103,09/09/2021,689290,6415.49,CAPITAL,WHITEHOUSE CONSTRUCTION CO LTD,148500
North East Lincolnshire Council,http://statistics.data.gov.uk/id/local-authority/00FC),Economy And Growth,Housing Highways And Transport,Willingham / Peaks Drainage,Cap Land/Build-Prof Fees,Cap Land/Build-Prof Fees,YA103,07/09/2021,682357,3000,CAPITAL,SUBSCAN UDS LTD,148635
North East Lincolnshire Council,http://statistics.data.gov.uk/id/local-authority/00FC),Economy And Growth,Housing Highways And Transport,Accelerated Cons Funding,Cap Infrastr-Prof Fees,Cap Infrastr-Prof Fees,YC103,13/09/2021,685497,15729.42,CAPITAL,ENGIE SERVICES LTD,133267
North East Lincolnshire Council,http://statistics.data.gov.uk/id/local-authority/00FC),Economy And Growth,Housing Highways And Transport,Accelerated Cons Funding,Cap Land/Build-Build Enh Wrk,Cap Land/Build-Build Enh Wrk,YA102,02/09/2021,688309,450,CAPITAL,CLANCY CONSULTING,149029
North East Lincolnshire Council,http://statistics.data.gov.uk/id/local-authority/00FC),Economy And Growth,Housing Highways And Transport,Accelerated Cons Funding,Cap Land/Build-Build Enh Wrk,Cap Land/Build-Build Enh Wrk,YA102,02/09/2021,688310,1950,CAPITAL,CLANCY CONSULTING,149029
North East Lincolnshire Council,http://statistics.data.gov.uk/id/local-authority/00FC),Economy And Growth,Housing Highways And Transport,Accelerated Cons Funding,Cap Land/Build-Prof Fees,Cap Land/Build-Prof Fees,YA103,06/09/2021,688188,3000,CAPITAL,ENGIE SERVICES LTD,133267
North East Lincolnshire Council,http://statistics.data.gov.uk/id/local-authority/00FC),Economy And Growth,Housing Highways And Transport,Estate Road No. 2,Cap Infrastr-Build Enh Wrk,Cap Infrastr-Build Enh Wrk,YC102,03/09/2021,688342,19742.65,CAPITAL,EC SURFACING LTD,125951
North East Lincolnshire Council,http://statistics.data.gov.uk/id/local-authority/00FC),Economy And Growth,Housing Highways And Transport,Corporation Rd Bridge Refurb,Cap Land/Build-Build Enh Wrk,Cap Land/Build-Build Enh Wrk,YA102,09/09/2021,689277,15995,CAPITAL,TAZIKER INDUSTRIAL,149045
North East Lincolnshire Council,http://statistics.data.gov.uk/id/local-authority/00FC),Economy And Growth,Housing Highways And Transport,Corporation Rd Bridge Refurb,Cap Infrastr-Build Enh Wrk,Cap Infrastr-Build Enh Wrk,YC102,09/09/2021,688874,5400,CAPITAL,ENGIE SERVICES LTD,133267
North East Lincolnshire Council,http://statistics.data.gov.uk/id/local-authority/00FC),Economy And Growth,Housing Highways And Transport,Corporation Rd Bridge Refurb,Cap Infrastr-Build Enh Wrk,Cap Infrastr-Build Enh Wrk,YC102,14/09/2021,690142,9500,CAPITAL,ENGIE SERVICES LTD,133267
North East Lincolnshire Council,http://statistics.data.gov.uk/id/local-authority/00FC),Economy And Growth,Housing Highways And Transport,Grimsby-Immingham Ext Cycleway,Cap Infrastr-Build Enh Wrk,Cap Infrastr-Build Enh Wrk,YC102,20/09/2021,690445,109583,CAPITAL,ONEWAY TM LIMITED,128602
North East Lincolnshire Council,http://statistics.data.gov.uk/id/local-authority/00FC),Economy And Growth,Housing Highways And Transport,Grimsby-Immingham Ext Cycleway,Cap Infrastr-Build Enh Wrk,Cap Infrastr-Build Enh Wrk,YC102,02/09/2021,688196,7835.4,CAPITAL,SPECIALIST SURFACING LIMITED,100579
North East Lincolnshire Council,http://statistics.data.gov.uk/id/local-authority/00FC),Economy And Growth,Housing Highways And Transport,Grimsby-Immingham Ext Cycleway,Cap Infrastr-Build Enh Wrk,Cap Infrastr-Build Enh Wrk,YC102,14/09/2021,689816,20000,CAPITAL,ENGIE SERVICES LTD,133267
North East Lincolnshire Council,http://statistics.data.gov.uk/id/local-authority/00FC),Economy And Growth,Housing Highways And Transport,Grimsby-Immingham Ext Cycleway,Cap Infrastr-Build Enh Wrk,Cap Infrastr-Build Enh Wrk,YC102,09/09/2021,689029,3000,CAPITAL,ENGIE SERVICES LTD,133267
North East Lincolnshire Council,http://statistics.data.gov.uk/id/local-authority/00FC),Economy And Growth,Housing Highways And Transport,Grimsby-Immingham Ext Cycleway,Cap Infrastr-Build Enh Wrk,Cap Infrastr-Build Enh Wrk,YC102,03/09/2021,687815,1332.45,CAPITAL,J MCCANN & CO LTD,100841
North East Lincolnshire Council,http://statistics.data.gov.uk/id/local-authority/00FC),Economy And Growth,Housing Highways And Transport,Grimsby-Immingham Ext Cycleway,Cap Infrastr-Build Enh Wrk,Cap Infrastr-Build Enh Wrk,YC102,23/09/2021,691467,16352,CAPITAL,SPECIALIST SURFACING LIMITED,100579
North East Lincolnshire Council,http://statistics.data.gov.uk/id/local-authority/00FC),Economy And Growth,Housing Highways And Transport,Grimsby-Immingham Ext Cycleway,Cap Infrastr-Build Enh Wrk,Cap Infrastr-Build Enh Wrk,YC102,20/09/2021,690453,7580,CAPITAL,ONEWAY TM LIMITED,128602
North East Lincolnshire Council,http://statistics.data.gov.uk/id/local-authority/00FC),Economy And Growth,Housing Highways And Transport,Grimsby-Immingham Ext Cycleway,Cap Infrastr-Build Enh Wrk,Cap Infrastr-Build Enh Wrk,YC102,16/09/2021,690431,17317,CAPITAL,ONEWAY TM LIMITED,128602
North East Lincolnshire Council,http://statistics.data.gov.uk/id/local-authority/00FC),Economy And Growth,Housing Highways And Transport,Grimsby-Immingham Ext Cycleway,Cap Infrastr-Build Enh Wrk,Cap Infrastr-Build Enh Wrk,YC102,02/09/2021,687858,2726.86,CAPITAL,J MCCANN & CO LTD,100841
North East Lincolnshire Council,http://statistics.data.gov.uk/id/local-authority/00FC),Resources,Law Governance And Assets,Backlog Maintenance,Cap Land/Build-Build Enh Wrk,Cap Land/Build-Build Enh Wrk,YA102,15/09/2021,689034,1000,CAPITAL,ENGIE SERVICES LTD,133267
North East Lincolnshire Council,http://statistics.data.gov.uk/id/local-authority/00FC),Resources,Law Governance And Assets,Backlog Maintenance,Cap Land/Build-Prof Fees,Cap Land/Build-Prof Fees,YA103,17/09/2021,690670,30000,CAPITAL,ENGIE SERVICES LTD,133267
North East Lincolnshire Council,http://statistics.data.gov.uk/id/local-authority/00FC),Resources,Law Governance And Assets,Backlog Maintenance,Cap Land/Build-Prof Fees,Cap Land/Build-Prof Fees,YA103,29/09/2021,692195,1023,CAPITAL,ENGIE SERVICES LTD,133267
North East Lincolnshire Council,http://statistics.data.gov.uk/id/local-authority/00FC),Resources,Law Governance And Assets,Backlog Maintenance,Cap Land/Build-Build Enh Wrk,Cap Land/Build-Build Enh Wrk,YA102,29/09/2021,692155,2026,CAPITAL,ENGIE SERVICES LTD,133267
North East Lincolnshire Council,http://statistics.data.gov.uk/id/local-authority/00FC),Resources,Law Governance And Assets,Backlog Maintenance,Cap Land/Build-Prof Fees,Cap Land/Build-Prof Fees,YA103,29/09/2021,692169,546.91,CAPITAL,ENGIE SERVICES LTD,133267
North East Lincolnshire Council,http://statistics.data.gov.uk/id/local-authority/00FC),Resources,Law Governance And Assets,Backlog Maintenance,Cap Land/Build-Build Enh Wrk,Cap Land/Build-Build Enh Wrk,YA102,23/09/2021,691253,846.08,CAPITAL,MOBILE MINI UK LTD,105081
North East Lincolnshire Council,http://statistics.data.gov.uk/id/local-authority/00FC),Resources,Law Governance And Assets,Backlog Maintenance,Cap Land/Build-Build Enh Wrk,Cap Land/Build-Build Enh Wrk,YA102,15/09/2021,689021,1000,CAPITAL,ENGIE SERVICES LTD,133267
North East Lincolnshire Council,http://statistics.data.gov.uk/id/local-authority/00FC),Resources,Law Governance And Assets,Backlog Maintenance,Cap Land/Build-Build Enh Wrk,Cap Land/Build-Build Enh Wrk,YA102,02/09/2021,688117,2336,CAPITAL,ENGIE SERVICES LTD,133267
North East Lincolnshire Council,http://statistics.data.gov.uk/id/local-authority/00FC),Resources,Law Governance And Assets,Backlog Maintenance,Cap Land/Build-Build Enh Wrk,Cap Land/Build-Build Enh Wrk,YA102,21/09/2021,690746,25152.93,CAPITAL,E S RUDKIN LTD,100632
North East Lincolnshire Council,http://statistics.data.gov.uk/id/local-authority/00FC),Resources,Law Governance And Assets,Backlog Maintenance,Cap Land/Build-Build Enh Wrk,Cap Land/Build-Build Enh Wrk,YA102,29/09/2021,692159,516,CAPITAL,ENGIE SERVICES LTD,133267
North East Lincolnshire Council,http://statistics.data.gov.uk/id/local-authority/00FC),Resources,Law Governance And Assets,Backlog Maintenance,Cap Land/Build-Prof Fees,Cap Land/Build-Prof Fees,YA103,29/09/2021,692164,371.61,CAPITAL,ENGIE SERVICES LTD,133267
North East Lincolnshire Council,http://statistics.data.gov.uk/id/local-authority/00FC),Resources,Law Governance And Assets,Backlog Maintenance,Cap Land/Build-Prof Fees,Cap Land/Build-Prof Fees,YA103,29/09/2021,692196,431.76,CAPITAL,ENGIE SERVICES LTD,133267
North East Lincolnshire Council,http://statistics.data.gov.uk/id/local-authority/00FC),Resources,Law Governance And Assets,Backlog Maintenance,Cap Land/Build-Build Enh Wrk,Cap Land/Build-Build Enh Wrk,YA102,09/09/2021,689058,3629.62,CAPITAL,ENGIE SERVICES LTD,133267
North East Lincolnshire Council,http://statistics.data.gov.uk/id/local-authority/00FC),Resources,Law Governance And Assets,Backlog Maintenance,Cap Land/Build-Build Enh Wrk,Cap Land/Build-Build Enh Wrk,YA102,29/09/2021,692165,6701.62,CAPITAL,ENGIE SERVICES LTD,133267
North East Lincolnshire Council,http://statistics.data.gov.uk/id/local-authority/00FC),Resources,Law Governance And Assets,Backlog Maintenance,Cap Land/Build-Build Enh Wrk,Cap Land/Build-Build Enh Wrk,YA102,29/09/2021,692160,2975,CAPITAL,ENGIE SERVICES LTD,133267
North East Lincolnshire Council,http://statistics.data.gov.uk/id/local-authority/00FC),Resources,Law Governance And Assets,Backlog Maintenance,Cap Land/Build-Build Enh Wrk,Cap Land/Build-Build Enh Wrk,YA102,15/09/2021,689035,1000,CAPITAL,ENGIE SERVICES LTD,133267
North East Lincolnshire Council,http://statistics.data.gov.uk/id/local-authority/00FC),Resources,Law Governance And Assets,Backlog Maintenance,Cap Land/Build-Build Enh Wrk,Cap Land/Build-Build Enh Wrk,YA102,29/09/2021,692152,1000,CAPITAL,ENGIE SERVICES LTD,133267
North East Lincolnshire Council,http://statistics.data.gov.uk/id/local-authority/00FC),Resources,Law Governance And Assets,Backlog Maintenance,Cap Land/Build-Prof Fees,Cap Land/Build-Prof Fees,YA103,29/09/2021,692125,1502.03,CAPITAL,ENGIE SERVICES LTD,133267
North East Lincolnshire Council,http://statistics.data.gov.uk/id/local-authority/00FC),Resources,Law Governance And Assets,Backlog Maintenance,Cap Land/Build-Prof Fees,Cap Land/Build-Prof Fees,YA103,29/09/2021,692167,500,CAPITAL,ENGIE SERVICES LTD,133267
North East Lincolnshire Council,http://statistics.data.gov.uk/id/local-authority/00FC),Resources,Law Governance And Assets,Backlog Maintenance,Cap Land/Build-Prof Fees,Cap Land/Build-Prof Fees,YA103,15/09/2021,689036,1000,CAPITAL,ENGIE SERVICES LTD,133267
North East Lincolnshire Council,http://statistics.data.gov.uk/id/local-authority/00FC),Resources,Law Governance And Assets,Backlog Maintenance,Cap Land/Build-Build Enh Wrk,Cap Land/Build-Build Enh Wrk,YA102,29/09/2021,692187,1962.19,CAPITAL,ENGIE SERVICES LTD,133267
North East Lincolnshire Council,http://statistics.data.gov.uk/id/local-authority/00FC),Resources,Law Governance And Assets,Backlog Maintenance,Cap Land/Build-Build Enh Wrk,Cap Land/Build-Build Enh Wrk,YA102,20/09/2021,690826,2354.45,CAPITAL,ENGIE SERVICES LTD,133267
North East Lincolnshire Council,http://statistics.data.gov.uk/id/local-authority/00FC),Resources,Law Governance And Assets,Backlog Maintenance,Cap Land/Build-Prof Fees,Cap Land/Build-Prof Fees,YA103,21/09/2021,690741,410,CAPITAL,ENGIE SERVICES LTD,133267
North East Lincolnshire Council,http://statistics.data.gov.uk/id/local-authority/00FC),Resources,Law Governance And Assets,Backlog Maintenance,Cap Land/Build-Build Enh Wrk,Cap Land/Build-Build Enh Wrk,YA102,15/09/2021,689230,2465.5,CAPITAL,ENGIE SERVICES LTD,133267
North East Lincolnshire Council,http://statistics.data.gov.uk/id/local-authority/00FC),Resources,Law Governance And Assets,Backlog Maintenance,Cap Land/Build-Build Enh Wrk,Cap Land/Build-Build Enh Wrk,YA102,29/09/2021,692189,7656,CAPITAL,ENGIE SERVICES LTD,133267
North East Lincolnshire Council,http://statistics.data.gov.uk/id/local-authority/00FC),Resources,Law Governance And Assets,Backlog Maintenance,Cap Land/Build-Prof Fees,Cap Land/Build-Prof Fees,YA103,29/09/2021,692189,995.28,CAPITAL,ENGIE SERVICES LTD,133267
North East Lincolnshire Council,http://statistics.data.gov.uk/id/local-authority/00FC),Resources,Law Governance And Assets,Playing Pitch Reprovision,Cap Land/Build-Build Enh Wrk,Cap Land/Build-Build Enh Wrk,YA102,02/09/2021,688118,1414.27,CAPITAL,ENGIE SERVICES LTD,133267
North East Lincolnshire Council,http://statistics.data.gov.uk/id/local-authority/00FC),Resources,Law Governance And Assets,Playing Pitch Reprovision,Cap Land/Build-Prof Fees,Cap Land/Build-Prof Fees,YA103,15/09/2021,689228,10000,CAPITAL,ENGIE SERVICES LTD,133267
North East Lincolnshire Council,http://statistics.data.gov.uk/id/local-authority/00FC),Resources,Law Governance And Assets,Playing Pitch Reprovision,Cap Land/Build-Build Enh Wrk,Cap Land/Build-Build Enh Wrk,YA102,29/09/2021,692149,4100.25,CAPITAL,ENGIE SERVICES LTD,133267
North East Lincolnshire Council,http://statistics.data.gov.uk/id/local-authority/00FC),Resources,Law Governance And Assets,Playing Pitch Reprovision,Cap Land/Build-Build Enh Wrk,Cap Land/Build-Build Enh Wrk,YA102,02/09/2021,688119,3627.8,CAPITAL,ENGIE SERVICES LTD,133267
North East Lincolnshire Council,http://statistics.data.gov.uk/id/local-authority/00FC),Resources,Law Governance And Assets,Heritage Assets At Risk,Cap Land/Build-Prof Fees,Cap Land/Build-Prof Fees,YA103,29/09/2021,692198,2000,CAPITAL,ENGIE SERVICES LTD,133267
North East Lincolnshire Council,http://statistics.data.gov.uk/id/local-authority/00FC),Resources,Law Governance And Assets,Gy Lc Fire Segregation Works,Cap Land/Build-Build Enh Wrk,Cap Land/Build-Build Enh Wrk,YA102,28/09/2021,692082,15000,CAPITAL,LINCS INSPIRE LTD,120610
North East Lincolnshire Council,http://statistics.data.gov.uk/id/local-authority/00FC),Resources,Law Governance And Assets,Poplar Road Bus Unit Expansion,Cap Land/Build-Prof Fees,Cap Land/Build-Prof Fees,YA103,21/09/2021,690663,2000,CAPITAL,ENGIE SERVICES LTD,133267
North East Lincolnshire Council,http://statistics.data.gov.uk/id/local-authority/00FC),Resources,Law Governance And Assets,Business Centre Improvements,Cap Land/Build-Prof Fees,Cap Land/Build-Prof Fees,YA103,21/09/2021,690664,2000,CAPITAL,ENGIE SERVICES LTD,133267
North East Lincolnshire Council,http://statistics.data.gov.uk/id/local-authority/00FC),Resources,Policy Strategy And Resources,Ict Refresh,Cap Land/Build-Build Enh Wrk,Cap Land/Build-Build Enh Wrk,YA102,13/09/2021,689525,2300,CAPITAL,TOTAL COMPUTER NETWORKS LTD,141310
North East Lincolnshire Council,http://statistics.data.gov.uk/id/local-authority/00FC),Resources,Policy Strategy And Resources,Ict Refresh,Cap Land/Build-Build Enh Wrk,Cap Land/Build-Build Enh Wrk,YA102,20/09/2021,690797,28750,CAPITAL,TOTAL COMPUTER NETWORKS LTD,141310
North East Lincolnshire Council,http://statistics.data.gov.uk/id/local-authority/00FC),Resources,Policy Strategy And Resources,Ict Refresh,Cap Land/Build-Build Enh Wrk,Cap Land/Build-Build Enh Wrk,YA102,02/09/2021,688020,415,CAPITAL,TOTAL COMPUTER NETWORKS LTD,141310
North East Lincolnshire Council,http://statistics.data.gov.uk/id/local-authority/00FC),Resources,Policy Strategy And Resources,Ict Refresh,Cap Land/Build-Build Enh Wrk,Cap Land/Build-Build Enh Wrk,YA102,15/09/2021,690341,420,CAPITAL,TOTAL COMPUTER NETWORKS LTD,141310
North East Lincolnshire Council,http://statistics.data.gov.uk/id/local-authority/00FC),Resources,Policy Strategy And Resources,Ict Refresh,Cap Land/Build-Build Enh Wrk,Cap Land/Build-Build Enh Wrk,YA102,02/09/2021,688313,275,CAPITAL,TOTAL COMPUTER NETWORKS LTD,141310
North East Lincolnshire Council,http://statistics.data.gov.uk/id/local-authority/00FC),Resources,Policy Strategy And Resources,Ict Refresh,Cap Land/Build-Build Enh Wrk,Cap Land/Build-Build Enh Wrk,YA102,15/09/2021,689520,275,CAPITAL,TOTAL COMPUTER NETWORKS LTD,141310
North East Lincolnshire Council,http://statistics.data.gov.uk/id/local-authority/00FC),Resources,Policy Strategy And Resources,Ict Refresh,Cap Land/Build-Build Enh Wrk,Cap Land/Build-Build Enh Wrk,YA102,30/09/2021,692307,26070,CAPITAL,TOTAL COMPUTER NETWORKS LTD,141310
North East Lincolnshire Council,http://statistics.data.gov.uk/id/local-authority/00FC),Resources,Policy Strategy And Resources,Ict Refresh,Cap Intangible Assets,Cap Intangible Assets,YH101,13/09/2021,689699,12480,CAPITAL,CIRESON SOFTWARE UK LTD,149002
North East Lincolnshire Council,http://statistics.data.gov.uk/id/local-authority/00FC),Resources,Policy Strategy And Resources,Ict Refresh,Cap Intangible Assets,Cap Intangible Assets,YH101,30/09/2021,692297,1872,CAPITAL,CIRESON SOFTWARE UK LTD,149002
North East Lincolnshire Council,http://statistics.data.gov.uk/id/local-authority/00FC),Resources,Policy Strategy And Resources,System Investment,Cap Veh Plt Eqp-Purchase,Cap Veh Plt Eqp-Purchase,YB101,02/09/2021,687821,544.53,CAPITAL,MIDLAND SOFTWARE LTD,102633
North East Lincolnshire Council,http://statistics.data.gov.uk/id/local-authority/00FC),Resources,Policy Strategy And Resources,System Investment,Cap Veh Plt Eqp-Purchase,Cap Veh Plt Eqp-Purchase,YB101,23/09/2021,691297,293.75,CAPITAL,MIDLAND SOFTWARE LTD,102633
North East Lincolnshire Council,http://statistics.data.gov.uk/id/local-authority/00FC),Resources,Policy Strategy And Resources,System Investment,Cap Infrastr-Prof Fees,Cap Infrastr-Prof Fees,YC103,28/09/2021,691651,-13485,CAPITAL,NORTH LINCOLNSHIRE COUNCIL,101186
North East Lincolnshire Council,http://statistics.data.gov.uk/id/local-authority/00FC),Resources,Policy Strategy And Resources,System Investment,Cap Infrastr-Prof Fees,Cap Infrastr-Prof Fees,YC103,28/09/2021,691651,9019,CAPITAL,NORTH LINCOLNSHIRE COUNCIL,101186
North East Lincolnshire Council,http://statistics.data.gov.uk/id/local-authority/00FC),Resources,Policy Strategy And Resources,System Investment,Cap Infrastr-Prof Fees,Cap Infrastr-Prof Fees,YC103,28/09/2021,691651,-9022,CAPITAL,NORTH LINCOLNSHIRE COUNCIL,101186
North East Lincolnshire Council,http://statistics.data.gov.uk/id/local-authority/00FC),Environment,Environment,Fleet Replacement Programme,Cap Veh Plt Eqp-Purchase,Cap Veh Plt Eqp-Purchase,YB101,14/09/2021,688169,10846,CAPITAL,SCARAB SWEEPERS LTD,148812
North East Lincolnshire Council,http://statistics.data.gov.uk/id/local-authority/00FC),Environment,Environment,Fleet Replacement Programme,Cap Veh Plt Eqp-Purchase,Cap Veh Plt Eqp-Purchase,YB101,06/09/2021,688423,32275.53,CAPITAL,JCT 600 VOLKSWAGEN,149655
North East Lincolnshire Council,http://statistics.data.gov.uk/id/local-authority/00FC),Environment,Environment,Smart Energy For Business,Cap Land/Build-Build Enh Wrk,Cap Land/Build-Build Enh Wrk,YA102,14/09/2021,689622,4938,CAPITAL,H H ADKINS (CONTRACTORS) LTD,149621
North East Lincolnshire Council,http://statistics.data.gov.uk/id/local-authority/00FC),Environment,Environment,Smart Energy For Business,Cap Land/Build-Build Enh Wrk,Cap Land/Build-Build Enh Wrk,YA102,02/09/2021,688088,4856.54,CAPITAL,OAK MEDICAL SERVICES LTD,149488
North East Lincolnshire Council,http://statistics.data.gov.uk/id/local-authority/00FC),Environment,Environment,Smart Energy For Business,Cap Land/Build-Build Enh Wrk,Cap Land/Build-Build Enh Wrk,YA102,28/09/2021,691632,3300,CAPITAL,GRIMSBY CENTRAL HALL TRUST,100882
North East Lincolnshire Council,http://statistics.data.gov.uk/id/local-authority/00FC),Environment,Environment,Smart Energy For Business,Cap Land/Build-Build Enh Wrk,Cap Land/Build-Build Enh Wrk,YA102,14/09/2021,689700,19541.51,CAPITAL,MERLIN POLYURETHANE LTD,147472
North East Lincolnshire Council,http://statistics.data.gov.uk/id/local-authority/00FC),Environment,Environment,Smart Energy For Business,Cap Land/Build-Build Enh Wrk,Cap Land/Build-Build Enh Wrk,YA102,22/09/2021,691271,20019.02,CAPITAL,WILTON COBLEY LTD,127572
North East Lincolnshire Council,http://statistics.data.gov.uk/id/local-authority/00FC),Environment,Environment,Smart Energy For Business,Cap Land/Build-Build Enh Wrk,Cap Land/Build-Build Enh Wrk,YA102,16/09/2021,690348,6125,CAPITAL,WILTON COBLEY LTD,127572
North East Lincolnshire Council,http://statistics.data.gov.uk/id/local-authority/00FC),Environment,Environment,Smart Energy For Business,Cap Land/Build-Build Enh Wrk,Cap Land/Build-Build Enh Wrk,YA102,14/09/2021,689630,6445,CAPITAL,CUBE 3 CONSTRUCTION LTD,104426
North East Lincolnshire Council,http://statistics.data.gov.uk/id/local-authority/00FC),Environment,Environment,Smart Energy For Business,Cap Land/Build-Build Enh Wrk,Cap Land/Build-Build Enh Wrk,YA102,21/09/2021,690942,6100,CAPITAL,CRYSTAL NEWS LIMITED,149591
North East Lincolnshire Council,http://statistics.data.gov.uk/id/local-authority/00FC),Environment,Environment,Smart Energy For Business,Cap Land/Build-Build Enh Wrk,Cap Land/Build-Build Enh Wrk,YA102,16/09/2021,690144,2801.44,CAPITAL,KAYGEE ENGINEERING LTD,149177
North East Lincolnshire Council,http://statistics.data.gov.uk/id/local-authority/00FC),Environment,Environment,Smart Energy For Business,Cap Land/Build-Build Enh Wrk,Cap Land/Build-Build Enh Wrk,YA102,21/09/2021,690928,7370.04,CAPITAL,TES TEX NDT LIMITED,149709
North East Lincolnshire Council,http://statistics.data.gov.uk/id/local-authority/00FC),Environment,Environment,Smart Energy For Business,Cap Land/Build-Build Enh Wrk,Cap Land/Build-Build Enh Wrk,YA102,02/09/2021,688087,3081.08,CAPITAL,BUTLERBUS TECHNIK LTD,149197
North East Lincolnshire Council,http://statistics.data.gov.uk/id/local-authority/00FC),Environment,Environment,Smart Energy For Business,Cap Land/Build-Build Enh Wrk,Cap Land/Build-Build Enh Wrk,YA102,17/09/2021,690667,2750,CAPITAL,GIFTSONLINE4U,148888
North East Lincolnshire Council,http://statistics.data.gov.uk/id/local-authority/00FC),Environment,Environment,Smart Energy For Business,Cap Land/Build-Build Enh Wrk,Cap Land/Build-Build Enh Wrk,YA102,08/09/2021,688296,500,CAPITAL,MRS AMANDA BRADBURY,149668
North East Lincolnshire Council,http://statistics.data.gov.uk/id/local-authority/00FC),Environment,Environment,Smart Energy For Business,Cap Land/Build-Build Enh Wrk,Cap Land/Build-Build Enh Wrk,YA102,14/09/2021,689494,500,CAPITAL,SYKES VIDEO LINKS LTD,149737
North East Lincolnshire Council,http://statistics.data.gov.uk/id/local-authority/00FC),Environment,Environment,Smart Energy For Business,Cap Land/Build-Build Enh Wrk,Cap Land/Build-Build Enh Wrk,YA102,14/09/2021,689493,500,CAPITAL,GRIMSBY COMMUNITY ENERGY LTD,149739
North East Lincolnshire Council,http://statistics.data.gov.uk/id/local-authority/00FC),Environment,Environment,Smart Energy For Business,Cap Land/Build-Build Enh Wrk,Cap Land/Build-Build Enh Wrk,YA102,21/09/2021,690927,500,CAPITAL,KINGSWAY KIOSKS,106458
North East Lincolnshire Council,http://statistics.data.gov.uk/id/local-authority/00FC),Environment,Environment,Smart Energy For Business,Cap Land/Build-Build Enh Wrk,Cap Land/Build-Build Enh Wrk,YA102,22/09/2021,691207,500,CAPITAL,G B FIELD SERVICES LTD,149735
North East Lincolnshire Council,http://statistics.data.gov.uk/id/local-authority/00FC),Environment,Environment,Smart Energy For Business,Cap Land/Build-Build Enh Wrk,Cap Land/Build-Build Enh Wrk,YA102,22/09/2021,691208,500,CAPITAL,HAAGENSEN WARDROBES AND KITCHENS LTD,127029
North East Lincolnshire Council,http://statistics.data.gov.uk/id/local-authority/00FC),Environment,Environment,Litter Bin Upgrade Plan,Cap Land/Build-Build Enh Wrk,Cap Land/Build-Build Enh Wrk,YA102,10/09/2021,688880,14180,CAPITAL,PEL UK RENTALS LTD,143683
North East Lincolnshire Council,http://statistics.data.gov.uk/id/local-authority/00FC),Environment,Environment,Enhancement Bereavement Serv,Cap Land/Build-Build Enh Wrk,Cap Land/Build-Build Enh Wrk,YA102,09/09/2021,689246,400,CAPITAL,A R TWIGG & SON LTD,109909
North East Lincolnshire Council,http://statistics.data.gov.uk/id/local-authority/00FC),Environment,Environment,Enhancement Bereavement Serv,Cap Land/Build-Build Enh Wrk,Cap Land/Build-Build Enh Wrk,YA102,09/09/2021,689092,2000,CAPITAL,ENGIE SERVICES LTD,133267
North East Lincolnshire Council,http://statistics.data.gov.uk/id/local-authority/00FC),Environment,Environment,Enhancement Bereavement Serv,Cap Land/Build-Build Enh Wrk,Cap Land/Build-Build Enh Wrk,YA102,30/09/2021,692345,2000,CAPITAL,ENGIE SERVICES LTD,133267
North East Lincolnshire Council,http://statistics.data.gov.uk/id/local-authority/00FC),Environment,Environment,Enhancement Bereavement Serv,Cap Land/Build-Build Enh Wrk,Cap Land/Build-Build Enh Wrk,YA102,07/09/2021,688620,1000,CAPITAL,ENGIE SERVICES LTD,133267
North East Lincolnshire Council,http://statistics.data.gov.uk/id/local-authority/00FC),Environment,Environment,Depot Rationalisation,Cap Land/Build-Purchase,Cap Land/Build-Purchase,YA101,23/09/2021,691292,7500,CAPITAL,ENGIE SERVICES LTD,133267
North East Lincolnshire Council,http://statistics.data.gov.uk/id/local-authority/00FC),Environment,Environment,Depot Rationalisation,Cap Land/Build-Purchase,Cap Land/Build-Purchase,YA101,29/09/2021,691710,591.67,CAPITAL,WHITE ROSE BUILDINGS LTD,149511
North East Lincolnshire Council,http://statistics.data.gov.uk/id/local-authority/00FC),Environment,Environment,Depot Rationalisation,Cap Land/Build-Purchase,Cap Land/Build-Purchase,YA101,24/09/2021,690465,364.85,CAPITAL,CGC ECOLOGY LTD,142378
North East Lincolnshire Council,http://statistics.data.gov.uk/id/local-authority/00FC),Environment,Environment,Depot Rationalisation,Cap Land/Build-Purchase,Cap Land/Build-Purchase,YA101,24/09/2021,690465,464.85,CAPITAL,CGC ECOLOGY LTD,142378
North East Lincolnshire Council,http://statistics.data.gov.uk/id/local-authority/00FC),Environment,Environment,Resort Management,Cap Land/Build-Build Enh Wrk,Cap Land/Build-Build Enh Wrk,YA102,07/09/2021,688870,9797.97,CAPITAL,FABRIQUE SPECIALIST GLAZING SYSTEMS LTD,101314
North East Lincolnshire Council,http://statistics.data.gov.uk/id/local-authority/00FC),Environment,Environment,Resort Management,Cap Land/Build-Build Enh Wrk,Cap Land/Build-Build Enh Wrk,YA102,24/09/2021,689680,556.88,CAPITAL,MOBILE MINI UK LTD,105081
North East Lincolnshire Council,http://statistics.data.gov.uk/id/local-authority/00FC),Environment,Environment,Public Sector Decarbonisation,Cap Land/Build-Build Enh Wrk,Cap Land/Build-Build Enh Wrk,YA102,09/09/2021,689279,3094.5,CAPITAL,TOPCON BUILDING LTD,144162
North East Lincolnshire Council,http://statistics.data.gov.uk/id/local-authority/00FC),Environment,Environment,Public Sector Decarbonisation,Cap Land/Build-Build Enh Wrk,Cap Land/Build-Build Enh Wrk,YA102,09/09/2021,689278,116031.57,CAPITAL,TOPCON BUILDING LTD,144162
North East Lincolnshire Council,http://statistics.data.gov.uk/id/local-authority/00FC),Environment,Environment,Public Sector Decarbonisation,Cap Land/Build-Build Enh Wrk,Cap Land/Build-Build Enh Wrk,YA102,28/09/2021,691469,47969.3,CAPITAL,E S RUDKIN LTD,100632
North East Lincolnshire Council,http://statistics.data.gov.uk/id/local-authority/00FC),Environment,Environment,Public Sector Decarbonisation,Cap Land/Build-Build Enh Wrk,Cap Land/Build-Build Enh Wrk,YA102,30/09/2021,692218,59157.51,CAPITAL,TUCKER AND TUNSTALLS LTD,107393
North East Lincolnshire Council,http://statistics.data.gov.uk/id/local-authority/00FC),Environment,Environment,Public Sector Decarbonisation,Cap Land/Build-Build Enh Wrk,Cap Land/Build-Build Enh Wrk,YA102,30/09/2021,692220,3609.5,CAPITAL,TUCKER AND TUNSTALLS LTD,107393
North East Lincolnshire Council,http://statistics.data.gov.uk/id/local-authority/00FC),Environment,Environment,Public Sector Decarbonisation,Cap Land/Build-Build Enh Wrk,Cap Land/Build-Build Enh Wrk,YA102,09/09/2021,689281,1128.08,CAPITAL,TOPCON BUILDING LTD,144162
North East Lincolnshire Council,http://statistics.data.gov.uk/id/local-authority/00FC),Environment,Environment,Public Sector Decarbonisation,Cap Land/Build-Build Enh Wrk,Cap Land/Build-Build Enh Wrk,YA102,09/09/2021,689280,26350.35,CAPITAL,TOPCON BUILDING LTD,144162
North East Lincolnshire Council,http://statistics.data.gov.uk/id/local-authority/00FC),Environment,Environment,Public Sector Decarbonisation,Cap Land/Build-Prof Fees,Cap Land/Build-Prof Fees,YA103,23/09/2021,691301,2000,CAPITAL,ENGIE SERVICES LTD,133267
North East Lincolnshire Council,http://statistics.data.gov.uk/id/local-authority/00FC),Adult Services,Adult Services,Hps-Disabled Fac. Grants,Cap Grants To O/Side Sources,Cap Grants To O/Side Sources,YJ101,29/09/2021,692212,21832.17,CAPITAL,ASKERTON HOMES LTD,145694
North East Lincolnshire Council,http://statistics.data.gov.uk/id/local-authority/00FC),Adult Services,Adult Services,Hps-Disabled Fac. Grants,Cap Grants To O/Side Sources,Cap Grants To O/Side Sources,YJ101,17/09/2021,689229,8406.46,CAPITAL,ENGIE SERVICES LTD,133267
North East Lincolnshire Council,http://statistics.data.gov.uk/id/local-authority/00FC),Adult Services,Adult Services,Hps-Disabled Fac. Grants,Cap Grants To O/Side Sources,Cap Grants To O/Side Sources,YJ101,14/09/2021,689527,8783.61,CAPITAL,VIC HANSEN BUILDING & JOINERY LTD,103981
North East Lincolnshire Council,http://statistics.data.gov.uk/id/local-authority/00FC),Adult Services,Adult Services,Hps-Disabled Fac. Grants,Cap Grants To O/Side Sources,Cap Grants To O/Side Sources,YJ101,21/09/2021,690296,20777.9,CAPITAL,OBAM LIFT SERVICES LTD,112666
North East Lincolnshire Council,http://statistics.data.gov.uk/id/local-authority/00FC),Adult Services,Adult Services,Hps-Disabled Fac. Grants,Cap Grants To O/Side Sources,Cap Grants To O/Side Sources,YJ101,24/09/2021,691547,1830,CAPITAL,OBAM LIFT SERVICES LTD,112666
North East Lincolnshire Council,http://statistics.data.gov.uk/id/local-authority/00FC),Adult Services,Adult Services,Hps-Disabled Fac. Grants,Cap Grants To O/Side Sources,Cap Grants To O/Side Sources,YJ101,15/09/2021,688949,11513.53,CAPITAL,R G CARTER LINCOLN LTD,146557
North East Lincolnshire Council,http://statistics.data.gov.uk/id/local-authority/00FC),Adult Services,Adult Services,Hps-Disabled Fac. Grants,Cap Grants To O/Side Sources,Cap Grants To O/Side Sources,YJ101,27/09/2021,691544,2060,CAPITAL,OBAM LIFT SERVICES LTD,112666
North East Lincolnshire Council,http://statistics.data.gov.uk/id/local-authority/00FC),Adult Services,Adult Services,Hps-Disabled Fac. Grants,Cap Grants To O/Side Sources,Cap Grants To O/Side Sources,YJ101,15/09/2021,688946,6604.55,CAPITAL,DOLPHIN MOBILITY EAST MIDLANDS LTD,101317
North East Lincolnshire Council,http://statistics.data.gov.uk/id/local-authority/00FC),Adult Services,Adult Services,Hps-Disabled Fac. Grants,Cap Grants To O/Side Sources,Cap Grants To O/Side Sources,YJ101,16/09/2021,690385,3940,CAPITAL,OBAM LIFT SERVICES LTD,112666
North East Lincolnshire Council,http://statistics.data.gov.uk/id/local-authority/00FC),Adult Services,Adult Services,Hps-Disabled Fac. Grants,Cap Grants To O/Side Sources,Cap Grants To O/Side Sources,YJ101,17/09/2021,690384,10598.49,CAPITAL,R G CARTER LINCOLN LTD,146557
North East Lincolnshire Council,http://statistics.data.gov.uk/id/local-authority/00FC),Adult Services,Adult Services,Hps-Disabled Fac. Grants,Cap Grants To O/Side Sources,Cap Grants To O/Side Sources,YJ101,02/09/2021,688109,34358.08,CAPITAL,ENGIE SERVICES LTD,133267
North East Lincolnshire Council,http://statistics.data.gov.uk/id/local-authority/00FC),Adult Services,Adult Services,Hps-Disabled Fac. Grants,Cap Grants To O/Side Sources,Cap Grants To O/Side Sources,YJ101,09/09/2021,688634,23490.97,CAPITAL,ENGIE SERVICES LTD,133267
North East Lincolnshire Council,http://statistics.data.gov.uk/id/local-authority/00FC),Adult Services,Adult Services,Hps-Disabled Fac. Grants,Cap Grants To O/Side Sources,Cap Grants To O/Side Sources,YJ101,29/09/2021,692106,7694.73,CAPITAL,ENGIE SERVICES LTD,133267
North East Lincolnshire Council,http://statistics.data.gov.uk/id/local-authority/00FC),Adult Services,Adult Services,Hps-Disabled Fac. Grants,Cap Grants To O/Side Sources,Cap Grants To O/Side Sources,YJ101,28/09/2021,691584,2675,CAPITAL,OBAM LIFT SERVICES LTD,112666
North East Lincolnshire Council,http://statistics.data.gov.uk/id/local-authority/00FC),Adult Services,Adult Services,Hps-Disabled Fac. Grants,Cap Grants To O/Side Sources,Cap Grants To O/Side Sources,YJ101,27/09/2021,691515,8250.34,CAPITAL,ABLE 4 ENTERPRISE LTD,120159
North East Lincolnshire Council,http://statistics.data.gov.uk/id/local-authority/00FC),Adult Services,Adult Services,Hps-Disabled Fac. Grants,Cap Grants To O/Side Sources,Cap Grants To O/Side Sources,YJ101,15/09/2021,688944,8950.24,CAPITAL,R G CARTER LINCOLN LTD,146557
North East Lincolnshire Council,http://statistics.data.gov.uk/id/local-authority/00FC),Adult Services,Adult Services,Hps-Disabled Fac. Grants,Cap Grants To O/Side Sources,Cap Grants To O/Side Sources,YJ101,17/09/2021,690207,8204.47,CAPITAL,JC POMFRET CONSTRUCTION LTD,136453
North East Lincolnshire Council,http://statistics.data.gov.uk/id/local-authority/00FC),Adult Services,Adult Services,Hps-Disabled Fac. Grants,Cap Grants To O/Side Sources,Cap Grants To O/Side Sources,YJ101,29/09/2021,691596,9368.16,CAPITAL,TSPRO LTD,146603
North East Lincolnshire Council,http://statistics.data.gov.uk/id/local-authority/00FC),Adult Services,Adult Services,Hps-Disabled Fac. Grants,Cap Grants To O/Side Sources,Cap Grants To O/Side Sources,YJ101,23/09/2021,691383,7772.48,CAPITAL,ASKERTON HOMES LTD,145694
North East Lincolnshire Council,http://statistics.data.gov.uk/id/local-authority/00FC),Adult Services,Adult Services,Hps-Disabled Fac. Grants,Cap Grants To O/Side Sources,Cap Grants To O/Side Sources,YJ101,29/09/2021,692130,4733,CAPITAL,DOLPHIN MOBILITY EAST MIDLANDS LTD,101317
North East Lincolnshire Council,http://statistics.data.gov.uk/id/local-authority/00FC),Adult Services,Adult Services,Hps-Disabled Fac. Grants,Cap Grants To O/Side Sources,Cap Grants To O/Side Sources,YJ101,23/09/2021,691257,16008.7,CAPITAL,TSPRO LTD,146603
North East Lincolnshire Council,http://statistics.data.gov.uk/id/local-authority/00FC),Adult Services,Adult Services,Hps-Disabled Fac. Grants,Cap Grants To O/Side Sources,Cap Grants To O/Side Sources,YJ101,09/09/2021,689248,2150,CAPITAL,ENGIE SERVICES LTD,133267
North East Lincolnshire Council,http://statistics.data.gov.uk/id/local-authority/00FC),Adult Services,Adult Services,Hps-Disabled Fac. Grants,Cap Grants To O/Side Sources,Cap Grants To O/Side Sources,YJ101,30/09/2021,692327,1400,CAPITAL,ENGIE SERVICES LTD,133267
North East Lincolnshire Council,http://statistics.data.gov.uk/id/local-authority/00FC),Adult Services,Adult Services,Hps-Disabled Fac. Grants,Cap Grants To O/Side Sources,Cap Grants To O/Side Sources,YJ101,15/09/2021,688945,290,CAPITAL,OBAM LIFT SERVICES LTD,112666
North East Lincolnshire Council,http://statistics.data.gov.uk/id/local-authority/00FC),Adult Services,Adult Services,Hps-Disabled Fac. Grants,Cap Grants To O/Side Sources,Cap Grants To O/Side Sources,YJ101,23/09/2021,691298,54499.2,CAPITAL,ENGIE SERVICES LTD,133267
North East Lincolnshire Council,http://statistics.data.gov.uk/id/local-authority/00FC),Adult Services,Adult Services,Hps-Disabled Fac. Grants,Cap Grants To O/Side Sources,Cap Grants To O/Side Sources,YJ101,20/09/2021,690297,788,CAPITAL,JC POMFRET CONSTRUCTION LTD,136453
North East Lincolnshire Council,http://statistics.data.gov.uk/id/local-authority/00FC),Adult Services,Adult Services,Hps-Disabled Fac. Grants,Cap Grants To O/Side Sources,Cap Grants To O/Side Sources,YJ101,09/09/2021,689249,3317.69,CAPITAL,ENGIE SERVICES LTD,133267
North East Lincolnshire Council,http://statistics.data.gov.uk/id/local-authority/00FC),Adult Services,Adult Services,Hps-Disabled Fac. Grants,Cap Grants To O/Side Sources,Cap Grants To O/Side Sources,YJ101,30/09/2021,692326,1130.1,CAPITAL,ENGIE SERVICES LTD,133267
North East Lincolnshire Council,http://statistics.data.gov.uk/id/local-authority/00FC),Adult Services,Adult Services,Hps-Disabled Fac. Grants,Cap Grants To O/Side Sources,Cap Grants To O/Side Sources,YJ101,02/09/2021,687864,260,CAPITAL,STEPHEN HEYWOOD DESIGN LTD,132818
North East Lincolnshire Council,http://statistics.data.gov.uk/id/local-authority/00FC),Adult Services,Adult Services,Hps-Disabled Fac. Grants,Cap Grants To O/Side Sources,Cap Grants To O/Side Sources,YJ101,29/09/2021,692213,3957.5,CAPITAL,HEALEY & LORD LTD,104265
North East Lincolnshire Council,http://statistics.data.gov.uk/id/local-authority/00FC),Adult Services,Adult Services,Hps-Disabled Fac. Grants,Cap Veh Plt Eqp-Purchase,Cap Veh Plt Eqp-Purchase,YB101,02/09/2021,688304,-1000,CAPITAL,JOERNS HEALTHCARE LTD,126914
North East Lincolnshire Council,http://statistics.data.gov.uk/id/local-authority/00FC),Adult Services,Adult Services,Hps-Disabled Fac. Grants,Cap Land/Build-Prof Fees,Cap Land/Build-Prof Fees,YA103,09/09/2021,689055,4448.75,CAPITAL,N LINCS & GOOLE HOSPITALS NHS FOUNDATION TRUS,111074
North East Lincolnshire Council,http://statistics.data.gov.uk/id/local-authority/00FC),Childrens Services,Education And Inclusion,Access And Education Services,Miscellaneous Expenses,Other Expenses General,LL119,16/09/2021,690462,2225,REVENUE,LEARNING4LIFE-GY-CIC,144120
North East Lincolnshire Council,http://statistics.data.gov.uk/id/local-authority/00FC),Childrens Services,Education And Inclusion,Access And Education Services,Contract Hire-Operating Leases,Vehicles - Contract Hire,JC101,20/09/2021,690814,260,REVENUE,COXONS CARS LIMITED,100578
North East Lincolnshire Council,http://statistics.data.gov.uk/id/local-authority/00FC),Childrens Services,Education And Inclusion,Access And Education Services,Contract Hire-Operating Leases,Vehicles - Contract Hire,JC101,20/09/2021,690815,330,REVENUE,COXONS CARS LIMITED,100578
North East Lincolnshire Council,http://statistics.data.gov.uk/id/local-authority/00FC),Childrens Services,Education And Inclusion,Access And Education Services,Contract Hire-Operating Leases,Vehicles - Contract Hire,JC101,20/09/2021,690787,252,REVENUE,COXONS CARS LIMITED,100578
North East Lincolnshire Council,http://statistics.data.gov.uk/id/local-authority/00FC),Childrens Services,Education And Inclusion,Access And Education Services,Contract Hire-Operating Leases,Vehicles - Contract Hire,JC101,02/09/2021,688016,650,REVENUE,HANSONS AIRPORT EXPRESS,111879
North East Lincolnshire Council,http://statistics.data.gov.uk/id/local-authority/00FC),Childrens Services,Education And Inclusion,Access And Education Services,Contract Hire-Operating Leases,Vehicles - Contract Hire,JC101,15/09/2021,689028,3591,REVENUE,AMVALE MEDICAL TRANSPORT LTD,130777
North East Lincolnshire Council,http://statistics.data.gov.uk/id/local-authority/00FC),Childrens Services,Education And Inclusion,Access And Education Services,Contract Hire-Operating Leases,Vehicles - Contract Hire,JC101,15/09/2021,689026,4085,REVENUE,AMVALE MEDICAL TRANSPORT LTD,130777
North East Lincolnshire Council,http://statistics.data.gov.uk/id/local-authority/00FC),Childrens Services,Education And Inclusion,Access And Education Services,Contract Hire-Operating Leases,Vehicles - Contract Hire,JC101,09/09/2021,689094,2261,REVENUE,AMVALE MEDICAL TRANSPORT LTD,130777
North East Lincolnshire Council,http://statistics.data.gov.uk/id/local-authority/00FC),Childrens Services,Education And Inclusion,Access And Education Services,Contract Hire-Operating Leases,Vehicles - Contract Hire,JC101,15/09/2021,689027,4123,REVENUE,AMVALE MEDICAL TRANSPORT LTD,130777
North East Lincolnshire Council,http://statistics.data.gov.uk/id/local-authority/00FC),Childrens Services,Education And Inclusion,Access And Education Services,Contract Hire-Operating Leases,Vehicles - Contract Hire,JC101,01/09/2021,688062,1520,REVENUE,MINICABS CLEETHORPES (LINCS) LTD,102124
North East Lincolnshire Council,http://statistics.data.gov.uk/id/local-authority/00FC),Childrens Services,Education And Inclusion,Access And Education Services,Contract Hire-Operating Leases,Vehicles - Contract Hire,JC101,01/09/2021,688063,1140,REVENUE,MINICABS CLEETHORPES (LINCS) LTD,102124
North East Lincolnshire Council,http://statistics.data.gov.uk/id/local-authority/00FC),Childrens Services,Education And Inclusion,Access And Education Services,Contract Hire-Operating Leases,Vehicles - Contract Hire,JC101,14/09/2021,690137,940.5,REVENUE,LINKS TAXIS,100546
North East Lincolnshire Council,http://statistics.data.gov.uk/id/local-authority/00FC),Childrens Services,Education And Inclusion,Access And Education Services,Contract Hire-Operating Leases,Vehicles - Contract Hire,JC101,15/09/2021,690248,1147,REVENUE,LINKS TAXIS,100546
North East Lincolnshire Council,http://statistics.data.gov.uk/id/local-authority/00FC),Childrens Services,Education And Inclusion,Access And Education Services,Contract Hire-Operating Leases,Vehicles - Contract Hire,JC101,14/09/2021,690138,1054,REVENUE,LINKS TAXIS,100546
North East Lincolnshire Council,http://statistics.data.gov.uk/id/local-authority/00FC),Childrens Services,Education And Inclusion,Access And Education Services,Contract Hire-Operating Leases,Vehicles - Contract Hire,JC101,02/09/2021,688015,1561.88,REVENUE,HANSONS AIRPORT EXPRESS,111879
North East Lincolnshire Council,http://statistics.data.gov.uk/id/local-authority/00FC),Childrens Services,Education And Inclusion,Access And Education Services,Contract Hire-Operating Leases,Vehicles - Contract Hire,JC101,07/09/2021,688583,1432,REVENUE,LINKS TAXIS,100546
North East Lincolnshire Council,http://statistics.data.gov.uk/id/local-authority/00FC),Childrens Services,Education And Inclusion,Access And Education Services,Contract Hire-Operating Leases,Vehicles - Contract Hire,JC101,14/09/2021,690139,950,REVENUE,LINKS TAXIS,100546
North East Lincolnshire Council,http://statistics.data.gov.uk/id/local-authority/00FC),Childrens Services,Education And Inclusion,Access And Education Services,Contract Hire-Operating Leases,Vehicles - Contract Hire,JC101,14/09/2021,690136,728,REVENUE,LINKS TAXIS,100546
North East Lincolnshire Council,http://statistics.data.gov.uk/id/local-authority/00FC),Childrens Services,Education And Inclusion,Access And Education Services,Contract Hire-Operating Leases,Vehicles - Contract Hire,JC101,20/09/2021,690808,495,REVENUE,DRS TAXI SERVICE,141083
North East Lincolnshire Council,http://statistics.data.gov.uk/id/local-authority/00FC),Childrens Services,Education And Inclusion,Access And Education Services,Contract Hire-Operating Leases,Vehicles - Contract Hire,JC101,21/09/2021,690809,475,REVENUE,DRS TAXI SERVICE,141083
North East Lincolnshire Council,http://statistics.data.gov.uk/id/local-authority/00FC),Childrens Services,Education And Inclusion,Access And Education Services,Contract Hire-Operating Leases,Vehicles - Contract Hire,JC101,22/09/2021,691242,4385,REVENUE,LINKS TAXIS,100546
North East Lincolnshire Council,http://statistics.data.gov.uk/id/local-authority/00FC),Childrens Services,Education And Inclusion,Access And Education Services,Contract Hire-Operating Leases,Vehicles - Contract Hire,JC101,20/09/2021,690816,1885,REVENUE,COXONS CARS LIMITED,100578
North East Lincolnshire Council,http://statistics.data.gov.uk/id/local-authority/00FC),Childrens Services,Education And Inclusion,Access And Education Services,Contract Hire-Operating Leases,Vehicles - Contract Hire,JC101,06/09/2021,688180,1107.75,REVENUE,HANSONS AIRPORT EXPRESS,111879
North East Lincolnshire Council,http://statistics.data.gov.uk/id/local-authority/00FC),Childrens Services,Education And Inclusion,Access And Education Services,Contract Hire-Operating Leases,Vehicles - Contract Hire,JC101,13/09/2021,688963,4275,REVENUE,AMVALE MEDICAL TRANSPORT LTD,130777
North East Lincolnshire Council,http://statistics.data.gov.uk/id/local-authority/00FC),Childrens Services,Education And Inclusion,Access And Education Services,Contract Hire-Operating Leases,Vehicles - Contract Hire,JC101,15/09/2021,690168,3515,REVENUE,SMT (LINCS) ENTERPRISES LTD,141297
North East Lincolnshire Council,http://statistics.data.gov.uk/id/local-authority/00FC),Childrens Services,Education And Inclusion,Access And Education Services,Contract Hire-Operating Leases,Vehicles - Contract Hire,JC101,15/09/2021,690169,672,REVENUE,SMT (LINCS) ENTERPRISES LTD,141297
North East Lincolnshire Council,http://statistics.data.gov.uk/id/local-authority/00FC),Childrens Services,Education And Inclusion,Access And Education Services,Contract Hire-Operating Leases,Vehicles - Contract Hire,JC101,15/09/2021,690290,1564.95,REVENUE,SMT (LINCS) ENTERPRISES LTD,141297
North East Lincolnshire Council,http://statistics.data.gov.uk/id/local-authority/00FC),Childrens Services,Education And Inclusion,Access And Education Services,Contract Hire-Operating Leases,Vehicles - Contract Hire,JC101,16/09/2021,690402,1662.6,REVENUE,GRIMSBY MINIBUSES LTD,121524
North East Lincolnshire Council,http://statistics.data.gov.uk/id/local-authority/00FC),Childrens Services,Education And Inclusion,Access And Education Services,Direct Employee Expenses,Agency Supply Teachers,EA104,22/09/2021,691237,850,REVENUE,ADRIAN CLARKE,108479
North East Lincolnshire Council,http://statistics.data.gov.uk/id/local-authority/00FC),Childrens Services,Education And Inclusion,Access And Education Services,Direct Employee Expenses,Agency Supply Teachers,EA104,28/09/2021,691803,962.5,REVENUE,CAROLINE MASSDAM GOOCH,104894
North East Lincolnshire Council,http://statistics.data.gov.uk/id/local-authority/00FC),Childrens Services,Education And Inclusion,Access And Education Services,Direct Employee Expenses,Agency Supply Teachers,EA104,22/09/2021,691236,350,REVENUE,ADRIAN CLARKE,108479
North East Lincolnshire Council,http://statistics.data.gov.uk/id/local-authority/00FC),Childrens Services,Education And Inclusion,Access And Education Services,Direct Employee Expenses,Agency Supply Teachers,EA104,22/09/2021,691235,450,REVENUE,ADRIAN CLARKE,108479
North East Lincolnshire Council,http://statistics.data.gov.uk/id/local-authority/00FC),Childrens Services,Education And Inclusion,Access And Education Services,Direct Employee Expenses,Agency Supply Teachers,EA104,22/09/2021,691265,807.53,REVENUE,KIM GOODEY,134788
North East Lincolnshire Council,http://statistics.data.gov.uk/id/local-authority/00FC),Childrens Services,Education And Inclusion,Access And Education Services,Direct Employee Expenses,Agency Supply Teachers,EA104,30/09/2021,692347,274.62,REVENUE,SAM GARBUTT,149141
North East Lincolnshire Council,http://statistics.data.gov.uk/id/local-authority/00FC),Childrens Services,Education And Inclusion,Access And Education Services,Direct Employee Expenses,Agency Supply Teachers,EA104,28/09/2021,691800,450,REVENUE,CAROLINE MASSDAM GOOCH,104894
North East Lincolnshire Council,http://statistics.data.gov.uk/id/local-authority/00FC),Childrens Services,Education And Inclusion,Access And Education Services,Direct Employee Expenses,Agency Supply Teachers,EA104,28/09/2021,691639,2550,REVENUE,MIKE SELLARS,102161
North East Lincolnshire Council,http://statistics.data.gov.uk/id/local-authority/00FC),Childrens Services,Education And Inclusion,Access And Education Services,Print Stationery / Gen Off Exp,Publicity,LD105,02/09/2021,688168,1200,REVENUE,EMMA MIDDLETON,105103
North East Lincolnshire Council,http://statistics.data.gov.uk/id/local-authority/00FC),Childrens Services,Education And Inclusion,Access And Education Services,Miscellaneous Expenses,Other Expenses General,LL119,14/09/2021,689799,313.71,REVENUE,ELLIOTT GROUP LTD,109912
North East Lincolnshire Council,http://statistics.data.gov.uk/id/local-authority/00FC),Childrens Services,Education And Inclusion,Access And Education Services,Other Agencies,Other,PJ121,06/09/2021,688175,840,REVENUE,EMMA MIDDLETON,105103
North East Lincolnshire Council,http://statistics.data.gov.uk/id/local-authority/00FC),Childrens Services,Education And Inclusion,Access And Education Services,Other Agencies,Other,PJ121,23/09/2021,691358,1200,REVENUE,EMMA MIDDLETON,105103
North East Lincolnshire Council,http://statistics.data.gov.uk/id/local-authority/00FC),Childrens Services,Education And Inclusion,Access And Education Services,Other Agencies,Performers,PJ101,14/09/2021,690148,480,REVENUE,NOISE ACADEMY LTD,148305
North East Lincolnshire Council,http://statistics.data.gov.uk/id/local-authority/00FC),Childrens Services,Education And Inclusion,Access And Education Services,Other Agencies,Performers,PJ101,14/09/2021,690149,300,REVENUE,NOISE ACADEMY LTD,148305
North East Lincolnshire Council,http://statistics.data.gov.uk/id/local-authority/00FC),Childrens Services,Education And Inclusion,Access And Education Services,Other Agencies,Performers,PJ101,15/09/2021,690189,2100,REVENUE,ZOE EVERATT,106842
North East Lincolnshire Council,http://statistics.data.gov.uk/id/local-authority/00FC),Childrens Services,Education And Inclusion,Access And Education Services,Other Agencies,Tuition,PJ112,21/09/2021,961505,250,REVENUE,REDACTED PERSONAL INFORMATION,REDACTED PERSONAL INFORMATION
North East Lincolnshire Council,http://statistics.data.gov.uk/id/local-authority/00FC),Childrens Services,Education And Inclusion,Access And Education Services,Other Agencies,Tuition,PJ112,02/09/2021,688029,1000,REVENUE,PROSPERO RECRUITMENT LTD,145278
North East Lincolnshire Council,http://statistics.data.gov.uk/id/local-authority/00FC),Childrens Services,Education And Inclusion,Access And Education Services,Other Agencies,Tuition,PJ112,02/09/2021,688030,1000,REVENUE,PROSPERO RECRUITMENT LTD,145278
North East Lincolnshire Council,http://statistics.data.gov.uk/id/local-authority/00FC),Childrens Services,Education And Inclusion,Access And Education Services,Other Agencies,Tuition,PJ112,06/09/2021,688346,360.96,REVENUE,ISWP CARE SERVICES LTD,145769
North East Lincolnshire Council,http://statistics.data.gov.uk/id/local-authority/00FC),Childrens Services,Education And Inclusion,Access And Education Services,Other Agencies,Tuition,PJ112,29/09/2021,692132,300,REVENUE,EDUCLA,147507
North East Lincolnshire Council,http://statistics.data.gov.uk/id/local-authority/00FC),Childrens Services,Education And Inclusion,Access And Education Services,Other Agencies,Tuition,PJ112,29/09/2021,692133,300,REVENUE,EDUCLA,147507
North East Lincolnshire Council,http://statistics.data.gov.uk/id/local-authority/00FC),Childrens Services,Education And Inclusion,Access And Education Services,Other Agencies,Tuition,PJ112,29/09/2021,692185,6421.25,REVENUE,LEARNING4LIFE-GY-CIC,144120
North East Lincolnshire Council,http://statistics.data.gov.uk/id/local-authority/00FC),Childrens Services,Education And Inclusion,Access And Education Services,Other Agencies,Tuition,PJ112,29/09/2021,692191,6421.25,REVENUE,LEARNING4LIFE-GY-CIC,144120
North East Lincolnshire Council,http://statistics.data.gov.uk/id/local-authority/00FC),Childrens Services,Education And Inclusion,Access And Education Services,Other Agencies,Tuition,PJ112,29/09/2021,692188,300,REVENUE,EDUCLA,147507
North East Lincolnshire Council,http://statistics.data.gov.uk/id/local-authority/00FC),Childrens Services,Education And Inclusion,Access And Education Services,Contributions To Provisions,Contributions - Other,LK103,09/09/2021,688970,843,REVENUE,THRUNSCOE PRIMARY AND NURSERY ACADEMY,118749
North East Lincolnshire Council,http://statistics.data.gov.uk/id/local-authority/00FC),Childrens Services,Education And Inclusion,Earning & Learning,Equip / Furniture / Materials,Equipment - Purchase,LA101,02/09/2021,688051,351.97,REVENUE,ARGOS BUSINESS SOLUTIONS LTD,101032
North East Lincolnshire Council,http://statistics.data.gov.uk/id/local-authority/00FC),Childrens Services,Education And Inclusion,Earning & Learning,Private Contractors,Third Party Prov - Private,PH101,21/09/2021,690744,12500,REVENUE,LINCOLNSHIRE COUNTY COUNCIL,147872
North East Lincolnshire Council,http://statistics.data.gov.uk/id/local-authority/00FC),Childrens Services,Education And Inclusion,Sen/Inclusion,Direct Employee Expenses,Agency Staff,EA105,06/09/2021,686455,653.05,REVENUE,ON LINE PEOPLE LTD,144850
North East Lincolnshire Council,http://statistics.data.gov.uk/id/local-authority/00FC),Childrens Services,Education And Inclusion,Sen/Inclusion,Direct Employee Expenses,Agency Staff,EA105,07/09/2021,688685,653.05,REVENUE,ON LINE PEOPLE LTD,144850
North East Lincolnshire Council,http://statistics.data.gov.uk/id/local-authority/00FC),Childrens Services,Education And Inclusion,Sen/Inclusion,Direct Employee Expenses,Agency Staff,EA105,07/09/2021,688689,653.05,REVENUE,ON LINE PEOPLE LTD,144850
North East Lincolnshire Council,http://statistics.data.gov.uk/id/local-authority/00FC),Childrens Services,Education And Inclusion,Sen/Inclusion,Direct Employee Expenses,Agency Staff,EA105,16/09/2021,688679,653.05,REVENUE,ON LINE PEOPLE LTD,144850
North East Lincolnshire Council,http://statistics.data.gov.uk/id/local-authority/00FC),Childrens Services,Education And Inclusion,Sen/Inclusion,Direct Employee Expenses,Agency Staff,EA105,21/09/2021,691002,520.68,REVENUE,ON LINE PEOPLE LTD,144850
North East Lincolnshire Council,http://statistics.data.gov.uk/id/local-authority/00FC),Childrens Services,Education And Inclusion,Sen/Inclusion,Miscellaneous Expenses,Contingency Reserve,LL123,21/09/2021,690686,8700,REVENUE,THE CAMBRIDGE PARK ACADEMY,107472
North East Lincolnshire Council,http://statistics.data.gov.uk/id/local-authority/00FC),Childrens Services,Education And Inclusion,Sen/Inclusion,Miscellaneous Expenses,Contingency Reserve,LL123,10/09/2021,689333,4981.3,REVENUE,HAVELOCK ACADEMY,101968
North East Lincolnshire Council,http://statistics.data.gov.uk/id/local-authority/00FC),Childrens Services,Education And Inclusion,Sen/Inclusion,Miscellaneous Expenses,Other Expenses General,LL119,16/09/2021,690461,2437.5,REVENUE,LEARNING4LIFE-GY-CIC,144120
North East Lincolnshire Council,http://statistics.data.gov.uk/id/local-authority/00FC),Childrens Services,Education And Inclusion,Sen/Inclusion,Indirect Employee Expenses,Staff Training,EB122,07/09/2021,688453,3300,REVENUE,UNIVERSITY OF BIRMINGHAM,101913
North East Lincolnshire Council,http://statistics.data.gov.uk/id/local-authority/00FC),Childrens Services,Education And Inclusion,Sen/Inclusion,Equip / Furniture / Materials,Teaching Materials,LA117,09/09/2021,689096,1495,REVENUE,HUMANWARE EUROPE LTD,128854
North East Lincolnshire Council,http://statistics.data.gov.uk/id/local-authority/00FC),Childrens Services,Education And Inclusion,Sen/Inclusion,Private Contractors,Third Party Prov - Private,PH101,23/09/2021,690801,3020,REVENUE,LINKAGE COMMUNITY TRUST,100343
North East Lincolnshire Council,http://statistics.data.gov.uk/id/local-authority/00FC),Childrens Services,Education And Inclusion,Sen/Inclusion,Private Contractors,Third Party Prov - Private,PH101,23/09/2021,690825,-2295,REVENUE,LINKAGE COMMUNITY TRUST,100343
North East Lincolnshire Council,http://statistics.data.gov.uk/id/local-authority/00FC),Childrens Services,Education And Inclusion,Sen/Inclusion,Private Contractors,Third Party Prov - Private,PH101,30/09/2021,692465,-2000,REVENUE,LINKAGE COMMUNITY TRUST,100343
North East Lincolnshire Council,http://statistics.data.gov.uk/id/local-authority/00FC),Childrens Services,Education And Inclusion,Sen/Inclusion,Private Contractors,Third Party Prov - Private,PH101,30/09/2021,692466,-2000,REVENUE,LINKAGE COMMUNITY TRUST,100343
North East Lincolnshire Council,http://statistics.data.gov.uk/id/local-authority/00FC),Childrens Services,Education And Inclusion,Sen/Inclusion,Private Contractors,Third Party Prov - Private,PH101,30/09/2021,692467,-1631.85,REVENUE,LINKAGE COMMUNITY TRUST,100343
North East Lincolnshire Council,http://statistics.data.gov.uk/id/local-authority/00FC),Childrens Services,Education And Inclusion,Sen/Inclusion,Private Contractors,Third Party Prov - Private,PH101,30/09/2021,692468,-4995,REVENUE,LINKAGE COMMUNITY TRUST,100343
North East Lincolnshire Council,http://statistics.data.gov.uk/id/local-authority/00FC),Childrens Services,Education And Inclusion,Sen/Inclusion,Private Contractors,Third Party Prov - Private,PH101,21/09/2021,691007,357.84,REVENUE,LINKAGE COMMUNITY TRUST,100343
North East Lincolnshire Council,http://statistics.data.gov.uk/id/local-authority/00FC),Childrens Services,Education And Inclusion,Sen/Inclusion,Miscellaneous Expenses,Contingency Reserve,LL123,21/09/2021,690694,1417,REVENUE,PHOENIX PARK ACADEMY,126685
North East Lincolnshire Council,http://statistics.data.gov.uk/id/local-authority/00FC),Childrens Services,Education And Inclusion,Sen/Inclusion,Miscellaneous Expenses,Contingency Reserve,LL123,21/09/2021,690696,17000,REVENUE,PHOENIX PARK ACADEMY,126685
North East Lincolnshire Council,http://statistics.data.gov.uk/id/local-authority/00FC),Childrens Services,Education And Inclusion,Sen/Inclusion,Miscellaneous Expenses,Contingency Reserve,LL123,21/09/2021,690695,48167,REVENUE,PHOENIX PARK ACADEMY,126685
North East Lincolnshire Council,http://statistics.data.gov.uk/id/local-authority/00FC),Childrens Services,Education And Inclusion,Sen/Inclusion,Miscellaneous Expenses,Contingency Reserve,LL123,21/09/2021,690697,28333,REVENUE,SEVENHILLS ACADEMY,128660
North East Lincolnshire Council,http://statistics.data.gov.uk/id/local-authority/00FC),Childrens Services,Education And Inclusion,Sen/Inclusion,Miscellaneous Expenses,Contingency Reserve,LL123,21/09/2021,690698,28333,REVENUE,SEVENHILLS ACADEMY,128660
North East Lincolnshire Council,http://statistics.data.gov.uk/id/local-authority/00FC),Childrens Services,Education And Inclusion,Sen/Inclusion,Contributions To Provisions,Contributions - Other,LK103,21/09/2021,690687,1700,REVENUE,THE CAMBRIDGE PARK ACADEMY,107472
North East Lincolnshire Council,http://statistics.data.gov.uk/id/local-authority/00FC),Childrens Services,Education And Inclusion,Sen/Inclusion,Contributions To Provisions,Contributions - Third Sector,LK102,28/09/2021,963909,935,REVENUE,REDACTED PERSONAL INFORMATION,REDACTED PERSONAL INFORMATION
North East Lincolnshire Council,http://statistics.data.gov.uk/id/local-authority/00FC),Childrens Services,Education And Inclusion,Sen/Inclusion,Contributions To Provisions,Contributions - Third Sector,LK102,07/09/2021,688654,498,REVENUE,COMMUNITY ACCORD,106613
North East Lincolnshire Council,http://statistics.data.gov.uk/id/local-authority/00FC),Childrens Services,Education And Inclusion,Sen/Inclusion,Contributions To Provisions,Contributions - Third Sector,LK102,07/09/2021,688666,542.25,REVENUE,1VAA C.I.C,149602
North East Lincolnshire Council,http://statistics.data.gov.uk/id/local-authority/00FC),Childrens Services,Education And Inclusion,Sen/Inclusion,Contributions To Provisions,Contributions - Third Sector,LK102,07/09/2021,688653,303.55,REVENUE,PC WORLD BUSINESS,120051
North East Lincolnshire Council,http://statistics.data.gov.uk/id/local-authority/00FC),Childrens Services,Education And Inclusion,Sen/Inclusion,Contributions To Provisions,Contributions - Third Sector,LK102,07/09/2021,688667,2319,REVENUE,PRECIOUS TIMES RIVERSIDE,109610
North East Lincolnshire Council,http://statistics.data.gov.uk/id/local-authority/00FC),Childrens Services,Education And Inclusion,Sen/Inclusion,Contributions To Provisions,Contributions - Third Sector,LK102,07/09/2021,688652,2093.08,REVENUE,AK PAYROLL SERVICES LTD,145107
North East Lincolnshire Council,http://statistics.data.gov.uk/id/local-authority/00FC),Childrens Services,Education And Inclusion,Sen/Inclusion,Contributions To Provisions,Contributions - Third Sector,LK102,21/09/2021,690728,303.55,REVENUE,PC WORLD BUSINESS,120051
North East Lincolnshire Council,http://statistics.data.gov.uk/id/local-authority/00FC),Childrens Services,Education And Inclusion,Sen/Inclusion,Contributions To Provisions,Contributions - Third Sector,LK102,20/09/2021,690838,900,REVENUE,R Y FIDLER,142906
North East Lincolnshire Council,http://statistics.data.gov.uk/id/local-authority/00FC),Childrens Services,Education And Inclusion,Sen/Inclusion,Contributions To Provisions,Contributions - Third Sector,LK102,21/09/2021,690841,1589.23,REVENUE,TEACHING PERSONNEL LTD,101305
North East Lincolnshire Council,http://statistics.data.gov.uk/id/local-authority/00FC),Childrens Services,Education And Inclusion,Sen/Inclusion,Contributions To Provisions,Contributions - Third Sector,LK102,27/09/2021,691554,2371.81,REVENUE,RAINBOW CORNER DAY NURSERY,101229
North East Lincolnshire Council,http://statistics.data.gov.uk/id/local-authority/00FC),Childrens Services,Education And Inclusion,Sen/Inclusion,Miscellaneous Expenses,Contingency Reserve,LL123,21/09/2021,690688,155534,REVENUE,THE CAMBRIDGE PARK ACADEMY,107472
North East Lincolnshire Council,http://statistics.data.gov.uk/id/local-authority/00FC),Childrens Services,Education And Inclusion,Sen/Inclusion,Miscellaneous Expenses,Contingency Reserve,LL123,21/09/2021,690685,9817,REVENUE,THE CAMBRIDGE PARK ACADEMY,107472
North East Lincolnshire Council,http://statistics.data.gov.uk/id/local-authority/00FC),Childrens Services,Education And Inclusion,Sen/Inclusion,Miscellaneous Expenses,Contingency Reserve,LL123,21/09/2021,690689,9817,REVENUE,HUMBERSTON PARK SPECIAL SCHOOL,107911
North East Lincolnshire Council,http://statistics.data.gov.uk/id/local-authority/00FC),Childrens Services,Education And Inclusion,Sen/Inclusion,Miscellaneous Expenses,Contingency Reserve,LL123,21/09/2021,690690,122718,REVENUE,HUMBERSTON PARK SPECIAL SCHOOL,107911
North East Lincolnshire Council,http://statistics.data.gov.uk/id/local-authority/00FC),Childrens Services,Education And Inclusion,Sen/Inclusion,Miscellaneous Expenses,Other Expenses General,LL119,21/09/2021,690692,6000,REVENUE,EASTFIELD PRIMARY ACADEMY,121907
North East Lincolnshire Council,http://statistics.data.gov.uk/id/local-authority/00FC),Childrens Services,Education And Inclusion,Sen/Inclusion,Miscellaneous Expenses,Other Expenses General,LL119,21/09/2021,690693,1958,REVENUE,EASTFIELD PRIMARY ACADEMY,121907
North East Lincolnshire Council,http://statistics.data.gov.uk/id/local-authority/00FC),Childrens Services,Education And Inclusion,Sen/Inclusion,Miscellaneous Expenses,Other Expenses General,LL119,21/09/2021,690691,9000,REVENUE,EASTFIELD PRIMARY ACADEMY,121907
North East Lincolnshire Council,http://statistics.data.gov.uk/id/local-authority/00FC),Childrens Services,Education And Inclusion,Sen/Inclusion,Other Local Authorities,Third Pp - Other Local Auth,PC101,24/09/2021,691512,1917.41,REVENUE,REDACTED PERSONAL INFORMATION,REDACTED PERSONAL INFORMATION
North East Lincolnshire Council,http://statistics.data.gov.uk/id/local-authority/00FC),Childrens Services,Education And Inclusion,Sen/Inclusion,Other Local Authorities,Third Pp - Other Local Auth,PC101,07/09/2021,688493,3375,REVENUE,REDACTED PERSONAL INFORMATION,REDACTED PERSONAL INFORMATION
North East Lincolnshire Council,http://statistics.data.gov.uk/id/local-authority/00FC),Childrens Services,Education And Inclusion,Sen/Inclusion,Other Local Authorities,Third Pp - Other Local Auth,PC101,07/09/2021,688683,3000,REVENUE,REDACTED PERSONAL INFORMATION,REDACTED PERSONAL INFORMATION
North East Lincolnshire Council,http://statistics.data.gov.uk/id/local-authority/00FC),Childrens Services,Education And Inclusion,Sen/Inclusion,Other Local Authorities,Third Pp - Other Local Auth,PC101,07/09/2021,688684,3231,REVENUE,REDACTED PERSONAL INFORMATION,REDACTED PERSONAL INFORMATION
North East Lincolnshire Council,http://statistics.data.gov.uk/id/local-authority/00FC),Childrens Services,Education And Inclusion,Sen/Inclusion,Other Local Authorities,Third Pp - Other Local Auth,PC101,07/09/2021,688687,2500.05,REVENUE,REDACTED PERSONAL INFORMATION,REDACTED PERSONAL INFORMATION
North East Lincolnshire Council,http://statistics.data.gov.uk/id/local-authority/00FC),Childrens Services,Education And Inclusion,Sen/Inclusion,Other Local Authorities,Third Pp - Other Local Auth,PC101,07/09/2021,688690,2500.05,REVENUE,REDACTED PERSONAL INFORMATION,REDACTED PERSONAL INFORMATION
North East Lincolnshire Council,http://statistics.data.gov.uk/id/local-authority/00FC),Childrens Services,Education And Inclusion,Sen/Inclusion,Other Local Authorities,Third Pp - Other Local Auth,PC101,07/09/2021,688691,2500.05,REVENUE,REDACTED PERSONAL INFORMATION,REDACTED PERSONAL INFORMATION
North East Lincolnshire Council,http://statistics.data.gov.uk/id/local-authority/00FC),Childrens Services,Education And Inclusion,Sen/Inclusion,Other Local Authorities,Third Pp - Other Local Auth,PC101,21/09/2021,691001,9396.94,REVENUE,REDACTED PERSONAL INFORMATION,REDACTED PERSONAL INFORMATION
North East Lincolnshire Council,http://statistics.data.gov.uk/id/local-authority/00FC),Childrens Services,Education And Inclusion,Sen/Inclusion,Other Local Authorities,Third Pp - Other Local Auth,PC101,07/09/2021,688492,4933.5,REVENUE,REDACTED PERSONAL INFORMATION,REDACTED PERSONAL INFORMATION
North East Lincolnshire Council,http://statistics.data.gov.uk/id/local-authority/00FC),Childrens Services,Education And Inclusion,Sen/Inclusion,Other Local Authorities,Third Pp - Other Local Auth,PC101,07/09/2021,688686,1000.16,REVENUE,REDACTED PERSONAL INFORMATION,REDACTED PERSONAL INFORMATION
North East Lincolnshire Council,http://statistics.data.gov.uk/id/local-authority/00FC),Childrens Services,Education And Inclusion,Sen/Inclusion,Other Local Authorities,Third Pp - Other Local Auth,PC101,07/09/2021,688695,770,REVENUE,REDACTED PERSONAL INFORMATION,REDACTED PERSONAL INFORMATION
North East Lincolnshire Council,http://statistics.data.gov.uk/id/local-authority/00FC),Childrens Services,Education And Inclusion,Sen/Inclusion,Other Local Authorities,Third Pp - Other Local Auth,PC101,20/09/2021,690926,45510,REVENUE,REDACTED PERSONAL INFORMATION,REDACTED PERSONAL INFORMATION
North East Lincolnshire Council,http://statistics.data.gov.uk/id/local-authority/00FC),Childrens Services,Education And Inclusion,Sen/Inclusion,Other Local Authorities,Third Pp - Other Local Auth,PC101,24/09/2021,691513,1917.41,REVENUE,REDACTED PERSONAL INFORMATION,REDACTED PERSONAL INFORMATION
North East Lincolnshire Council,http://statistics.data.gov.uk/id/local-authority/00FC),Childrens Services,Education And Inclusion,Sen/Inclusion,Other Local Authorities,Third Pp - Other Local Auth,PC101,15/09/2021,689658,7614,REVENUE,REDACTED PERSONAL INFORMATION,REDACTED PERSONAL INFORMATION
North East Lincolnshire Council,http://statistics.data.gov.uk/id/local-authority/00FC),Childrens Services,Education And Inclusion,Sen/Inclusion,Other Local Authorities,Third Pp - Other Local Auth,PC101,15/09/2021,689659,6979.5,REVENUE,REDACTED PERSONAL INFORMATION,REDACTED PERSONAL INFORMATION
North East Lincolnshire Council,http://statistics.data.gov.uk/id/local-authority/00FC),Childrens Services,Education And Inclusion,Sen/Inclusion,Other Local Authorities,Third Pp - Other Local Auth,PC101,15/09/2021,689657,6979.5,REVENUE,REDACTED PERSONAL INFORMATION,REDACTED PERSONAL INFORMATION
North East Lincolnshire Council,http://statistics.data.gov.uk/id/local-authority/00FC),Childrens Services,Education And Inclusion,Sen/Inclusion,Other Local Authorities,Third Pp - Other Local Auth,PC101,27/09/2021,691553,1980,REVENUE,REDACTED PERSONAL INFORMATION,REDACTED PERSONAL INFORMATION
North East Lincolnshire Council,http://statistics.data.gov.uk/id/local-authority/00FC),Childrens Services,Education And Inclusion,School Improvement,Contributions To Provisions,Contributions - Other,LK103,15/09/2021,690164,-1247.4,REVENUE,WELHOLME PRE SCHOOL **USE  SUPPLIER 127227**,101258
North East Lincolnshire Council,http://statistics.data.gov.uk/id/local-authority/00FC),Childrens Services,Education And Inclusion,School Improvement,Contributions To Provisions,Contributions - Other,LK103,16/09/2021,690407,750,REVENUE,WALTHAM LEAS PRIMARY ACADEMY,109335
North East Lincolnshire Council,http://statistics.data.gov.uk/id/local-authority/00FC),Childrens Services,Education And Inclusion,School Improvement,Contributions To Provisions,Contributions - Other,LK103,30/09/2021,692351,750,REVENUE,REYNOLDS ACADEMY,122175
North East Lincolnshire Council,http://statistics.data.gov.uk/id/local-authority/00FC),Childrens Services,Education And Inclusion,School Improvement,Contributions To Provisions,Contributions - Other,LK103,28/09/2021,691806,750,REVENUE,WELHOLME ACADEMY,127227
North East Lincolnshire Council,http://statistics.data.gov.uk/id/local-authority/00FC),Childrens Services,Education And Inclusion,School Improvement,Contributions To Provisions,Contributions - Other,LK103,30/09/2021,692351,750,REVENUE,REYNOLDS ACADEMY,122175
North East Lincolnshire Council,http://statistics.data.gov.uk/id/local-authority/00FC),Childrens Services,Education And Inclusion,School Improvement,Contributions To Provisions,Contributions - Other,LK103,09/09/2021,688603,750,REVENUE,JUDY CLARK CHILD CARE,100939
North East Lincolnshire Council,http://statistics.data.gov.uk/id/local-authority/00FC),Childrens Services,Education And Inclusion,School Improvement,Contributions To Provisions,Contributions - Other,LK103,09/09/2021,688604,750,REVENUE,PRECIOUS TIMES CHILDCARE SERVICES,101420
North East Lincolnshire Council,http://statistics.data.gov.uk/id/local-authority/00FC),Childrens Services,Education And Inclusion,School Improvement,Contributions To Provisions,Contributions - Other,LK103,09/09/2021,688605,1500,REVENUE,THE CHILDRENS HOUSE,101141
North East Lincolnshire Council,http://statistics.data.gov.uk/id/local-authority/00FC),Childrens Services,Education And Inclusion,School Improvement,Contributions To Provisions,Contributions - Other,LK103,02/09/2021,688048,750,REVENUE,LISLE MARSDEN CHILDCARE LIMITED,110493
North East Lincolnshire Council,http://statistics.data.gov.uk/id/local-authority/00FC),Childrens Services,Education And Inclusion,School Improvement,Contributions To Provisions,Contributions - Other,LK103,02/09/2021,688048,750,REVENUE,LISLE MARSDEN CHILDCARE LIMITED,110493
North East Lincolnshire Council,http://statistics.data.gov.uk/id/local-authority/00FC),Childrens Services,Education And Inclusion,School Improvement,Contributions To Provisions,Contributions - Other,LK103,28/09/2021,691332,750,REVENUE,LISLE MARSDEN CHILDCARE LIMITED,110493
North East Lincolnshire Council,http://statistics.data.gov.uk/id/local-authority/00FC),Childrens Services,Education And Inclusion,School Improvement,Contributions To Provisions,Contributions - Other,LK103,28/09/2021,691332,750,REVENUE,LISLE MARSDEN CHILDCARE LIMITED,110493
North East Lincolnshire Council,http://statistics.data.gov.uk/id/local-authority/00FC),Childrens Services,Education And Inclusion,School Improvement,Contributions To Provisions,Contributions - Other,LK103,28/09/2021,691331,750,REVENUE,ST CHRISTOPHERS PRE SCHOOL,121589
North East Lincolnshire Council,http://statistics.data.gov.uk/id/local-authority/00FC),Childrens Services,Safer And Partnerships,Young And Safe,Direct Transport Costs,Hired Transport - Employees,JA101,15/09/2021,688466,270,REVENUE,READY RENT A CAR,100557
North East Lincolnshire Council,http://statistics.data.gov.uk/id/local-authority/00FC),Childrens Services,Safer And Partnerships,Young And Safe,Catering,Provisions,LB101,30/09/2021,692081,872.7,REVENUE,YOUTH OFFENDING SERVICES,110694
North East Lincolnshire Council,http://statistics.data.gov.uk/id/local-authority/00FC),Childrens Services,Safer And Partnerships,Young And Safe,Communications And Computing,Computer S/Ware - Licences,LF103,21/09/2021,690946,4999,REVENUE,EDU FOCUS LTD,111169
North East Lincolnshire Council,http://statistics.data.gov.uk/id/local-authority/00FC),Childrens Services,Safer And Partnerships,Young And Safe,Voluntary Associations,Third Pp - Third Sector,PF101,15/09/2021,690196,350,REVENUE,PAM ALLEN ASSOCIATES LTD,148650
North East Lincolnshire Council,http://statistics.data.gov.uk/id/local-authority/00FC),Childrens Services,Safer And Partnerships,Young And Safe,Equip / Furniture / Materials,Equipment - Purchase,LA101,29/09/2021,684633,29500,REVENUE,WIRELESS CCTV LTD,148751
North East Lincolnshire Council,http://statistics.data.gov.uk/id/local-authority/00FC),Childrens Services,Safer And Partnerships,Young And Safe,Contributions To Provisions,Contributions - Third Sector,LK102,14/09/2021,689838,45000,REVENUE,VOLUNTARY ACTION NORTH EAST LINCOLNSHIRE,103631
North East Lincolnshire Council,http://statistics.data.gov.uk/id/local-authority/00FC),Childrens Services,Safer And Partnerships,Young And Safe,Miscellaneous Expenses,Activities - Service Users,LL114,23/09/2021,691464,4000,REVENUE,WEST MARSH DEVELOPMENT TRUST,105846
North East Lincolnshire Council,http://statistics.data.gov.uk/id/local-authority/00FC),Childrens Services,Safer And Partnerships,Young And Safe,Miscellaneous Expenses,Activities - Service Users,LL114,24/09/2021,691491,440,REVENUE,WEST MARSH DEVELOPMENT TRUST,105846
North East Lincolnshire Council,http://statistics.data.gov.uk/id/local-authority/00FC),Childrens Services,Safer And Partnerships,Young And Safe,Miscellaneous Expenses,Activities - Service Users,LL114,23/09/2021,691451,450,REVENUE,WEST MARSH DEVELOPMENT TRUST,105846
North East Lincolnshire Council,http://statistics.data.gov.uk/id/local-authority/00FC),Childrens Services,Safer And Partnerships,Young And Safe,Private Contractors,Contract Payments,PH105,14/09/2021,689837,100000,REVENUE,EMPOWER EMPLOYABILITY MENTORING PROGRAMME,118831
North East Lincolnshire Council,http://statistics.data.gov.uk/id/local-authority/00FC),Childrens Services,Safer And Partnerships,Safeguard Board / Dom Violence,Private Contractors,Third Party Prov - Private,PH101,14/09/2021,689756,4000,REVENUE,ELISABETH ALTON,149743
North East Lincolnshire Council,http://statistics.data.gov.uk/id/local-authority/00FC),Childrens Services,Safer And Partnerships,Safeguard Board / Dom Violence,Private Contractors,Contract Payments,PH105,21/09/2021,690949,16254.75,REVENUE,THE BLUE DOOR,146428
North East Lincolnshire Council,http://statistics.data.gov.uk/id/local-authority/00FC),Childrens Services,Safer And Partnerships,Child Safeguarding Review Serv,Direct Employee Expenses,Agency Staff,EA105,09/09/2021,688608,2950,REVENUE,ATTENTI CONSULTING,146503
North East Lincolnshire Council,http://statistics.data.gov.uk/id/local-authority/00FC),Childrens Services,Safer And Partnerships,Child Safeguarding Review Serv,Direct Employee Expenses,Agency Staff,EA105,09/09/2021,688612,2655,REVENUE,ATTENTI CONSULTING,146503
North East Lincolnshire Council,http://statistics.data.gov.uk/id/local-authority/00FC),Childrens Services,Safer And Partnerships,Child Safeguarding Review Serv,Direct Employee Expenses,Agency Staff,EA105,09/09/2021,688614,2950,REVENUE,ATTENTI CONSULTING,146503
North East Lincolnshire Council,http://statistics.data.gov.uk/id/local-authority/00FC),Childrens Services,Safer And Partnerships,Child Safeguarding Review Serv,Direct Employee Expenses,Agency Staff,EA105,09/09/2021,688628,2360,REVENUE,ATTENTI CONSULTING,146503
North East Lincolnshire Council,http://statistics.data.gov.uk/id/local-authority/00FC),Childrens Services,Safer And Partnerships,Child Safeguarding Review Serv,Direct Employee Expenses,Agency Staff,EA105,15/09/2021,689099,2360,REVENUE,ATTENTI CONSULTING,146503
North East Lincolnshire Council,http://statistics.data.gov.uk/id/local-authority/00FC),Childrens Services,Safer And Partnerships,Child Safeguarding Review Serv,Direct Employee Expenses,Agency Staff,EA105,23/09/2021,690810,2950,REVENUE,ATTENTI CONSULTING,146503
North East Lincolnshire Council,http://statistics.data.gov.uk/id/local-authority/00FC),Childrens Services,Safer And Partnerships,Child Safeguarding Review Serv,Direct Employee Expenses,Agency Staff,EA105,23/09/2021,691309,2950,REVENUE,ATTENTI CONSULTING,146503
North East Lincolnshire Council,http://statistics.data.gov.uk/id/local-authority/00FC),Childrens Services,Safer And Partnerships,Child Safeguarding Review Serv,Direct Employee Expenses,Agency Staff,EA105,21/09/2021,690651,2507.5,REVENUE,ATTENTI CONSULTING,146503
North East Lincolnshire Council,http://statistics.data.gov.uk/id/local-authority/00FC),Childrens Services,Safer And Partnerships,Child Safeguarding Review Serv,Direct Employee Expenses,Agency Staff,EA105,21/09/2021,690652,2006,REVENUE,ATTENTI CONSULTING,146503
North East Lincolnshire Council,http://statistics.data.gov.uk/id/local-authority/00FC),Childrens Services,Safer And Partnerships,Child Safeguarding Review Serv,Direct Employee Expenses,Agency Staff,EA105,21/09/2021,690653,1593,REVENUE,ATTENTI CONSULTING,146503
North East Lincolnshire Council,http://statistics.data.gov.uk/id/local-authority/00FC),Childrens Services,Safer And Partnerships,Child Safeguarding Review Serv,Direct Employee Expenses,Agency Staff,EA105,21/09/2021,690654,2507.5,REVENUE,ATTENTI CONSULTING,146503
North East Lincolnshire Council,http://statistics.data.gov.uk/id/local-authority/00FC),Childrens Services,Safer And Partnerships,Child Safeguarding Review Serv,Direct Employee Expenses,Agency Staff,EA105,21/09/2021,690655,1964.7,REVENUE,ATTENTI CONSULTING,146503
North East Lincolnshire Council,http://statistics.data.gov.uk/id/local-authority/00FC),Childrens Services,Safer And Partnerships,Child Safeguarding Review Serv,Direct Employee Expenses,Agency Staff,EA105,21/09/2021,690656,2507.5,REVENUE,ATTENTI CONSULTING,146503
North East Lincolnshire Council,http://statistics.data.gov.uk/id/local-authority/00FC),Childrens Services,Safer And Partnerships,Child Safeguarding Review Serv,Direct Employee Expenses,Agency Staff,EA105,21/09/2021,690657,2507.5,REVENUE,ATTENTI CONSULTING,146503
North East Lincolnshire Council,http://statistics.data.gov.uk/id/local-authority/00FC),Childrens Services,Safer And Partnerships,Child Safeguarding Review Serv,Direct Employee Expenses,Agency Staff,EA105,21/09/2021,690658,2507.5,REVENUE,ATTENTI CONSULTING,146503
North East Lincolnshire Council,http://statistics.data.gov.uk/id/local-authority/00FC),Childrens Services,Safer And Partnerships,Child Safeguarding Review Serv,Direct Employee Expenses,Agency Staff,EA105,21/09/2021,690659,2507.5,REVENUE,ATTENTI CONSULTING,146503
North East Lincolnshire Council,http://statistics.data.gov.uk/id/local-authority/00FC),Childrens Services,Safer And Partnerships,Child Safeguarding Review Serv,Direct Employee Expenses,Agency Staff,EA105,21/09/2021,690660,796.5,REVENUE,ATTENTI CONSULTING,146503
North East Lincolnshire Council,http://statistics.data.gov.uk/id/local-authority/00FC),Childrens Services,Safer And Partnerships,Child Safeguarding Review Serv,Direct Employee Expenses,Agency Staff,EA105,21/09/2021,690661,1964.7,REVENUE,ATTENTI CONSULTING,146503
North East Lincolnshire Council,http://statistics.data.gov.uk/id/local-authority/00FC),Childrens Services,Safer And Partnerships,Child Safeguarding Review Serv,Direct Employee Expenses,Agency Staff,EA105,23/09/2021,691300,2507.5,REVENUE,ATTENTI CONSULTING,146503
North East Lincolnshire Council,http://statistics.data.gov.uk/id/local-authority/00FC),Childrens Services,Safer And Partnerships,Child Safeguarding Review Serv,Direct Employee Expenses,Agency Staff,EA105,30/09/2021,692226,1964.7,REVENUE,ATTENTI CONSULTING,146503
North East Lincolnshire Council,http://statistics.data.gov.uk/id/local-authority/00FC),Childrens Services,Childrens Trust,Palliative / Complex Care,Private Contractors,Third Party Prov - Private,PH101,10/09/2021,689339,2975.66,REVENUE,AK PAYROLL SERVICES LTD,145106
North East Lincolnshire Council,http://statistics.data.gov.uk/id/local-authority/00FC),Childrens Services,Childrens Trust,Palliative / Complex Care,Private Contractors,Third Party Prov - Private,PH101,10/09/2021,689437,265.9,REVENUE,AK PAYROLL SERVICES LTD,145107
North East Lincolnshire Council,http://statistics.data.gov.uk/id/local-authority/00FC),Childrens Services,Childrens Trust,Palliative / Complex Care,Private Contractors,Third Party Prov - Private,PH101,10/09/2021,689340,966.7,REVENUE,AK PAYROLL SERVICES LTD,145113
North East Lincolnshire Council,http://statistics.data.gov.uk/id/local-authority/00FC),Childrens Services,Childrens Trust,Palliative / Complex Care,Private Contractors,Third Party Prov - Private,PH101,10/09/2021,689438,1901.1,REVENUE,AK PAYROLL SERVICES LTD,145112
North East Lincolnshire Council,http://statistics.data.gov.uk/id/local-authority/00FC),Childrens Services,Childrens Trust,Palliative / Complex Care,Private Contractors,Third Party Prov - Private,PH101,10/09/2021,689436,990.06,REVENUE,AK PAYROLL SERVICES LTD,145109
North East Lincolnshire Council,http://statistics.data.gov.uk/id/local-authority/00FC),Childrens Services,Childrens Trust,Palliative / Complex Care,Private Contractors,Third Party Prov - Private,PH101,30/09/2021,692278,988,REVENUE,APOLLO HOME HEALTHCARE LIMITED,138437
North East Lincolnshire Council,http://statistics.data.gov.uk/id/local-authority/00FC),Childrens Services,Childrens Trust,Childrens Mental & Emot Health,Health Authorities,Third Pp - Health Auth,PD101,15/09/2021,690238,3025,REVENUE,G-MAP SERVICES,109932
North East Lincolnshire Council,http://statistics.data.gov.uk/id/local-authority/00FC),Childrens Services,Childrens Trust,Childrens Mental & Emot Health,Health Authorities,Third Pp - Health Auth,PD101,15/09/2021,690239,2420,REVENUE,G-MAP SERVICES,109932
North East Lincolnshire Council,http://statistics.data.gov.uk/id/local-authority/00FC),Childrens Services,Childrens Trust,Childrens Mental & Emot Health,Health Authorities,Third Pp - Health Auth,PD101,15/09/2021,690241,3025,REVENUE,G-MAP SERVICES,109932
North East Lincolnshire Council,http://statistics.data.gov.uk/id/local-authority/00FC),Childrens Services,Childrens Trust,Childrens Mental & Emot Health,Health Authorities,Third Pp - Health Auth,PD101,15/09/2021,690242,1815,REVENUE,G-MAP SERVICES,109932
North East Lincolnshire Council,http://statistics.data.gov.uk/id/local-authority/00FC),Childrens Services,Childrens Trust,Childrens Mental & Emot Health,Health Authorities,Third Pp - Health Auth,PD101,29/09/2021,692140,2420,REVENUE,G-MAP SERVICES,109932
North East Lincolnshire Council,http://statistics.data.gov.uk/id/local-authority/00FC),Childrens Services,Childrens Trust,Childrens Mental & Emot Health,Health Authorities,Third Pp - Health Auth,PD101,29/09/2021,692148,2420,REVENUE,G-MAP SERVICES,109932
North East Lincolnshire Council,http://statistics.data.gov.uk/id/local-authority/00FC),Childrens Services,Childrens Trust,Childrens Mental & Emot Health,Health Authorities,Third Pp - Health Auth,PD101,28/09/2021,691808,400,REVENUE,FORTIS THERAPY & TRAINING,120445
North East Lincolnshire Council,http://statistics.data.gov.uk/id/local-authority/00FC),Childrens Services,Childrens Trust,Childrens Mental & Emot Health,Health Authorities,Third Pp - Health Auth,PD101,29/09/2021,692103,720,REVENUE,LOUISE HOWARTH,149653
North East Lincolnshire Council,http://statistics.data.gov.uk/id/local-authority/00FC),Childrens Services,Childrens Trust,Childrens Mental & Emot Health,Health Authorities,Third Pp - Health Auth,PD101,29/09/2021,692105,2160,REVENUE,CUDOX WELLBEING CIC,148254
North East Lincolnshire Council,http://statistics.data.gov.uk/id/local-authority/00FC),Childrens Services,Childrens Trust,Childrens Mental & Emot Health,Private Contractors,Contract Payments,PH105,13/09/2021,688941,248705.75,REVENUE,LINCOLNSHIRE PARTNERSHIP NHS FOUNDATION TRUST,105021
North East Lincolnshire Council,http://statistics.data.gov.uk/id/local-authority/00FC),Childrens Services,Childrens Trust,Childrens Mental & Emot Health,Other Agencies,Top Up,PJ123,09/09/2021,688932,13799.91,REVENUE,LINCOLNSHIRE PARTNERSHIP NHS FOUNDATION TRUST,105021
North East Lincolnshire Council,http://statistics.data.gov.uk/id/local-authority/00FC),Childrens Services,Childrens Trust,Childrens Mental & Emot Health,Health Authorities,Third Pp - Health Auth,PD101,28/09/2021,691804,1253.67,REVENUE,NHS NORTH EAST LINCOLNSHIRE CCG,121549
North East Lincolnshire Council,http://statistics.data.gov.uk/id/local-authority/00FC),Childrens Services,Childrens Trust,Childrens Mental & Emot Health,Private Contractors,Contract Payments,PH105,28/09/2021,691818,5798.35,REVENUE,KOOTH DIGITAL HEALTH LIMITED,135941
North East Lincolnshire Council,http://statistics.data.gov.uk/id/local-authority/00FC),Childrens Services,Childrens Trust,Childrens Mental & Emot Health,Private Contractors,Contract Payments,PH105,02/09/2021,687826,90689.5,REVENUE,COMPASS SERVICES TO IMPROVE HEALTH,145810
North East Lincolnshire Council,http://statistics.data.gov.uk/id/local-authority/00FC),Childrens Services,Director - Children / Fam Serv,Director Children & Fam Serv,Private Contractors,Contract Payments,PH105,14/09/2021,689710,825,REVENUE,SIGNIS LTD,145139
North East Lincolnshire Council,http://statistics.data.gov.uk/id/local-authority/00FC),Childrens Services,Safeguard & Early Help,Childrens Health,Communications And Computing,Computer S/Ware - Licences,LF103,07/09/2021,687274,3725,REVENUE,LEICESTERSHIRE PARTNERSHIP NHS TRUST,133208
North East Lincolnshire Council,http://statistics.data.gov.uk/id/local-authority/00FC),Childrens Services,Safeguard & Early Help,Childrens Health,Health Authorities,Third Pp - Health Auth,PD101,30/09/2021,692313,500,REVENUE,TIM COTTINGHAM,138053
North East Lincolnshire Council,http://statistics.data.gov.uk/id/local-authority/00FC),Childrens Services,Safeguard & Early Help,Childrens Health,Health Authorities,Third Pp - Health Auth,PD101,30/09/2021,692315,2000,REVENUE,TIM COTTINGHAM,138053
North East Lincolnshire Council,http://statistics.data.gov.uk/id/local-authority/00FC),Childrens Services,Safeguard & Early Help,Childrens Health,Other Agencies,Grants Pd Over To Third Party,PJ138,15/09/2021,690213,9116.54,REVENUE,N LINCS & GOOLE HOSPITALS NHS FOUNDATION TRUS,111074
North East Lincolnshire Council,http://statistics.data.gov.uk/id/local-authority/00FC),Childrens Services,Safeguard & Early Help,Childrens Health,Other Agencies,Grants Pd Over To Third Party,PJ138,15/09/2021,690211,9115.05,REVENUE,N LINCS & GOOLE HOSPITALS NHS FOUNDATION TRUS,111074
North East Lincolnshire Council,http://statistics.data.gov.uk/id/local-authority/00FC),Childrens Services,Safeguard & Early Help,Childrens Health,Other Agencies,Grants Pd Over To Third Party,PJ138,15/09/2021,690210,9116.46,REVENUE,N LINCS & GOOLE HOSPITALS NHS FOUNDATION TRUS,111074
North East Lincolnshire Council,http://statistics.data.gov.uk/id/local-authority/00FC),Childrens Services,Safeguard & Early Help,Childrens Health,Other Agencies,Grants Pd Over To Third Party,PJ138,15/09/2021,690212,9114.71,REVENUE,N LINCS & GOOLE HOSPITALS NHS FOUNDATION TRUS,111074
North East Lincolnshire Council,http://statistics.data.gov.uk/id/local-authority/00FC),Childrens Services,Safeguard & Early Help,Childrens Health,Equip / Furniture / Materials,Equipment - Purchase,LA101,14/09/2021,689836,294,REVENUE,HEALTH-CARE EQUIPMENT & SUPPLIES CO LTD,107030
North East Lincolnshire Council,http://statistics.data.gov.uk/id/local-authority/00FC),Childrens Services,Safeguard & Early Help,Childrens Health,Equip / Furniture / Materials,Equipment - Purchase,LA101,14/09/2021,689836,1687,REVENUE,HEALTH-CARE EQUIPMENT & SUPPLIES CO LTD,107030
North East Lincolnshire Council,http://statistics.data.gov.uk/id/local-authority/00FC),Childrens Services,Safeguard & Early Help,Childrens Health,Equip / Furniture / Materials,Equipment - Purchase,LA101,23/09/2021,691442,259.98,REVENUE,MEDISAVE UK LTD,101716
North East Lincolnshire Council,http://statistics.data.gov.uk/id/local-authority/00FC),Childrens Services,Safeguard & Early Help,Childrens Health,Equip / Furniture / Materials,Equipment - Purchase,LA101,16/09/2021,688061,3285,REVENUE,MISTRY MEDICAL SUPPLIES LTD,149319
North East Lincolnshire Council,http://statistics.data.gov.uk/id/local-authority/00FC),Childrens Services,Safeguard & Early Help,Childrens Health,Equip / Furniture / Materials,Furniture - Purchase,LA105,15/09/2021,688163,2849.35,REVENUE,LYRECO UK LIMITED,101120
North East Lincolnshire Council,http://statistics.data.gov.uk/id/local-authority/00FC),Childrens Services,Safeguard & Early Help,Childrens Health,Communications And Computing,Telephones,LF112,22/09/2021,691233,1100,REVENUE,TOTAL COMPUTER NETWORKS LTD,141310
North East Lincolnshire Council,http://statistics.data.gov.uk/id/local-authority/00FC),Childrens Services,Safeguard & Early Help,Childrens Health,Communications And Computing,Telephones,LF112,21/09/2021,690715,550,REVENUE,TOTAL COMPUTER NETWORKS LTD,141310
North East Lincolnshire Council,http://statistics.data.gov.uk/id/local-authority/00FC),Childrens Services,Safeguard & Early Help,Childrens Health,Grants And Subscriptions,Subscriptions,LJ101,21/09/2021,690719,2706,REVENUE,INSTITUTE OF HEALTH VISITING,135605
North East Lincolnshire Council,http://statistics.data.gov.uk/id/local-authority/00FC),Childrens Services,Safeguard & Early Help,Childrens Health,Private Contractors,Translation & Interpreter Serv,PH113,09/09/2021,689109,260,REVENUE,HE WORDS,122711
North East Lincolnshire Council,http://statistics.data.gov.uk/id/local-authority/00FC),Childrens Services,Safeguard & Early Help,Childrens Health,Private Contractors,Translation & Interpreter Serv,PH113,09/09/2021,689110,305,REVENUE,HE WORDS,122711
North East Lincolnshire Council,http://statistics.data.gov.uk/id/local-authority/00FC),Childrens Services,Safeguard & Early Help,Family Hubs,Cleaning And Domestic Supplies,Cleaning - Services,GH102,15/09/2021,689024,1180,REVENUE,ENGIE SERVICES LTD,133267
North East Lincolnshire Council,http://statistics.data.gov.uk/id/local-authority/00FC),Childrens Services,Safeguard & Early Help,Head Of Child Resource & Reg,Communications And Computing,Computer H/Ware - Purchases,LF105,02/09/2021,688007,689.66,REVENUE,XMA LIMITED,100699
North East Lincolnshire Council,http://statistics.data.gov.uk/id/local-authority/00FC),Childrens Services,Safeguard & Early Help,Head Of Child Resource & Reg,Other Agencies,Additional Cost,PJ114,28/09/2021,963965,1040,REVENUE,REDACTED PERSONAL INFORMATION,REDACTED PERSONAL INFORMATION
North East Lincolnshire Council,http://statistics.data.gov.uk/id/local-authority/00FC),Childrens Services,Safeguard & Early Help,Head Of Child Resource & Reg,Other Agencies,Additional Cost,PJ114,21/09/2021,961519,350,REVENUE,REDACTED PERSONAL INFORMATION,REDACTED PERSONAL INFORMATION
North East Lincolnshire Council,http://statistics.data.gov.uk/id/local-authority/00FC),Childrens Services,Safeguard & Early Help,Head Of Child Resource & Reg,Other Agencies,Child Care Payments,PJ104,28/09/2021,964125,906.86,REVENUE,REDACTED PERSONAL INFORMATION,REDACTED PERSONAL INFORMATION
North East Lincolnshire Council,http://statistics.data.gov.uk/id/local-authority/00FC),Childrens Services,Safeguard & Early Help,Head Of Child Resource & Reg,Other Agencies,Child Care Payments,PJ104,07/09/2021,957363,364,REVENUE,REDACTED PERSONAL INFORMATION,REDACTED PERSONAL INFORMATION
North East Lincolnshire Council,http://statistics.data.gov.uk/id/local-authority/00FC),Childrens Services,Safeguard & Early Help,Head Of Child Resource & Reg,Other Agencies,Child Care Payments,PJ104,07/09/2021,957721,364,REVENUE,REDACTED PERSONAL INFORMATION,REDACTED PERSONAL INFORMATION
North East Lincolnshire Council,http://statistics.data.gov.uk/id/local-authority/00FC),Childrens Services,Safeguard & Early Help,Head Of Child Resource & Reg,Other Agencies,Child Care Payments,PJ104,07/09/2021,957473,364,REVENUE,REDACTED PERSONAL INFORMATION,REDACTED PERSONAL INFORMATION
North East Lincolnshire Council,http://statistics.data.gov.uk/id/local-authority/00FC),Childrens Services,Safeguard & Early Help,Head Of Child Resource & Reg,Other Agencies,Child Care Payments,PJ104,07/09/2021,957548,364,REVENUE,REDACTED PERSONAL INFORMATION,REDACTED PERSONAL INFORMATION
North East Lincolnshire Council,http://statistics.data.gov.uk/id/local-authority/00FC),Childrens Services,Safeguard & Early Help,Head Of Child Resource & Reg,Other Agencies,Child Care Payments,PJ104,14/09/2021,959171,364,REVENUE,REDACTED PERSONAL INFORMATION,REDACTED PERSONAL INFORMATION
North East Lincolnshire Council,http://statistics.data.gov.uk/id/local-authority/00FC),Childrens Services,Safeguard & Early Help,Head Of Child Resource & Reg,Other Agencies,Child Care Payments,PJ104,14/09/2021,959246,364,REVENUE,REDACTED PERSONAL INFORMATION,REDACTED PERSONAL INFORMATION
North East Lincolnshire Council,http://statistics.data.gov.uk/id/local-authority/00FC),Childrens Services,Safeguard & Early Help,Head Of Child Resource & Reg,Other Agencies,Child Care Payments,PJ104,14/09/2021,959059,364,REVENUE,REDACTED PERSONAL INFORMATION,REDACTED PERSONAL INFORMATION
North East Lincolnshire Council,http://statistics.data.gov.uk/id/local-authority/00FC),Childrens Services,Safeguard & Early Help,Head Of Child Resource & Reg,Other Agencies,Child Care Payments,PJ104,14/09/2021,959419,364,REVENUE,REDACTED PERSONAL INFORMATION,REDACTED PERSONAL INFORMATION
North East Lincolnshire Council,http://statistics.data.gov.uk/id/local-authority/00FC),Childrens Services,Safeguard & Early Help,Head Of Child Resource & Reg,Other Agencies,Child Care Payments,PJ104,21/09/2021,961231,364,REVENUE,REDACTED PERSONAL INFORMATION,REDACTED PERSONAL INFORMATION
North East Lincolnshire Council,http://statistics.data.gov.uk/id/local-authority/00FC),Childrens Services,Safeguard & Early Help,Head Of Child Resource & Reg,Other Agencies,Child Care Payments,PJ104,21/09/2021,961572,364,REVENUE,REDACTED PERSONAL INFORMATION,REDACTED PERSONAL INFORMATION
North East Lincolnshire Council,http://statistics.data.gov.uk/id/local-authority/00FC),Childrens Services,Safeguard & Early Help,Head Of Child Resource & Reg,Other Agencies,Child Care Payments,PJ104,21/09/2021,961338,364,REVENUE,REDACTED PERSONAL INFORMATION,REDACTED PERSONAL INFORMATION
North East Lincolnshire Council,http://statistics.data.gov.uk/id/local-authority/00FC),Childrens Services,Safeguard & Early Help,Head Of Child Resource & Reg,Other Agencies,Child Care Payments,PJ104,21/09/2021,961409,364,REVENUE,REDACTED PERSONAL INFORMATION,REDACTED PERSONAL INFORMATION
North East Lincolnshire Council,http://statistics.data.gov.uk/id/local-authority/00FC),Childrens Services,Safeguard & Early Help,Head Of Child Resource & Reg,Other Agencies,Child Care Payments,PJ104,28/09/2021,963786,364,REVENUE,REDACTED PERSONAL INFORMATION,REDACTED PERSONAL INFORMATION
North East Lincolnshire Council,http://statistics.data.gov.uk/id/local-authority/00FC),Childrens Services,Safeguard & Early Help,Head Of Child Resource & Reg,Other Agencies,Child Care Payments,PJ104,28/09/2021,963610,364,REVENUE,REDACTED PERSONAL INFORMATION,REDACTED PERSONAL INFORMATION
North East Lincolnshire Council,http://statistics.data.gov.uk/id/local-authority/00FC),Childrens Services,Safeguard & Early Help,Head Of Child Resource & Reg,Other Agencies,Child Care Payments,PJ104,28/09/2021,963715,364,REVENUE,REDACTED PERSONAL INFORMATION,REDACTED PERSONAL INFORMATION
North East Lincolnshire Council,http://statistics.data.gov.uk/id/local-authority/00FC),Childrens Services,Safeguard & Early Help,Head Of Child Resource & Reg,Other Agencies,Child Care Payments,PJ104,28/09/2021,963951,364,REVENUE,REDACTED PERSONAL INFORMATION,REDACTED PERSONAL INFORMATION
North East Lincolnshire Council,http://statistics.data.gov.uk/id/local-authority/00FC),Childrens Services,Safeguard & Early Help,Head Of Child Resource & Reg,Other Agencies,Child Care Payments,PJ104,07/09/2021,957764,304,REVENUE,REDACTED PERSONAL INFORMATION,REDACTED PERSONAL INFORMATION
North East Lincolnshire Council,http://statistics.data.gov.uk/id/local-authority/00FC),Childrens Services,Safeguard & Early Help,Head Of Child Resource & Reg,Other Agencies,Child Care Payments,PJ104,07/09/2021,957665,477,REVENUE,REDACTED PERSONAL INFORMATION,REDACTED PERSONAL INFORMATION
North East Lincolnshire Council,http://statistics.data.gov.uk/id/local-authority/00FC),Childrens Services,Safeguard & Early Help,Head Of Child Resource & Reg,Other Agencies,Child Care Payments,PJ104,14/09/2021,959365,477,REVENUE,REDACTED PERSONAL INFORMATION,REDACTED PERSONAL INFORMATION
North East Lincolnshire Council,http://statistics.data.gov.uk/id/local-authority/00FC),Childrens Services,Safeguard & Early Help,Head Of Child Resource & Reg,Other Agencies,Child Care Payments,PJ104,14/09/2021,959463,304,REVENUE,REDACTED PERSONAL INFORMATION,REDACTED PERSONAL INFORMATION
North East Lincolnshire Council,http://statistics.data.gov.uk/id/local-authority/00FC),Childrens Services,Safeguard & Early Help,Head Of Child Resource & Reg,Other Agencies,Child Care Payments,PJ104,21/09/2021,961519,477,REVENUE,REDACTED PERSONAL INFORMATION,REDACTED PERSONAL INFORMATION
North East Lincolnshire Council,http://statistics.data.gov.uk/id/local-authority/00FC),Childrens Services,Safeguard & Early Help,Head Of Child Resource & Reg,Other Agencies,Child Care Payments,PJ104,21/09/2021,961613,304,REVENUE,REDACTED PERSONAL INFORMATION,REDACTED PERSONAL INFORMATION
North East Lincolnshire Council,http://statistics.data.gov.uk/id/local-authority/00FC),Childrens Services,Safeguard & Early Help,Head Of Child Resource & Reg,Other Agencies,Child Care Payments,PJ104,28/09/2021,963992,304,REVENUE,REDACTED PERSONAL INFORMATION,REDACTED PERSONAL INFORMATION
North East Lincolnshire Council,http://statistics.data.gov.uk/id/local-authority/00FC),Childrens Services,Safeguard & Early Help,Head Of Child Resource & Reg,Other Agencies,Child Care Payments,PJ104,28/09/2021,963896,477,REVENUE,REDACTED PERSONAL INFORMATION,REDACTED PERSONAL INFORMATION
North East Lincolnshire Council,http://statistics.data.gov.uk/id/local-authority/00FC),Childrens Services,Safeguard & Early Help,Head Of Child Resource & Reg,Other Agencies,Child Care Payments,PJ104,07/09/2021,957352,290,REVENUE,REDACTED PERSONAL INFORMATION,REDACTED PERSONAL INFORMATION
North East Lincolnshire Council,http://statistics.data.gov.uk/id/local-authority/00FC),Childrens Services,Safeguard & Early Help,Head Of Child Resource & Reg,Other Agencies,Child Care Payments,PJ104,07/09/2021,957363,346,REVENUE,REDACTED PERSONAL INFORMATION,REDACTED PERSONAL INFORMATION
North East Lincolnshire Council,http://statistics.data.gov.uk/id/local-authority/00FC),Childrens Services,Safeguard & Early Help,Head Of Child Resource & Reg,Other Agencies,Child Care Payments,PJ104,07/09/2021,957721,290,REVENUE,REDACTED PERSONAL INFORMATION,REDACTED PERSONAL INFORMATION
North East Lincolnshire Council,http://statistics.data.gov.uk/id/local-authority/00FC),Childrens Services,Safeguard & Early Help,Head Of Child Resource & Reg,Other Agencies,Child Care Payments,PJ104,07/09/2021,957473,304,REVENUE,REDACTED PERSONAL INFORMATION,REDACTED PERSONAL INFORMATION
North East Lincolnshire Council,http://statistics.data.gov.uk/id/local-authority/00FC),Childrens Services,Safeguard & Early Help,Head Of Child Resource & Reg,Other Agencies,Child Care Payments,PJ104,07/09/2021,957548,290,REVENUE,REDACTED PERSONAL INFORMATION,REDACTED PERSONAL INFORMATION
North East Lincolnshire Council,http://statistics.data.gov.uk/id/local-authority/00FC),Childrens Services,Safeguard & Early Help,Head Of Child Resource & Reg,Other Agencies,Child Care Payments,PJ104,14/09/2021,959171,304,REVENUE,REDACTED PERSONAL INFORMATION,REDACTED PERSONAL INFORMATION
North East Lincolnshire Council,http://statistics.data.gov.uk/id/local-authority/00FC),Childrens Services,Safeguard & Early Help,Head Of Child Resource & Reg,Other Agencies,Child Care Payments,PJ104,14/09/2021,959246,290,REVENUE,REDACTED PERSONAL INFORMATION,REDACTED PERSONAL INFORMATION
North East Lincolnshire Council,http://statistics.data.gov.uk/id/local-authority/00FC),Childrens Services,Safeguard & Early Help,Head Of Child Resource & Reg,Other Agencies,Child Care Payments,PJ104,14/09/2021,959048,290,REVENUE,REDACTED PERSONAL INFORMATION,REDACTED PERSONAL INFORMATION
North East Lincolnshire Council,http://statistics.data.gov.uk/id/local-authority/00FC),Childrens Services,Safeguard & Early Help,Head Of Child Resource & Reg,Other Agencies,Child Care Payments,PJ104,14/09/2021,959059,346,REVENUE,REDACTED PERSONAL INFORMATION,REDACTED PERSONAL INFORMATION
North East Lincolnshire Council,http://statistics.data.gov.uk/id/local-authority/00FC),Childrens Services,Safeguard & Early Help,Head Of Child Resource & Reg,Other Agencies,Child Care Payments,PJ104,14/09/2021,959419,290,REVENUE,REDACTED PERSONAL INFORMATION,REDACTED PERSONAL INFORMATION
North East Lincolnshire Council,http://statistics.data.gov.uk/id/local-authority/00FC),Childrens Services,Safeguard & Early Help,Head Of Child Resource & Reg,Other Agencies,Child Care Payments,PJ104,21/09/2021,961220,290,REVENUE,REDACTED PERSONAL INFORMATION,REDACTED PERSONAL INFORMATION
North East Lincolnshire Council,http://statistics.data.gov.uk/id/local-authority/00FC),Childrens Services,Safeguard & Early Help,Head Of Child Resource & Reg,Other Agencies,Child Care Payments,PJ104,21/09/2021,961231,346,REVENUE,REDACTED PERSONAL INFORMATION,REDACTED PERSONAL INFORMATION
North East Lincolnshire Council,http://statistics.data.gov.uk/id/local-authority/00FC),Childrens Services,Safeguard & Early Help,Head Of Child Resource & Reg,Other Agencies,Child Care Payments,PJ104,21/09/2021,961572,290,REVENUE,REDACTED PERSONAL INFORMATION,REDACTED PERSONAL INFORMATION
North East Lincolnshire Council,http://statistics.data.gov.uk/id/local-authority/00FC),Childrens Services,Safeguard & Early Help,Head Of Child Resource & Reg,Other Agencies,Child Care Payments,PJ104,21/09/2021,961338,304,REVENUE,REDACTED PERSONAL INFORMATION,REDACTED PERSONAL INFORMATION
North East Lincolnshire Council,http://statistics.data.gov.uk/id/local-authority/00FC),Childrens Services,Safeguard & Early Help,Head Of Child Resource & Reg,Other Agencies,Child Care Payments,PJ104,21/09/2021,961409,290,REVENUE,REDACTED PERSONAL INFORMATION,REDACTED PERSONAL INFORMATION
North East Lincolnshire Council,http://statistics.data.gov.uk/id/local-authority/00FC),Childrens Services,Safeguard & Early Help,Head Of Child Resource & Reg,Other Agencies,Child Care Payments,PJ104,28/09/2021,963786,290,REVENUE,REDACTED PERSONAL INFORMATION,REDACTED PERSONAL INFORMATION
North East Lincolnshire Council,http://statistics.data.gov.uk/id/local-authority/00FC),Childrens Services,Safeguard & Early Help,Head Of Child Resource & Reg,Other Agencies,Child Care Payments,PJ104,28/09/2021,963599,290,REVENUE,REDACTED PERSONAL INFORMATION,REDACTED PERSONAL INFORMATION
North East Lincolnshire Council,http://statistics.data.gov.uk/id/local-authority/00FC),Childrens Services,Safeguard & Early Help,Head Of Child Resource & Reg,Other Agencies,Child Care Payments,PJ104,28/09/2021,963610,346,REVENUE,REDACTED PERSONAL INFORMATION,REDACTED PERSONAL INFORMATION
North East Lincolnshire Council,http://statistics.data.gov.uk/id/local-authority/00FC),Childrens Services,Safeguard & Early Help,Head Of Child Resource & Reg,Other Agencies,Child Care Payments,PJ104,28/09/2021,963715,304,REVENUE,REDACTED PERSONAL INFORMATION,REDACTED PERSONAL INFORMATION
North East Lincolnshire Council,http://statistics.data.gov.uk/id/local-authority/00FC),Childrens Services,Safeguard & Early Help,Head Of Child Resource & Reg,Other Agencies,Child Care Payments,PJ104,28/09/2021,963951,290,REVENUE,REDACTED PERSONAL INFORMATION,REDACTED PERSONAL INFORMATION
North East Lincolnshire Council,http://statistics.data.gov.uk/id/local-authority/00FC),Childrens Services,Safeguard & Early Help,Head Of Child Resource & Reg,Other Agencies,Child Care Payments,PJ104,28/09/2021,963676,304,REVENUE,REDACTED PERSONAL INFORMATION,REDACTED PERSONAL INFORMATION
North East Lincolnshire Council,http://statistics.data.gov.uk/id/local-authority/00FC),Childrens Services,Safeguard & Early Help,Head Of Child Resource & Reg,Other Agencies,Child Care Payments,PJ104,07/09/2021,957579,364,REVENUE,REDACTED PERSONAL INFORMATION,REDACTED PERSONAL INFORMATION
North East Lincolnshire Council,http://statistics.data.gov.uk/id/local-authority/00FC),Childrens Services,Safeguard & Early Help,Head Of Child Resource & Reg,Other Agencies,Child Care Payments,PJ104,14/09/2021,959277,364,REVENUE,REDACTED PERSONAL INFORMATION,REDACTED PERSONAL INFORMATION
North East Lincolnshire Council,http://statistics.data.gov.uk/id/local-authority/00FC),Childrens Services,Safeguard & Early Help,Head Of Child Resource & Reg,Other Agencies,Child Care Payments,PJ104,21/09/2021,961437,364,REVENUE,REDACTED PERSONAL INFORMATION,REDACTED PERSONAL INFORMATION
North East Lincolnshire Council,http://statistics.data.gov.uk/id/local-authority/00FC),Childrens Services,Safeguard & Early Help,Head Of Child Resource & Reg,Other Agencies,Child Care Payments,PJ104,28/09/2021,963815,364,REVENUE,REDACTED PERSONAL INFORMATION,REDACTED PERSONAL INFORMATION
North East Lincolnshire Council,http://statistics.data.gov.uk/id/local-authority/00FC),Childrens Services,Safeguard & Early Help,Head Of Child Resource & Reg,Other Agencies,Child Care Payments,PJ104,07/09/2021,957579,346,REVENUE,REDACTED PERSONAL INFORMATION,REDACTED PERSONAL INFORMATION
North East Lincolnshire Council,http://statistics.data.gov.uk/id/local-authority/00FC),Childrens Services,Safeguard & Early Help,Head Of Child Resource & Reg,Other Agencies,Child Care Payments,PJ104,14/09/2021,959277,346,REVENUE,REDACTED PERSONAL INFORMATION,REDACTED PERSONAL INFORMATION
North East Lincolnshire Council,http://statistics.data.gov.uk/id/local-authority/00FC),Childrens Services,Safeguard & Early Help,Head Of Child Resource & Reg,Other Agencies,Child Care Payments,PJ104,21/09/2021,961437,346,REVENUE,REDACTED PERSONAL INFORMATION,REDACTED PERSONAL INFORMATION
North East Lincolnshire Council,http://statistics.data.gov.uk/id/local-authority/00FC),Childrens Services,Safeguard & Early Help,Head Of Child Resource & Reg,Other Agencies,Child Care Payments,PJ104,28/09/2021,963815,346,REVENUE,REDACTED PERSONAL INFORMATION,REDACTED PERSONAL INFORMATION
North East Lincolnshire Council,http://statistics.data.gov.uk/id/local-authority/00FC),Childrens Services,Safeguard & Early Help,Head Of Child Resource & Reg,Other Agencies,Child Care Payments,PJ104,14/09/2021,959406,364,REVENUE,REDACTED PERSONAL INFORMATION,REDACTED PERSONAL INFORMATION
North East Lincolnshire Council,http://statistics.data.gov.uk/id/local-authority/00FC),Childrens Services,Safeguard & Early Help,Head Of Child Resource & Reg,Other Agencies,Child Care Payments,PJ104,14/09/2021,959406,276,REVENUE,REDACTED PERSONAL INFORMATION,REDACTED PERSONAL INFORMATION
North East Lincolnshire Council,http://statistics.data.gov.uk/id/local-authority/00FC),Childrens Services,Safeguard & Early Help,Head Of Child Resource & Reg,Other Agencies,Child Care Payments,PJ104,07/09/2021,957785,346,REVENUE,REDACTED PERSONAL INFORMATION,REDACTED PERSONAL INFORMATION
North East Lincolnshire Council,http://statistics.data.gov.uk/id/local-authority/00FC),Childrens Services,Safeguard & Early Help,Head Of Child Resource & Reg,Other Agencies,Child Care Payments,PJ104,21/09/2021,961614,1066.31,REVENUE,REDACTED PERSONAL INFORMATION,REDACTED PERSONAL INFORMATION
North East Lincolnshire Council,http://statistics.data.gov.uk/id/local-authority/00FC),Childrens Services,Safeguard & Early Help,Head Of Child Resource & Reg,Other Agencies,Child Care Payments,PJ104,28/09/2021,963725,303.7,REVENUE,REDACTED PERSONAL INFORMATION,REDACTED PERSONAL INFORMATION
North East Lincolnshire Council,http://statistics.data.gov.uk/id/local-authority/00FC),Childrens Services,Safeguard & Early Help,Head Of Child Resource & Reg,Other Agencies,Child Care Payments,PJ104,28/09/2021,963948,254.85,REVENUE,REDACTED PERSONAL INFORMATION,REDACTED PERSONAL INFORMATION
North East Lincolnshire Council,http://statistics.data.gov.uk/id/local-authority/00FC),Childrens Services,Safeguard & Early Help,Head Of Child Resource & Reg,Other Agencies,Child Care Payments,PJ104,14/09/2021,959406,364,REVENUE,REDACTED PERSONAL INFORMATION,REDACTED PERSONAL INFORMATION
North East Lincolnshire Council,http://statistics.data.gov.uk/id/local-authority/00FC),Childrens Services,Safeguard & Early Help,Head Of Child Resource & Reg,Other Agencies,Child Care Payments,PJ104,14/09/2021,959406,276,REVENUE,REDACTED PERSONAL INFORMATION,REDACTED PERSONAL INFORMATION
North East Lincolnshire Council,http://statistics.data.gov.uk/id/local-authority/00FC),Childrens Services,Safeguard & Early Help,Head Of Child Resource & Reg,Other Agencies,Child Care Payments,PJ104,14/09/2021,959122,335.14,REVENUE,REDACTED PERSONAL INFORMATION,REDACTED PERSONAL INFORMATION
North East Lincolnshire Council,http://statistics.data.gov.uk/id/local-authority/00FC),Childrens Services,Safeguard & Early Help,Head Of Child Resource & Reg,Other Agencies,Child Care Payments,PJ104,07/09/2021,957871,290,REVENUE,REDACTED PERSONAL INFORMATION,REDACTED PERSONAL INFORMATION
North East Lincolnshire Council,http://statistics.data.gov.uk/id/local-authority/00FC),Childrens Services,Safeguard & Early Help,Head Of Child Resource & Reg,Other Agencies,Child Care Payments,PJ104,14/09/2021,959569,290,REVENUE,REDACTED PERSONAL INFORMATION,REDACTED PERSONAL INFORMATION
North East Lincolnshire Council,http://statistics.data.gov.uk/id/local-authority/00FC),Childrens Services,Safeguard & Early Help,Head Of Child Resource & Reg,Other Agencies,Child Care Payments,PJ104,21/09/2021,961723,290,REVENUE,REDACTED PERSONAL INFORMATION,REDACTED PERSONAL INFORMATION
North East Lincolnshire Council,http://statistics.data.gov.uk/id/local-authority/00FC),Childrens Services,Safeguard & Early Help,Head Of Child Resource & Reg,Other Agencies,Child Care Payments,PJ104,28/09/2021,964098,290,REVENUE,REDACTED PERSONAL INFORMATION,REDACTED PERSONAL INFORMATION
North East Lincolnshire Council,http://statistics.data.gov.uk/id/local-authority/00FC),Childrens Services,Safeguard & Early Help,Head Of Child Resource & Reg,Other Agencies,Child Care Payments,PJ104,07/09/2021,957646,304,REVENUE,REDACTED PERSONAL INFORMATION,REDACTED PERSONAL INFORMATION
North East Lincolnshire Council,http://statistics.data.gov.uk/id/local-authority/00FC),Childrens Services,Safeguard & Early Help,Head Of Child Resource & Reg,Other Agencies,Child Care Payments,PJ104,14/09/2021,959344,304,REVENUE,REDACTED PERSONAL INFORMATION,REDACTED PERSONAL INFORMATION
North East Lincolnshire Council,http://statistics.data.gov.uk/id/local-authority/00FC),Childrens Services,Safeguard & Early Help,Head Of Child Resource & Reg,Other Agencies,Child Care Payments,PJ104,21/09/2021,961498,304,REVENUE,REDACTED PERSONAL INFORMATION,REDACTED PERSONAL INFORMATION
North East Lincolnshire Council,http://statistics.data.gov.uk/id/local-authority/00FC),Childrens Services,Safeguard & Early Help,Head Of Child Resource & Reg,Other Agencies,Child Care Payments,PJ104,28/09/2021,963877,304,REVENUE,REDACTED PERSONAL INFORMATION,REDACTED PERSONAL INFORMATION
North East Lincolnshire Council,http://statistics.data.gov.uk/id/local-authority/00FC),Childrens Services,Safeguard & Early Help,Head Of Child Resource & Reg,Other Agencies,Child Care Payments,PJ104,07/09/2021,957895,276,REVENUE,REDACTED PERSONAL INFORMATION,REDACTED PERSONAL INFORMATION
North East Lincolnshire Council,http://statistics.data.gov.uk/id/local-authority/00FC),Childrens Services,Safeguard & Early Help,Head Of Child Resource & Reg,Other Agencies,Child Care Payments,PJ104,07/09/2021,957714,364,REVENUE,REDACTED PERSONAL INFORMATION,REDACTED PERSONAL INFORMATION
North East Lincolnshire Council,http://statistics.data.gov.uk/id/local-authority/00FC),Childrens Services,Safeguard & Early Help,Head Of Child Resource & Reg,Other Agencies,Child Care Payments,PJ104,14/09/2021,959413,364,REVENUE,REDACTED PERSONAL INFORMATION,REDACTED PERSONAL INFORMATION
North East Lincolnshire Council,http://statistics.data.gov.uk/id/local-authority/00FC),Childrens Services,Safeguard & Early Help,Head Of Child Resource & Reg,Other Agencies,Child Care Payments,PJ104,21/09/2021,961566,364,REVENUE,REDACTED PERSONAL INFORMATION,REDACTED PERSONAL INFORMATION
North East Lincolnshire Council,http://statistics.data.gov.uk/id/local-authority/00FC),Childrens Services,Safeguard & Early Help,Head Of Child Resource & Reg,Other Agencies,Child Care Payments,PJ104,28/09/2021,963945,364,REVENUE,REDACTED PERSONAL INFORMATION,REDACTED PERSONAL INFORMATION
North East Lincolnshire Council,http://statistics.data.gov.uk/id/local-authority/00FC),Childrens Services,Safeguard & Early Help,Head Of Child Resource & Reg,Other Agencies,Child Care Payments,PJ104,07/09/2021,957714,290,REVENUE,REDACTED PERSONAL INFORMATION,REDACTED PERSONAL INFORMATION
North East Lincolnshire Council,http://statistics.data.gov.uk/id/local-authority/00FC),Childrens Services,Safeguard & Early Help,Head Of Child Resource & Reg,Other Agencies,Child Care Payments,PJ104,14/09/2021,959413,290,REVENUE,REDACTED PERSONAL INFORMATION,REDACTED PERSONAL INFORMATION
North East Lincolnshire Council,http://statistics.data.gov.uk/id/local-authority/00FC),Childrens Services,Safeguard & Early Help,Head Of Child Resource & Reg,Other Agencies,Child Care Payments,PJ104,21/09/2021,961566,290,REVENUE,REDACTED PERSONAL INFORMATION,REDACTED PERSONAL INFORMATION
North East Lincolnshire Council,http://statistics.data.gov.uk/id/local-authority/00FC),Childrens Services,Safeguard & Early Help,Head Of Child Resource & Reg,Other Agencies,Child Care Payments,PJ104,28/09/2021,963945,290,REVENUE,REDACTED PERSONAL INFORMATION,REDACTED PERSONAL INFORMATION
North East Lincolnshire Council,http://statistics.data.gov.uk/id/local-authority/00FC),Childrens Services,Safeguard & Early Help,Head Of Child Resource & Reg,Other Agencies,Child Care Payments,PJ104,07/09/2021,957884,346,REVENUE,REDACTED PERSONAL INFORMATION,REDACTED PERSONAL INFORMATION
North East Lincolnshire Council,http://statistics.data.gov.uk/id/local-authority/00FC),Childrens Services,Safeguard & Early Help,Head Of Child Resource & Reg,Other Agencies,Child Care Payments,PJ104,14/09/2021,959582,346,REVENUE,REDACTED PERSONAL INFORMATION,REDACTED PERSONAL INFORMATION
North East Lincolnshire Council,http://statistics.data.gov.uk/id/local-authority/00FC),Childrens Services,Safeguard & Early Help,Head Of Child Resource & Reg,Other Agencies,Child Care Payments,PJ104,21/09/2021,961735,346,REVENUE,REDACTED PERSONAL INFORMATION,REDACTED PERSONAL INFORMATION
North East Lincolnshire Council,http://statistics.data.gov.uk/id/local-authority/00FC),Childrens Services,Safeguard & Early Help,Head Of Child Resource & Reg,Other Agencies,Child Care Payments,PJ104,28/09/2021,964110,346,REVENUE,REDACTED PERSONAL INFORMATION,REDACTED PERSONAL INFORMATION
North East Lincolnshire Council,http://statistics.data.gov.uk/id/local-authority/00FC),Childrens Services,Safeguard & Early Help,Head Of Child Resource & Reg,Other Agencies,Child Care Payments,PJ104,14/09/2021,959482,963.86,REVENUE,REDACTED PERSONAL INFORMATION,REDACTED PERSONAL INFORMATION
North East Lincolnshire Council,http://statistics.data.gov.uk/id/local-authority/00FC),Childrens Services,Safeguard & Early Help,Head Of Child Resource & Reg,Other Agencies,Child Care Payments,PJ104,14/09/2021,959062,910,REVENUE,REDACTED PERSONAL INFORMATION,REDACTED PERSONAL INFORMATION
North East Lincolnshire Council,http://statistics.data.gov.uk/id/local-authority/00FC),Childrens Services,Safeguard & Early Help,Head Of Child Resource & Reg,Other Agencies,Child Care Payments,PJ104,14/09/2021,959406,364,REVENUE,REDACTED PERSONAL INFORMATION,REDACTED PERSONAL INFORMATION
North East Lincolnshire Council,http://statistics.data.gov.uk/id/local-authority/00FC),Childrens Services,Safeguard & Early Help,Head Of Child Resource & Reg,Other Agencies,Child Care Payments,PJ104,14/09/2021,959062,-552,REVENUE,REDACTED PERSONAL INFORMATION,REDACTED PERSONAL INFORMATION
North East Lincolnshire Council,http://statistics.data.gov.uk/id/local-authority/00FC),Childrens Services,Safeguard & Early Help,Head Of Child Resource & Reg,Other Agencies,Child Care Payments,PJ104,14/09/2021,959406,276,REVENUE,REDACTED PERSONAL INFORMATION,REDACTED PERSONAL INFORMATION
North East Lincolnshire Council,http://statistics.data.gov.uk/id/local-authority/00FC),Childrens Services,Safeguard & Early Help,Head Of Child Resource & Reg,Other Agencies,Child Care Payments,PJ104,28/09/2021,963686,286,REVENUE,REDACTED PERSONAL INFORMATION,REDACTED PERSONAL INFORMATION
North East Lincolnshire Council,http://statistics.data.gov.uk/id/local-authority/00FC),Childrens Services,Safeguard & Early Help,Head Of Child Resource & Reg,Other Agencies,Child Care Payments,PJ104,28/09/2021,963686,250.86,REVENUE,REDACTED PERSONAL INFORMATION,REDACTED PERSONAL INFORMATION
North East Lincolnshire Council,http://statistics.data.gov.uk/id/local-authority/00FC),Childrens Services,Safeguard & Early Help,Head Of Child Resource & Reg,Other Agencies,Child Care Payments,PJ104,07/09/2021,957894,2931.43,REVENUE,REDACTED PERSONAL INFORMATION,REDACTED PERSONAL INFORMATION
North East Lincolnshire Council,http://statistics.data.gov.uk/id/local-authority/00FC),Childrens Services,Safeguard & Early Help,Head Of Child Resource & Reg,Other Agencies,Contract Plus,PJ135,07/09/2021,957338,315,REVENUE,REDACTED PERSONAL INFORMATION,REDACTED PERSONAL INFORMATION
North East Lincolnshire Council,http://statistics.data.gov.uk/id/local-authority/00FC),Childrens Services,Safeguard & Early Help,Head Of Child Resource & Reg,Other Agencies,Contract Plus,PJ135,07/09/2021,957349,315,REVENUE,REDACTED PERSONAL INFORMATION,REDACTED PERSONAL INFORMATION
North East Lincolnshire Council,http://statistics.data.gov.uk/id/local-authority/00FC),Childrens Services,Safeguard & Early Help,Head Of Child Resource & Reg,Other Agencies,Contract Plus,PJ135,07/09/2021,957352,315,REVENUE,REDACTED PERSONAL INFORMATION,REDACTED PERSONAL INFORMATION
North East Lincolnshire Council,http://statistics.data.gov.uk/id/local-authority/00FC),Childrens Services,Safeguard & Early Help,Head Of Child Resource & Reg,Other Agencies,Contract Plus,PJ135,07/09/2021,957364,315,REVENUE,REDACTED PERSONAL INFORMATION,REDACTED PERSONAL INFORMATION
North East Lincolnshire Council,http://statistics.data.gov.uk/id/local-authority/00FC),Childrens Services,Safeguard & Early Help,Head Of Child Resource & Reg,Other Agencies,Contract Plus,PJ135,07/09/2021,957376,315,REVENUE,REDACTED PERSONAL INFORMATION,REDACTED PERSONAL INFORMATION
North East Lincolnshire Council,http://statistics.data.gov.uk/id/local-authority/00FC),Childrens Services,Safeguard & Early Help,Head Of Child Resource & Reg,Other Agencies,Contract Plus,PJ135,07/09/2021,957377,315,REVENUE,REDACTED PERSONAL INFORMATION,REDACTED PERSONAL INFORMATION
North East Lincolnshire Council,http://statistics.data.gov.uk/id/local-authority/00FC),Childrens Services,Safeguard & Early Help,Head Of Child Resource & Reg,Other Agencies,Contract Plus,PJ135,07/09/2021,957398,315,REVENUE,REDACTED PERSONAL INFORMATION,REDACTED PERSONAL INFORMATION
North East Lincolnshire Council,http://statistics.data.gov.uk/id/local-authority/00FC),Childrens Services,Safeguard & Early Help,Head Of Child Resource & Reg,Other Agencies,Contract Plus,PJ135,07/09/2021,957418,315,REVENUE,REDACTED PERSONAL INFORMATION,REDACTED PERSONAL INFORMATION
North East Lincolnshire Council,http://statistics.data.gov.uk/id/local-authority/00FC),Childrens Services,Safeguard & Early Help,Head Of Child Resource & Reg,Other Agencies,Contract Plus,PJ135,07/09/2021,957422,315,REVENUE,REDACTED PERSONAL INFORMATION,REDACTED PERSONAL INFORMATION
North East Lincolnshire Council,http://statistics.data.gov.uk/id/local-authority/00FC),Childrens Services,Safeguard & Early Help,Head Of Child Resource & Reg,Other Agencies,Contract Plus,PJ135,07/09/2021,957475,315,REVENUE,REDACTED PERSONAL INFORMATION,REDACTED PERSONAL INFORMATION
North East Lincolnshire Council,http://statistics.data.gov.uk/id/local-authority/00FC),Childrens Services,Safeguard & Early Help,Head Of Child Resource & Reg,Other Agencies,Contract Plus,PJ135,07/09/2021,957492,315,REVENUE,REDACTED PERSONAL INFORMATION,REDACTED PERSONAL INFORMATION
North East Lincolnshire Council,http://statistics.data.gov.uk/id/local-authority/00FC),Childrens Services,Safeguard & Early Help,Head Of Child Resource & Reg,Other Agencies,Contract Plus,PJ135,07/09/2021,957508,315,REVENUE,REDACTED PERSONAL INFORMATION,REDACTED PERSONAL INFORMATION
North East Lincolnshire Council,http://statistics.data.gov.uk/id/local-authority/00FC),Childrens Services,Safeguard & Early Help,Head Of Child Resource & Reg,Other Agencies,Contract Plus,PJ135,07/09/2021,957518,315,REVENUE,REDACTED PERSONAL INFORMATION,REDACTED PERSONAL INFORMATION
North East Lincolnshire Council,http://statistics.data.gov.uk/id/local-authority/00FC),Childrens Services,Safeguard & Early Help,Head Of Child Resource & Reg,Other Agencies,Contract Plus,PJ135,07/09/2021,957544,315,REVENUE,REDACTED PERSONAL INFORMATION,REDACTED PERSONAL INFORMATION
North East Lincolnshire Council,http://statistics.data.gov.uk/id/local-authority/00FC),Childrens Services,Safeguard & Early Help,Head Of Child Resource & Reg,Other Agencies,Contract Plus,PJ135,07/09/2021,957641,315,REVENUE,REDACTED PERSONAL INFORMATION,REDACTED PERSONAL INFORMATION
North East Lincolnshire Council,http://statistics.data.gov.uk/id/local-authority/00FC),Childrens Services,Safeguard & Early Help,Head Of Child Resource & Reg,Other Agencies,Contract Plus,PJ135,14/09/2021,959173,315,REVENUE,REDACTED PERSONAL INFORMATION,REDACTED PERSONAL INFORMATION
North East Lincolnshire Council,http://statistics.data.gov.uk/id/local-authority/00FC),Childrens Services,Safeguard & Early Help,Head Of Child Resource & Reg,Other Agencies,Contract Plus,PJ135,14/09/2021,959190,315,REVENUE,REDACTED PERSONAL INFORMATION,REDACTED PERSONAL INFORMATION
North East Lincolnshire Council,http://statistics.data.gov.uk/id/local-authority/00FC),Childrens Services,Safeguard & Early Help,Head Of Child Resource & Reg,Other Agencies,Contract Plus,PJ135,14/09/2021,959206,315,REVENUE,REDACTED PERSONAL INFORMATION,REDACTED PERSONAL INFORMATION
North East Lincolnshire Council,http://statistics.data.gov.uk/id/local-authority/00FC),Childrens Services,Safeguard & Early Help,Head Of Child Resource & Reg,Other Agencies,Contract Plus,PJ135,14/09/2021,959216,315,REVENUE,REDACTED PERSONAL INFORMATION,REDACTED PERSONAL INFORMATION
North East Lincolnshire Council,http://statistics.data.gov.uk/id/local-authority/00FC),Childrens Services,Safeguard & Early Help,Head Of Child Resource & Reg,Other Agencies,Contract Plus,PJ135,14/09/2021,959242,315,REVENUE,REDACTED PERSONAL INFORMATION,REDACTED PERSONAL INFORMATION
North East Lincolnshire Council,http://statistics.data.gov.uk/id/local-authority/00FC),Childrens Services,Safeguard & Early Help,Head Of Child Resource & Reg,Other Agencies,Contract Plus,PJ135,14/09/2021,959033,315,REVENUE,REDACTED PERSONAL INFORMATION,REDACTED PERSONAL INFORMATION
North East Lincolnshire Council,http://statistics.data.gov.uk/id/local-authority/00FC),Childrens Services,Safeguard & Early Help,Head Of Child Resource & Reg,Other Agencies,Contract Plus,PJ135,14/09/2021,959339,315,REVENUE,REDACTED PERSONAL INFORMATION,REDACTED PERSONAL INFORMATION
North East Lincolnshire Council,http://statistics.data.gov.uk/id/local-authority/00FC),Childrens Services,Safeguard & Early Help,Head Of Child Resource & Reg,Other Agencies,Contract Plus,PJ135,14/09/2021,959045,315,REVENUE,REDACTED PERSONAL INFORMATION,REDACTED PERSONAL INFORMATION
North East Lincolnshire Council,http://statistics.data.gov.uk/id/local-authority/00FC),Childrens Services,Safeguard & Early Help,Head Of Child Resource & Reg,Other Agencies,Contract Plus,PJ135,14/09/2021,959048,315,REVENUE,REDACTED PERSONAL INFORMATION,REDACTED PERSONAL INFORMATION
North East Lincolnshire Council,http://statistics.data.gov.uk/id/local-authority/00FC),Childrens Services,Safeguard & Early Help,Head Of Child Resource & Reg,Other Agencies,Contract Plus,PJ135,14/09/2021,959060,315,REVENUE,REDACTED PERSONAL INFORMATION,REDACTED PERSONAL INFORMATION
North East Lincolnshire Council,http://statistics.data.gov.uk/id/local-authority/00FC),Childrens Services,Safeguard & Early Help,Head Of Child Resource & Reg,Other Agencies,Contract Plus,PJ135,14/09/2021,959072,315,REVENUE,REDACTED PERSONAL INFORMATION,REDACTED PERSONAL INFORMATION
North East Lincolnshire Council,http://statistics.data.gov.uk/id/local-authority/00FC),Childrens Services,Safeguard & Early Help,Head Of Child Resource & Reg,Other Agencies,Contract Plus,PJ135,14/09/2021,959073,315,REVENUE,REDACTED PERSONAL INFORMATION,REDACTED PERSONAL INFORMATION
North East Lincolnshire Council,http://statistics.data.gov.uk/id/local-authority/00FC),Childrens Services,Safeguard & Early Help,Head Of Child Resource & Reg,Other Agencies,Contract Plus,PJ135,14/09/2021,959095,315,REVENUE,REDACTED PERSONAL INFORMATION,REDACTED PERSONAL INFORMATION
North East Lincolnshire Council,http://statistics.data.gov.uk/id/local-authority/00FC),Childrens Services,Safeguard & Early Help,Head Of Child Resource & Reg,Other Agencies,Contract Plus,PJ135,14/09/2021,959115,315,REVENUE,REDACTED PERSONAL INFORMATION,REDACTED PERSONAL INFORMATION
North East Lincolnshire Council,http://statistics.data.gov.uk/id/local-authority/00FC),Childrens Services,Safeguard & Early Help,Head Of Child Resource & Reg,Other Agencies,Contract Plus,PJ135,14/09/2021,959119,315,REVENUE,REDACTED PERSONAL INFORMATION,REDACTED PERSONAL INFORMATION
North East Lincolnshire Council,http://statistics.data.gov.uk/id/local-authority/00FC),Childrens Services,Safeguard & Early Help,Head Of Child Resource & Reg,Other Agencies,Contract Plus,PJ135,21/09/2021,961493,315,REVENUE,REDACTED PERSONAL INFORMATION,REDACTED PERSONAL INFORMATION
North East Lincolnshire Council,http://statistics.data.gov.uk/id/local-authority/00FC),Childrens Services,Safeguard & Early Help,Head Of Child Resource & Reg,Other Agencies,Contract Plus,PJ135,21/09/2021,961202,315,REVENUE,REDACTED PERSONAL INFORMATION,REDACTED PERSONAL INFORMATION
North East Lincolnshire Council,http://statistics.data.gov.uk/id/local-authority/00FC),Childrens Services,Safeguard & Early Help,Head Of Child Resource & Reg,Other Agencies,Contract Plus,PJ135,21/09/2021,961216,315,REVENUE,REDACTED PERSONAL INFORMATION,REDACTED PERSONAL INFORMATION
North East Lincolnshire Council,http://statistics.data.gov.uk/id/local-authority/00FC),Childrens Services,Safeguard & Early Help,Head Of Child Resource & Reg,Other Agencies,Contract Plus,PJ135,21/09/2021,961220,315,REVENUE,REDACTED PERSONAL INFORMATION,REDACTED PERSONAL INFORMATION
North East Lincolnshire Council,http://statistics.data.gov.uk/id/local-authority/00FC),Childrens Services,Safeguard & Early Help,Head Of Child Resource & Reg,Other Agencies,Contract Plus,PJ135,21/09/2021,961232,315,REVENUE,REDACTED PERSONAL INFORMATION,REDACTED PERSONAL INFORMATION
North East Lincolnshire Council,http://statistics.data.gov.uk/id/local-authority/00FC),Childrens Services,Safeguard & Early Help,Head Of Child Resource & Reg,Other Agencies,Contract Plus,PJ135,21/09/2021,961244,315,REVENUE,REDACTED PERSONAL INFORMATION,REDACTED PERSONAL INFORMATION
North East Lincolnshire Council,http://statistics.data.gov.uk/id/local-authority/00FC),Childrens Services,Safeguard & Early Help,Head Of Child Resource & Reg,Other Agencies,Contract Plus,PJ135,21/09/2021,961245,315,REVENUE,REDACTED PERSONAL INFORMATION,REDACTED PERSONAL INFORMATION
North East Lincolnshire Council,http://statistics.data.gov.uk/id/local-authority/00FC),Childrens Services,Safeguard & Early Help,Head Of Child Resource & Reg,Other Agencies,Contract Plus,PJ135,21/09/2021,961265,315,REVENUE,REDACTED PERSONAL INFORMATION,REDACTED PERSONAL INFORMATION
North East Lincolnshire Council,http://statistics.data.gov.uk/id/local-authority/00FC),Childrens Services,Safeguard & Early Help,Head Of Child Resource & Reg,Other Agencies,Contract Plus,PJ135,21/09/2021,961285,315,REVENUE,REDACTED PERSONAL INFORMATION,REDACTED PERSONAL INFORMATION
North East Lincolnshire Council,http://statistics.data.gov.uk/id/local-authority/00FC),Childrens Services,Safeguard & Early Help,Head Of Child Resource & Reg,Other Agencies,Contract Plus,PJ135,21/09/2021,961288,315,REVENUE,REDACTED PERSONAL INFORMATION,REDACTED PERSONAL INFORMATION
North East Lincolnshire Council,http://statistics.data.gov.uk/id/local-authority/00FC),Childrens Services,Safeguard & Early Help,Head Of Child Resource & Reg,Other Agencies,Contract Plus,PJ135,21/09/2021,961340,315,REVENUE,REDACTED PERSONAL INFORMATION,REDACTED PERSONAL INFORMATION
North East Lincolnshire Council,http://statistics.data.gov.uk/id/local-authority/00FC),Childrens Services,Safeguard & Early Help,Head Of Child Resource & Reg,Other Agencies,Contract Plus,PJ135,21/09/2021,961355,315,REVENUE,REDACTED PERSONAL INFORMATION,REDACTED PERSONAL INFORMATION
North East Lincolnshire Council,http://statistics.data.gov.uk/id/local-authority/00FC),Childrens Services,Safeguard & Early Help,Head Of Child Resource & Reg,Other Agencies,Contract Plus,PJ135,21/09/2021,961371,315,REVENUE,REDACTED PERSONAL INFORMATION,REDACTED PERSONAL INFORMATION
North East Lincolnshire Council,http://statistics.data.gov.uk/id/local-authority/00FC),Childrens Services,Safeguard & Early Help,Head Of Child Resource & Reg,Other Agencies,Contract Plus,PJ135,21/09/2021,961381,315,REVENUE,REDACTED PERSONAL INFORMATION,REDACTED PERSONAL INFORMATION
North East Lincolnshire Council,http://statistics.data.gov.uk/id/local-authority/00FC),Childrens Services,Safeguard & Early Help,Head Of Child Resource & Reg,Other Agencies,Contract Plus,PJ135,21/09/2021,961406,315,REVENUE,REDACTED PERSONAL INFORMATION,REDACTED PERSONAL INFORMATION
North East Lincolnshire Council,http://statistics.data.gov.uk/id/local-authority/00FC),Childrens Services,Safeguard & Early Help,Head Of Child Resource & Reg,Other Agencies,Contract Plus,PJ135,28/09/2021,963783,315,REVENUE,REDACTED PERSONAL INFORMATION,REDACTED PERSONAL INFORMATION
North East Lincolnshire Council,http://statistics.data.gov.uk/id/local-authority/00FC),Childrens Services,Safeguard & Early Help,Head Of Child Resource & Reg,Other Agencies,Contract Plus,PJ135,28/09/2021,963583,315,REVENUE,REDACTED PERSONAL INFORMATION,REDACTED PERSONAL INFORMATION
North East Lincolnshire Council,http://statistics.data.gov.uk/id/local-authority/00FC),Childrens Services,Safeguard & Early Help,Head Of Child Resource & Reg,Other Agencies,Contract Plus,PJ135,28/09/2021,963595,315,REVENUE,REDACTED PERSONAL INFORMATION,REDACTED PERSONAL INFORMATION
North East Lincolnshire Council,http://statistics.data.gov.uk/id/local-authority/00FC),Childrens Services,Safeguard & Early Help,Head Of Child Resource & Reg,Other Agencies,Contract Plus,PJ135,28/09/2021,963599,315,REVENUE,REDACTED PERSONAL INFORMATION,REDACTED PERSONAL INFORMATION
North East Lincolnshire Council,http://statistics.data.gov.uk/id/local-authority/00FC),Childrens Services,Safeguard & Early Help,Head Of Child Resource & Reg,Other Agencies,Contract Plus,PJ135,28/09/2021,963611,315,REVENUE,REDACTED PERSONAL INFORMATION,REDACTED PERSONAL INFORMATION
North East Lincolnshire Council,http://statistics.data.gov.uk/id/local-authority/00FC),Childrens Services,Safeguard & Early Help,Head Of Child Resource & Reg,Other Agencies,Contract Plus,PJ135,28/09/2021,963623,315,REVENUE,REDACTED PERSONAL INFORMATION,REDACTED PERSONAL INFORMATION
North East Lincolnshire Council,http://statistics.data.gov.uk/id/local-authority/00FC),Childrens Services,Safeguard & Early Help,Head Of Child Resource & Reg,Other Agencies,Contract Plus,PJ135,28/09/2021,963624,315,REVENUE,REDACTED PERSONAL INFORMATION,REDACTED PERSONAL INFORMATION
North East Lincolnshire Council,http://statistics.data.gov.uk/id/local-authority/00FC),Childrens Services,Safeguard & Early Help,Head Of Child Resource & Reg,Other Agencies,Contract Plus,PJ135,28/09/2021,963643,315,REVENUE,REDACTED PERSONAL INFORMATION,REDACTED PERSONAL INFORMATION
North East Lincolnshire Council,http://statistics.data.gov.uk/id/local-authority/00FC),Childrens Services,Safeguard & Early Help,Head Of Child Resource & Reg,Other Agencies,Contract Plus,PJ135,28/09/2021,963662,315,REVENUE,REDACTED PERSONAL INFORMATION,REDACTED PERSONAL INFORMATION
North East Lincolnshire Council,http://statistics.data.gov.uk/id/local-authority/00FC),Childrens Services,Safeguard & Early Help,Head Of Child Resource & Reg,Other Agencies,Contract Plus,PJ135,28/09/2021,963665,315,REVENUE,REDACTED PERSONAL INFORMATION,REDACTED PERSONAL INFORMATION
North East Lincolnshire Council,http://statistics.data.gov.uk/id/local-authority/00FC),Childrens Services,Safeguard & Early Help,Head Of Child Resource & Reg,Other Agencies,Contract Plus,PJ135,28/09/2021,963872,315,REVENUE,REDACTED PERSONAL INFORMATION,REDACTED PERSONAL INFORMATION
North East Lincolnshire Council,http://statistics.data.gov.uk/id/local-authority/00FC),Childrens Services,Safeguard & Early Help,Head Of Child Resource & Reg,Other Agencies,Contract Plus,PJ135,28/09/2021,963717,315,REVENUE,REDACTED PERSONAL INFORMATION,REDACTED PERSONAL INFORMATION
North East Lincolnshire Council,http://statistics.data.gov.uk/id/local-authority/00FC),Childrens Services,Safeguard & Early Help,Head Of Child Resource & Reg,Other Agencies,Contract Plus,PJ135,28/09/2021,963733,315,REVENUE,REDACTED PERSONAL INFORMATION,REDACTED PERSONAL INFORMATION
North East Lincolnshire Council,http://statistics.data.gov.uk/id/local-authority/00FC),Childrens Services,Safeguard & Early Help,Head Of Child Resource & Reg,Other Agencies,Contract Plus,PJ135,28/09/2021,963749,315,REVENUE,REDACTED PERSONAL INFORMATION,REDACTED PERSONAL INFORMATION
North East Lincolnshire Council,http://statistics.data.gov.uk/id/local-authority/00FC),Childrens Services,Safeguard & Early Help,Head Of Child Resource & Reg,Other Agencies,Contract Plus,PJ135,28/09/2021,963759,315,REVENUE,REDACTED PERSONAL INFORMATION,REDACTED PERSONAL INFORMATION
North East Lincolnshire Council,http://statistics.data.gov.uk/id/local-authority/00FC),Childrens Services,Safeguard & Early Help,Head Of Child Resource & Reg,Other Agencies,Exceptional Task,PJ113,14/09/2021,959062,-552,REVENUE,REDACTED PERSONAL INFORMATION,REDACTED PERSONAL INFORMATION
North East Lincolnshire Council,http://statistics.data.gov.uk/id/local-authority/00FC),Childrens Services,Safeguard & Early Help,Head Of Child Resource & Reg,Other Agencies,Holiday,PJ108,07/09/2021,957352,290,REVENUE,REDACTED PERSONAL INFORMATION,REDACTED PERSONAL INFORMATION
North East Lincolnshire Council,http://statistics.data.gov.uk/id/local-authority/00FC),Childrens Services,Safeguard & Early Help,Head Of Child Resource & Reg,Other Agencies,Holiday,PJ108,07/09/2021,957394,276,REVENUE,REDACTED PERSONAL INFORMATION,REDACTED PERSONAL INFORMATION
North East Lincolnshire Council,http://statistics.data.gov.uk/id/local-authority/00FC),Childrens Services,Safeguard & Early Help,Head Of Child Resource & Reg,Other Agencies,Holiday,PJ108,07/09/2021,957384,276,REVENUE,REDACTED PERSONAL INFORMATION,REDACTED PERSONAL INFORMATION
North East Lincolnshire Council,http://statistics.data.gov.uk/id/local-authority/00FC),Childrens Services,Safeguard & Early Help,Head Of Child Resource & Reg,Other Agencies,Holiday,PJ108,14/09/2021,959578,346,REVENUE,REDACTED PERSONAL INFORMATION,REDACTED PERSONAL INFORMATION
North East Lincolnshire Council,http://statistics.data.gov.uk/id/local-authority/00FC),Childrens Services,Safeguard & Early Help,Head Of Child Resource & Reg,Other Agencies,Holiday,PJ108,28/09/2021,963581,304,REVENUE,REDACTED PERSONAL INFORMATION,REDACTED PERSONAL INFORMATION
North East Lincolnshire Council,http://statistics.data.gov.uk/id/local-authority/00FC),Childrens Services,Safeguard & Early Help,Head Of Child Resource & Reg,Other Agencies,Holiday,PJ108,07/09/2021,957384,346,REVENUE,REDACTED PERSONAL INFORMATION,REDACTED PERSONAL INFORMATION
North East Lincolnshire Council,http://statistics.data.gov.uk/id/local-authority/00FC),Childrens Services,Safeguard & Early Help,Head Of Child Resource & Reg,Other Agencies,Special Carer Payments,PJ128,07/09/2021,957341,711.58,REVENUE,REDACTED PERSONAL INFORMATION,REDACTED PERSONAL INFORMATION
North East Lincolnshire Council,http://statistics.data.gov.uk/id/local-authority/00FC),Childrens Services,Safeguard & Early Help,Head Of Child Resource & Reg,Other Agencies,Special Carer Payments,PJ128,07/09/2021,957458,711.58,REVENUE,REDACTED PERSONAL INFORMATION,REDACTED PERSONAL INFORMATION
North East Lincolnshire Council,http://statistics.data.gov.uk/id/local-authority/00FC),Childrens Services,Safeguard & Early Help,Head Of Child Resource & Reg,Other Agencies,Special Carer Payments,PJ128,14/09/2021,959036,711.58,REVENUE,REDACTED PERSONAL INFORMATION,REDACTED PERSONAL INFORMATION
North East Lincolnshire Council,http://statistics.data.gov.uk/id/local-authority/00FC),Childrens Services,Safeguard & Early Help,Head Of Child Resource & Reg,Other Agencies,Special Carer Payments,PJ128,14/09/2021,959156,711.58,REVENUE,REDACTED PERSONAL INFORMATION,REDACTED PERSONAL INFORMATION
North East Lincolnshire Council,http://statistics.data.gov.uk/id/local-authority/00FC),Childrens Services,Safeguard & Early Help,Head Of Child Resource & Reg,Other Agencies,Special Carer Payments,PJ128,21/09/2021,961206,711.58,REVENUE,REDACTED PERSONAL INFORMATION,REDACTED PERSONAL INFORMATION
North East Lincolnshire Council,http://statistics.data.gov.uk/id/local-authority/00FC),Childrens Services,Safeguard & Early Help,Head Of Child Resource & Reg,Other Agencies,Special Carer Payments,PJ128,21/09/2021,961323,711.58,REVENUE,REDACTED PERSONAL INFORMATION,REDACTED PERSONAL INFORMATION
North East Lincolnshire Council,http://statistics.data.gov.uk/id/local-authority/00FC),Childrens Services,Safeguard & Early Help,Head Of Child Resource & Reg,Other Agencies,Special Carer Payments,PJ128,28/09/2021,963586,711.58,REVENUE,REDACTED PERSONAL INFORMATION,REDACTED PERSONAL INFORMATION
North East Lincolnshire Council,http://statistics.data.gov.uk/id/local-authority/00FC),Childrens Services,Safeguard & Early Help,Head Of Child Resource & Reg,Other Agencies,Special Carer Payments,PJ128,28/09/2021,963700,711.58,REVENUE,REDACTED PERSONAL INFORMATION,REDACTED PERSONAL INFORMATION
North East Lincolnshire Council,http://statistics.data.gov.uk/id/local-authority/00FC),Childrens Services,Safeguard & Early Help,Head Of Child Resource & Reg,Other Agencies,Custodianship/Residency,PJ117,07/09/2021,957752,276,REVENUE,REDACTED PERSONAL INFORMATION,REDACTED PERSONAL INFORMATION
North East Lincolnshire Council,http://statistics.data.gov.uk/id/local-authority/00FC),Childrens Services,Safeguard & Early Help,Head Of Child Resource & Reg,Other Agencies,Custodianship/Residency,PJ117,14/09/2021,959450,276,REVENUE,REDACTED PERSONAL INFORMATION,REDACTED PERSONAL INFORMATION
North East Lincolnshire Council,http://statistics.data.gov.uk/id/local-authority/00FC),Childrens Services,Safeguard & Early Help,Head Of Child Resource & Reg,Other Agencies,Custodianship/Residency,PJ117,21/09/2021,961602,276,REVENUE,REDACTED PERSONAL INFORMATION,REDACTED PERSONAL INFORMATION
North East Lincolnshire Council,http://statistics.data.gov.uk/id/local-authority/00FC),Childrens Services,Safeguard & Early Help,Head Of Child Resource & Reg,Other Agencies,Custodianship/Residency,PJ117,28/09/2021,963980,276,REVENUE,REDACTED PERSONAL INFORMATION,REDACTED PERSONAL INFORMATION
North East Lincolnshire Council,http://statistics.data.gov.uk/id/local-authority/00FC),Childrens Services,Safeguard & Early Help,Head Of Child Resource & Reg,Other Agencies,Custodianship/Residency,PJ117,07/09/2021,957423,257.6,REVENUE,REDACTED PERSONAL INFORMATION,REDACTED PERSONAL INFORMATION
North East Lincolnshire Council,http://statistics.data.gov.uk/id/local-authority/00FC),Childrens Services,Safeguard & Early Help,Head Of Child Resource & Reg,Other Agencies,Custodianship/Residency,PJ117,07/09/2021,957577,320,REVENUE,REDACTED PERSONAL INFORMATION,REDACTED PERSONAL INFORMATION
North East Lincolnshire Council,http://statistics.data.gov.uk/id/local-authority/00FC),Childrens Services,Safeguard & Early Help,Head Of Child Resource & Reg,Other Agencies,Custodianship/Residency,PJ117,07/09/2021,957610,277.27,REVENUE,REDACTED PERSONAL INFORMATION,REDACTED PERSONAL INFORMATION
North East Lincolnshire Council,http://statistics.data.gov.uk/id/local-authority/00FC),Childrens Services,Safeguard & Early Help,Head Of Child Resource & Reg,Other Agencies,Custodianship/Residency,PJ117,14/09/2021,959275,320,REVENUE,REDACTED PERSONAL INFORMATION,REDACTED PERSONAL INFORMATION
North East Lincolnshire Council,http://statistics.data.gov.uk/id/local-authority/00FC),Childrens Services,Safeguard & Early Help,Head Of Child Resource & Reg,Other Agencies,Custodianship/Residency,PJ117,14/09/2021,959120,257.6,REVENUE,REDACTED PERSONAL INFORMATION,REDACTED PERSONAL INFORMATION
North East Lincolnshire Council,http://statistics.data.gov.uk/id/local-authority/00FC),Childrens Services,Safeguard & Early Help,Head Of Child Resource & Reg,Other Agencies,Custodianship/Residency,PJ117,21/09/2021,961435,320,REVENUE,REDACTED PERSONAL INFORMATION,REDACTED PERSONAL INFORMATION
North East Lincolnshire Council,http://statistics.data.gov.uk/id/local-authority/00FC),Childrens Services,Safeguard & Early Help,Head Of Child Resource & Reg,Other Agencies,Custodianship/Residency,PJ117,28/09/2021,963813,320,REVENUE,REDACTED PERSONAL INFORMATION,REDACTED PERSONAL INFORMATION
North East Lincolnshire Council,http://statistics.data.gov.uk/id/local-authority/00FC),Childrens Services,Safeguard & Early Help,Head Of Child Resource & Reg,Other Agencies,Custodianship/Residency,PJ117,07/09/2021,957739,254.85,REVENUE,REDACTED PERSONAL INFORMATION,REDACTED PERSONAL INFORMATION
North East Lincolnshire Council,http://statistics.data.gov.uk/id/local-authority/00FC),Childrens Services,Safeguard & Early Help,Head Of Child Resource & Reg,Other Agencies,Custodianship/Residency,PJ117,07/09/2021,957403,663.28,REVENUE,REDACTED PERSONAL INFORMATION,REDACTED PERSONAL INFORMATION
North East Lincolnshire Council,http://statistics.data.gov.uk/id/local-authority/00FC),Childrens Services,Safeguard & Early Help,Head Of Child Resource & Reg,Other Agencies,Custodianship/Residency,PJ117,07/09/2021,957529,270.6,REVENUE,REDACTED PERSONAL INFORMATION,REDACTED PERSONAL INFORMATION
North East Lincolnshire Council,http://statistics.data.gov.uk/id/local-authority/00FC),Childrens Services,Safeguard & Early Help,Head Of Child Resource & Reg,Other Agencies,Custodianship/Residency,PJ117,07/09/2021,957537,289.85,REVENUE,REDACTED PERSONAL INFORMATION,REDACTED PERSONAL INFORMATION
North East Lincolnshire Council,http://statistics.data.gov.uk/id/local-authority/00FC),Childrens Services,Safeguard & Early Help,Head Of Child Resource & Reg,Other Agencies,Custodianship/Residency,PJ117,07/09/2021,957554,279.04,REVENUE,REDACTED PERSONAL INFORMATION,REDACTED PERSONAL INFORMATION
North East Lincolnshire Council,http://statistics.data.gov.uk/id/local-authority/00FC),Childrens Services,Safeguard & Early Help,Head Of Child Resource & Reg,Other Agencies,Custodianship/Residency,PJ117,07/09/2021,957661,254.85,REVENUE,REDACTED PERSONAL INFORMATION,REDACTED PERSONAL INFORMATION
North East Lincolnshire Council,http://statistics.data.gov.uk/id/local-authority/00FC),Childrens Services,Safeguard & Early Help,Head Of Child Resource & Reg,Other Agencies,Custodianship/Residency,PJ117,14/09/2021,959227,270.6,REVENUE,REDACTED PERSONAL INFORMATION,REDACTED PERSONAL INFORMATION
North East Lincolnshire Council,http://statistics.data.gov.uk/id/local-authority/00FC),Childrens Services,Safeguard & Early Help,Head Of Child Resource & Reg,Other Agencies,Custodianship/Residency,PJ117,14/09/2021,959235,289.85,REVENUE,REDACTED PERSONAL INFORMATION,REDACTED PERSONAL INFORMATION
North East Lincolnshire Council,http://statistics.data.gov.uk/id/local-authority/00FC),Childrens Services,Safeguard & Early Help,Head Of Child Resource & Reg,Other Agencies,Custodianship/Residency,PJ117,14/09/2021,959252,279.04,REVENUE,REDACTED PERSONAL INFORMATION,REDACTED PERSONAL INFORMATION
North East Lincolnshire Council,http://statistics.data.gov.uk/id/local-authority/00FC),Childrens Services,Safeguard & Early Help,Head Of Child Resource & Reg,Other Agencies,Custodianship/Residency,PJ117,14/09/2021,959361,254.85,REVENUE,REDACTED PERSONAL INFORMATION,REDACTED PERSONAL INFORMATION
North East Lincolnshire Council,http://statistics.data.gov.uk/id/local-authority/00FC),Childrens Services,Safeguard & Early Help,Head Of Child Resource & Reg,Other Agencies,Custodianship/Residency,PJ117,14/09/2021,959438,254.85,REVENUE,REDACTED PERSONAL INFORMATION,REDACTED PERSONAL INFORMATION
North East Lincolnshire Council,http://statistics.data.gov.uk/id/local-authority/00FC),Childrens Services,Safeguard & Early Help,Head Of Child Resource & Reg,Other Agencies,Custodianship/Residency,PJ117,21/09/2021,961515,254.85,REVENUE,REDACTED PERSONAL INFORMATION,REDACTED PERSONAL INFORMATION
North East Lincolnshire Council,http://statistics.data.gov.uk/id/local-authority/00FC),Childrens Services,Safeguard & Early Help,Head Of Child Resource & Reg,Other Agencies,Custodianship/Residency,PJ117,21/09/2021,961591,254.85,REVENUE,REDACTED PERSONAL INFORMATION,REDACTED PERSONAL INFORMATION
North East Lincolnshire Council,http://statistics.data.gov.uk/id/local-authority/00FC),Childrens Services,Safeguard & Early Help,Head Of Child Resource & Reg,Other Agencies,Custodianship/Residency,PJ117,21/09/2021,961399,289.85,REVENUE,REDACTED PERSONAL INFORMATION,REDACTED PERSONAL INFORMATION
North East Lincolnshire Council,http://statistics.data.gov.uk/id/local-authority/00FC),Childrens Services,Safeguard & Early Help,Head Of Child Resource & Reg,Other Agencies,Custodianship/Residency,PJ117,21/09/2021,961415,279.04,REVENUE,REDACTED PERSONAL INFORMATION,REDACTED PERSONAL INFORMATION
North East Lincolnshire Council,http://statistics.data.gov.uk/id/local-authority/00FC),Childrens Services,Safeguard & Early Help,Head Of Child Resource & Reg,Other Agencies,Custodianship/Residency,PJ117,28/09/2021,963776,289.85,REVENUE,REDACTED PERSONAL INFORMATION,REDACTED PERSONAL INFORMATION
North East Lincolnshire Council,http://statistics.data.gov.uk/id/local-authority/00FC),Childrens Services,Safeguard & Early Help,Head Of Child Resource & Reg,Other Agencies,Custodianship/Residency,PJ117,28/09/2021,963793,279.04,REVENUE,REDACTED PERSONAL INFORMATION,REDACTED PERSONAL INFORMATION
North East Lincolnshire Council,http://statistics.data.gov.uk/id/local-authority/00FC),Childrens Services,Safeguard & Early Help,Head Of Child Resource & Reg,Other Agencies,Custodianship/Residency,PJ117,28/09/2021,963892,254.85,REVENUE,REDACTED PERSONAL INFORMATION,REDACTED PERSONAL INFORMATION
North East Lincolnshire Council,http://statistics.data.gov.uk/id/local-authority/00FC),Childrens Services,Safeguard & Early Help,Head Of Child Resource & Reg,Other Agencies,Custodianship/Residency,PJ117,28/09/2021,963969,254.85,REVENUE,REDACTED PERSONAL INFORMATION,REDACTED PERSONAL INFORMATION
North East Lincolnshire Council,http://statistics.data.gov.uk/id/local-authority/00FC),Childrens Services,Safeguard & Early Help,Head Of Child Resource & Reg,Other Agencies,Custodianship/Residency,PJ117,07/09/2021,957359,328,REVENUE,REDACTED PERSONAL INFORMATION,REDACTED PERSONAL INFORMATION
North East Lincolnshire Council,http://statistics.data.gov.uk/id/local-authority/00FC),Childrens Services,Safeguard & Early Help,Head Of Child Resource & Reg,Other Agencies,Custodianship/Residency,PJ117,14/09/2021,959056,328,REVENUE,REDACTED PERSONAL INFORMATION,REDACTED PERSONAL INFORMATION
North East Lincolnshire Council,http://statistics.data.gov.uk/id/local-authority/00FC),Childrens Services,Safeguard & Early Help,Head Of Child Resource & Reg,Other Agencies,Custodianship/Residency,PJ117,21/09/2021,961229,328,REVENUE,REDACTED PERSONAL INFORMATION,REDACTED PERSONAL INFORMATION
North East Lincolnshire Council,http://statistics.data.gov.uk/id/local-authority/00FC),Childrens Services,Safeguard & Early Help,Head Of Child Resource & Reg,Other Agencies,Custodianship/Residency,PJ117,28/09/2021,963607,328,REVENUE,REDACTED PERSONAL INFORMATION,REDACTED PERSONAL INFORMATION
North East Lincolnshire Council,http://statistics.data.gov.uk/id/local-authority/00FC),Childrens Services,Safeguard & Early Help,Head Of Child Resource & Reg,Other Agencies,Custodianship/Residency,PJ117,07/09/2021,957779,397.5,REVENUE,REDACTED PERSONAL INFORMATION,REDACTED PERSONAL INFORMATION
North East Lincolnshire Council,http://statistics.data.gov.uk/id/local-authority/00FC),Childrens Services,Safeguard & Early Help,Head Of Child Resource & Reg,Other Agencies,Custodianship/Residency,PJ117,14/09/2021,959476,397.5,REVENUE,REDACTED PERSONAL INFORMATION,REDACTED PERSONAL INFORMATION
North East Lincolnshire Council,http://statistics.data.gov.uk/id/local-authority/00FC),Childrens Services,Safeguard & Early Help,Head Of Child Resource & Reg,Other Agencies,Custodianship/Residency,PJ117,21/09/2021,961627,397.5,REVENUE,REDACTED PERSONAL INFORMATION,REDACTED PERSONAL INFORMATION
North East Lincolnshire Council,http://statistics.data.gov.uk/id/local-authority/00FC),Childrens Services,Safeguard & Early Help,Head Of Child Resource & Reg,Other Agencies,Custodianship/Residency,PJ117,28/09/2021,964006,397.5,REVENUE,REDACTED PERSONAL INFORMATION,REDACTED PERSONAL INFORMATION
North East Lincolnshire Council,http://statistics.data.gov.uk/id/local-authority/00FC),Childrens Services,Safeguard & Early Help,Head Of Child Resource & Reg,Other Agencies,Custodianship/Residency,PJ117,07/09/2021,957339,254.93,REVENUE,REDACTED PERSONAL INFORMATION,REDACTED PERSONAL INFORMATION
North East Lincolnshire Council,http://statistics.data.gov.uk/id/local-authority/00FC),Childrens Services,Safeguard & Early Help,Head Of Child Resource & Reg,Other Agencies,Custodianship/Residency,PJ117,14/09/2021,959035,254.93,REVENUE,REDACTED PERSONAL INFORMATION,REDACTED PERSONAL INFORMATION
North East Lincolnshire Council,http://statistics.data.gov.uk/id/local-authority/00FC),Childrens Services,Safeguard & Early Help,Head Of Child Resource & Reg,Other Agencies,Custodianship/Residency,PJ117,21/09/2021,961205,254.93,REVENUE,REDACTED PERSONAL INFORMATION,REDACTED PERSONAL INFORMATION
North East Lincolnshire Council,http://statistics.data.gov.uk/id/local-authority/00FC),Childrens Services,Safeguard & Early Help,Head Of Child Resource & Reg,Other Agencies,Custodianship/Residency,PJ117,28/09/2021,963585,254.93,REVENUE,REDACTED PERSONAL INFORMATION,REDACTED PERSONAL INFORMATION
North East Lincolnshire Council,http://statistics.data.gov.uk/id/local-authority/00FC),Childrens Services,Safeguard & Early Help,Head Of Child Resource & Reg,Other Agencies,Custodianship/Residency,PJ117,07/09/2021,957757,379.3,REVENUE,REDACTED PERSONAL INFORMATION,REDACTED PERSONAL INFORMATION
North East Lincolnshire Council,http://statistics.data.gov.uk/id/local-authority/00FC),Childrens Services,Safeguard & Early Help,Head Of Child Resource & Reg,Other Agencies,Custodianship/Residency,PJ117,14/09/2021,959456,379.3,REVENUE,REDACTED PERSONAL INFORMATION,REDACTED PERSONAL INFORMATION
North East Lincolnshire Council,http://statistics.data.gov.uk/id/local-authority/00FC),Childrens Services,Safeguard & Early Help,Head Of Child Resource & Reg,Other Agencies,Custodianship/Residency,PJ117,21/09/2021,961607,379.3,REVENUE,REDACTED PERSONAL INFORMATION,REDACTED PERSONAL INFORMATION
North East Lincolnshire Council,http://statistics.data.gov.uk/id/local-authority/00FC),Childrens Services,Safeguard & Early Help,Head Of Child Resource & Reg,Other Agencies,Custodianship/Residency,PJ117,28/09/2021,963986,379.3,REVENUE,REDACTED PERSONAL INFORMATION,REDACTED PERSONAL INFORMATION
North East Lincolnshire Council,http://statistics.data.gov.uk/id/local-authority/00FC),Childrens Services,Safeguard & Early Help,Head Of Child Resource & Reg,Other Agencies,Custodianship/Residency,PJ117,14/09/2021,959423,276,REVENUE,REDACTED PERSONAL INFORMATION,REDACTED PERSONAL INFORMATION
North East Lincolnshire Council,http://statistics.data.gov.uk/id/local-authority/00FC),Childrens Services,Safeguard & Early Help,Head Of Child Resource & Reg,Other Agencies,Custodianship/Residency,PJ117,14/09/2021,959515,534.17,REVENUE,REDACTED PERSONAL INFORMATION,REDACTED PERSONAL INFORMATION
North East Lincolnshire Council,http://statistics.data.gov.uk/id/local-authority/00FC),Childrens Services,Safeguard & Early Help,Head Of Child Resource & Reg,Other Agencies,Custodianship/Residency,PJ117,07/09/2021,957776,284,REVENUE,REDACTED PERSONAL INFORMATION,REDACTED PERSONAL INFORMATION
North East Lincolnshire Council,http://statistics.data.gov.uk/id/local-authority/00FC),Childrens Services,Safeguard & Early Help,Head Of Child Resource & Reg,Other Agencies,Custodianship/Residency,PJ117,14/09/2021,959473,284,REVENUE,REDACTED PERSONAL INFORMATION,REDACTED PERSONAL INFORMATION
North East Lincolnshire Council,http://statistics.data.gov.uk/id/local-authority/00FC),Childrens Services,Safeguard & Early Help,Head Of Child Resource & Reg,Other Agencies,Custodianship/Residency,PJ117,21/09/2021,961624,284,REVENUE,REDACTED PERSONAL INFORMATION,REDACTED PERSONAL INFORMATION
North East Lincolnshire Council,http://statistics.data.gov.uk/id/local-authority/00FC),Childrens Services,Safeguard & Early Help,Head Of Child Resource & Reg,Other Agencies,Custodianship/Residency,PJ117,28/09/2021,964003,284,REVENUE,REDACTED PERSONAL INFORMATION,REDACTED PERSONAL INFORMATION
North East Lincolnshire Council,http://statistics.data.gov.uk/id/local-authority/00FC),Childrens Services,Safeguard & Early Help,Head Of Child Resource & Reg,Other Agencies,Custodianship/Residency,PJ117,14/09/2021,959187,447.07,REVENUE,REDACTED PERSONAL INFORMATION,REDACTED PERSONAL INFORMATION
North East Lincolnshire Council,http://statistics.data.gov.uk/id/local-authority/00FC),Childrens Services,Safeguard & Early Help,Head Of Child Resource & Reg,Other Agencies,Custodianship/Residency,PJ117,07/09/2021,957593,325,REVENUE,REDACTED PERSONAL INFORMATION,REDACTED PERSONAL INFORMATION
North East Lincolnshire Council,http://statistics.data.gov.uk/id/local-authority/00FC),Childrens Services,Safeguard & Early Help,Head Of Child Resource & Reg,Other Agencies,Custodianship/Residency,PJ117,14/09/2021,959290,325,REVENUE,REDACTED PERSONAL INFORMATION,REDACTED PERSONAL INFORMATION
North East Lincolnshire Council,http://statistics.data.gov.uk/id/local-authority/00FC),Childrens Services,Safeguard & Early Help,Head Of Child Resource & Reg,Other Agencies,Custodianship/Residency,PJ117,21/09/2021,961448,325,REVENUE,REDACTED PERSONAL INFORMATION,REDACTED PERSONAL INFORMATION
North East Lincolnshire Council,http://statistics.data.gov.uk/id/local-authority/00FC),Childrens Services,Safeguard & Early Help,Head Of Child Resource & Reg,Other Agencies,Custodianship/Residency,PJ117,28/09/2021,963827,325,REVENUE,REDACTED PERSONAL INFORMATION,REDACTED PERSONAL INFORMATION
North East Lincolnshire Council,http://statistics.data.gov.uk/id/local-authority/00FC),Childrens Services,Safeguard & Early Help,Head Of Child Resource & Reg,Other Agencies,Custodianship/Residency,PJ117,07/09/2021,957362,655,REVENUE,REDACTED PERSONAL INFORMATION,REDACTED PERSONAL INFORMATION
North East Lincolnshire Council,http://statistics.data.gov.uk/id/local-authority/00FC),Childrens Services,Safeguard & Early Help,Head Of Child Resource & Reg,Other Agencies,Custodianship/Residency,PJ117,14/09/2021,959058,655,REVENUE,REDACTED PERSONAL INFORMATION,REDACTED PERSONAL INFORMATION
North East Lincolnshire Council,http://statistics.data.gov.uk/id/local-authority/00FC),Childrens Services,Safeguard & Early Help,Head Of Child Resource & Reg,Other Agencies,Custodianship/Residency,PJ117,21/09/2021,961230,655,REVENUE,REDACTED PERSONAL INFORMATION,REDACTED PERSONAL INFORMATION
North East Lincolnshire Council,http://statistics.data.gov.uk/id/local-authority/00FC),Childrens Services,Safeguard & Early Help,Head Of Child Resource & Reg,Other Agencies,Custodianship/Residency,PJ117,28/09/2021,963609,655,REVENUE,REDACTED PERSONAL INFORMATION,REDACTED PERSONAL INFORMATION
North East Lincolnshire Council,http://statistics.data.gov.uk/id/local-authority/00FC),Childrens Services,Safeguard & Early Help,Head Of Child Resource & Reg,Other Agencies,Custodianship/Residency,PJ117,07/09/2021,957359,328,REVENUE,REDACTED PERSONAL INFORMATION,REDACTED PERSONAL INFORMATION
North East Lincolnshire Council,http://statistics.data.gov.uk/id/local-authority/00FC),Childrens Services,Safeguard & Early Help,Head Of Child Resource & Reg,Other Agencies,Custodianship/Residency,PJ117,14/09/2021,959056,328,REVENUE,REDACTED PERSONAL INFORMATION,REDACTED PERSONAL INFORMATION
North East Lincolnshire Council,http://statistics.data.gov.uk/id/local-authority/00FC),Childrens Services,Safeguard & Early Help,Head Of Child Resource & Reg,Other Agencies,Custodianship/Residency,PJ117,21/09/2021,961229,328,REVENUE,REDACTED PERSONAL INFORMATION,REDACTED PERSONAL INFORMATION
North East Lincolnshire Council,http://statistics.data.gov.uk/id/local-authority/00FC),Childrens Services,Safeguard & Early Help,Head Of Child Resource & Reg,Other Agencies,Custodianship/Residency,PJ117,28/09/2021,963607,328,REVENUE,REDACTED PERSONAL INFORMATION,REDACTED PERSONAL INFORMATION
North East Lincolnshire Council,http://statistics.data.gov.uk/id/local-authority/00FC),Childrens Services,Safeguard & Early Help,Head Of Child Resource & Reg,Other Agencies,Custodianship/Residency,PJ117,07/09/2021,957694,254.85,REVENUE,REDACTED PERSONAL INFORMATION,REDACTED PERSONAL INFORMATION
North East Lincolnshire Council,http://statistics.data.gov.uk/id/local-authority/00FC),Childrens Services,Safeguard & Early Help,Head Of Child Resource & Reg,Other Agencies,Custodianship/Residency,PJ117,14/09/2021,959393,254.85,REVENUE,REDACTED PERSONAL INFORMATION,REDACTED PERSONAL INFORMATION
North East Lincolnshire Council,http://statistics.data.gov.uk/id/local-authority/00FC),Childrens Services,Safeguard & Early Help,Head Of Child Resource & Reg,Other Agencies,Custodianship/Residency,PJ117,21/09/2021,961546,254.85,REVENUE,REDACTED PERSONAL INFORMATION,REDACTED PERSONAL INFORMATION
North East Lincolnshire Council,http://statistics.data.gov.uk/id/local-authority/00FC),Childrens Services,Safeguard & Early Help,Head Of Child Resource & Reg,Other Agencies,Custodianship/Residency,PJ117,28/09/2021,963925,254.85,REVENUE,REDACTED PERSONAL INFORMATION,REDACTED PERSONAL INFORMATION
North East Lincolnshire Council,http://statistics.data.gov.uk/id/local-authority/00FC),Childrens Services,Safeguard & Early Help,Head Of Child Resource & Reg,Other Agencies,Custodianship/Residency,PJ117,07/09/2021,957557,317,REVENUE,REDACTED PERSONAL INFORMATION,REDACTED PERSONAL INFORMATION
North East Lincolnshire Council,http://statistics.data.gov.uk/id/local-authority/00FC),Childrens Services,Safeguard & Early Help,Head Of Child Resource & Reg,Other Agencies,Custodianship/Residency,PJ117,14/09/2021,959254,317,REVENUE,REDACTED PERSONAL INFORMATION,REDACTED PERSONAL INFORMATION
North East Lincolnshire Council,http://statistics.data.gov.uk/id/local-authority/00FC),Childrens Services,Safeguard & Early Help,Head Of Child Resource & Reg,Other Agencies,Custodianship/Residency,PJ117,21/09/2021,961417,317,REVENUE,REDACTED PERSONAL INFORMATION,REDACTED PERSONAL INFORMATION
North East Lincolnshire Council,http://statistics.data.gov.uk/id/local-authority/00FC),Childrens Services,Safeguard & Early Help,Head Of Child Resource & Reg,Other Agencies,Custodianship/Residency,PJ117,28/09/2021,963796,317,REVENUE,REDACTED PERSONAL INFORMATION,REDACTED PERSONAL INFORMATION
North East Lincolnshire Council,http://statistics.data.gov.uk/id/local-authority/00FC),Childrens Services,Safeguard & Early Help,Head Of Child Resource & Reg,Other Agencies,Custodianship/Residency,PJ117,07/09/2021,957830,297,REVENUE,REDACTED PERSONAL INFORMATION,REDACTED PERSONAL INFORMATION
North East Lincolnshire Council,http://statistics.data.gov.uk/id/local-authority/00FC),Childrens Services,Safeguard & Early Help,Head Of Child Resource & Reg,Other Agencies,Custodianship/Residency,PJ117,14/09/2021,959527,297,REVENUE,REDACTED PERSONAL INFORMATION,REDACTED PERSONAL INFORMATION
North East Lincolnshire Council,http://statistics.data.gov.uk/id/local-authority/00FC),Childrens Services,Safeguard & Early Help,Head Of Child Resource & Reg,Other Agencies,Custodianship/Residency,PJ117,21/09/2021,961678,297,REVENUE,REDACTED PERSONAL INFORMATION,REDACTED PERSONAL INFORMATION
North East Lincolnshire Council,http://statistics.data.gov.uk/id/local-authority/00FC),Childrens Services,Safeguard & Early Help,Head Of Child Resource & Reg,Other Agencies,Custodianship/Residency,PJ117,28/09/2021,964057,297,REVENUE,REDACTED PERSONAL INFORMATION,REDACTED PERSONAL INFORMATION
North East Lincolnshire Council,http://statistics.data.gov.uk/id/local-authority/00FC),Childrens Services,Safeguard & Early Help,Head Of Child Resource & Reg,Other Agencies,Custodianship/Residency,PJ117,07/09/2021,957551,671.16,REVENUE,REDACTED PERSONAL INFORMATION,REDACTED PERSONAL INFORMATION
North East Lincolnshire Council,http://statistics.data.gov.uk/id/local-authority/00FC),Childrens Services,Safeguard & Early Help,Head Of Child Resource & Reg,Other Agencies,Custodianship/Residency,PJ117,07/09/2021,957757,386.3,REVENUE,REDACTED PERSONAL INFORMATION,REDACTED PERSONAL INFORMATION
North East Lincolnshire Council,http://statistics.data.gov.uk/id/local-authority/00FC),Childrens Services,Safeguard & Early Help,Head Of Child Resource & Reg,Other Agencies,Custodianship/Residency,PJ117,14/09/2021,959456,386.3,REVENUE,REDACTED PERSONAL INFORMATION,REDACTED PERSONAL INFORMATION
North East Lincolnshire Council,http://statistics.data.gov.uk/id/local-authority/00FC),Childrens Services,Safeguard & Early Help,Head Of Child Resource & Reg,Other Agencies,Custodianship/Residency,PJ117,21/09/2021,961607,386.3,REVENUE,REDACTED PERSONAL INFORMATION,REDACTED PERSONAL INFORMATION
North East Lincolnshire Council,http://statistics.data.gov.uk/id/local-authority/00FC),Childrens Services,Safeguard & Early Help,Head Of Child Resource & Reg,Other Agencies,Custodianship/Residency,PJ117,28/09/2021,963986,386.3,REVENUE,REDACTED PERSONAL INFORMATION,REDACTED PERSONAL INFORMATION
North East Lincolnshire Council,http://statistics.data.gov.uk/id/local-authority/00FC),Childrens Services,Safeguard & Early Help,Head Of Child Resource & Reg,Grants And Subscriptions,Subscriptions,LJ101,22/09/2021,691259,2038.4,REVENUE,CORAMBAAF ADOPTION & FOSTERING ACADEMY,132908
North East Lincolnshire Council,http://statistics.data.gov.uk/id/local-authority/00FC),Childrens Services,Safeguard & Early Help,Head Of Child Resource & Reg,Other Agencies,Adoption Allowance,PJ118,21/09/2021,961477,254.85,REVENUE,REDACTED PERSONAL INFORMATION,REDACTED PERSONAL INFORMATION
North East Lincolnshire Council,http://statistics.data.gov.uk/id/local-authority/00FC),Childrens Services,Safeguard & Early Help,Head Of Child Resource & Reg,Other Agencies,Adoption Allowance,PJ118,21/09/2021,961537,849.58,REVENUE,REDACTED PERSONAL INFORMATION,REDACTED PERSONAL INFORMATION
North East Lincolnshire Council,http://statistics.data.gov.uk/id/local-authority/00FC),Childrens Services,Safeguard & Early Help,Head Of Child Resource & Reg,Other Agencies,Adoption Allowance,PJ118,21/09/2021,961254,318,REVENUE,REDACTED PERSONAL INFORMATION,REDACTED PERSONAL INFORMATION
North East Lincolnshire Council,http://statistics.data.gov.uk/id/local-authority/00FC),Childrens Services,Safeguard & Early Help,Head Of Child Resource & Reg,Other Agencies,Adoption Allowance,PJ118,21/09/2021,961316,284.31,REVENUE,REDACTED PERSONAL INFORMATION,REDACTED PERSONAL INFORMATION
North East Lincolnshire Council,http://statistics.data.gov.uk/id/local-authority/00FC),Childrens Services,Safeguard & Early Help,Head Of Child Resource & Reg,Other Agencies,Adoption Allowance,PJ118,21/09/2021,961376,668,REVENUE,REDACTED PERSONAL INFORMATION,REDACTED PERSONAL INFORMATION
North East Lincolnshire Council,http://statistics.data.gov.uk/id/local-authority/00FC),Childrens Services,Safeguard & Early Help,Head Of Child Resource & Reg,Other Agencies,Adoption Allowance,PJ118,21/09/2021,961439,266.65,REVENUE,REDACTED PERSONAL INFORMATION,REDACTED PERSONAL INFORMATION
North East Lincolnshire Council,http://statistics.data.gov.uk/id/local-authority/00FC),Childrens Services,Safeguard & Early Help,Head Of Child Resource & Reg,Other Agencies,Adoption Allowance,PJ118,21/09/2021,961458,504,REVENUE,REDACTED PERSONAL INFORMATION,REDACTED PERSONAL INFORMATION
North East Lincolnshire Council,http://statistics.data.gov.uk/id/local-authority/00FC),Childrens Services,Safeguard & Early Help,Head Of Child Resource & Reg,Other Agencies,Adoption Allowance,PJ118,28/09/2021,963817,266.65,REVENUE,REDACTED PERSONAL INFORMATION,REDACTED PERSONAL INFORMATION
North East Lincolnshire Council,http://statistics.data.gov.uk/id/local-authority/00FC),Childrens Services,Safeguard & Early Help,Head Of Child Resource & Reg,Other Agencies,Adoption Allowance,PJ118,28/09/2021,963837,504,REVENUE,REDACTED PERSONAL INFORMATION,REDACTED PERSONAL INFORMATION
North East Lincolnshire Council,http://statistics.data.gov.uk/id/local-authority/00FC),Childrens Services,Safeguard & Early Help,Head Of Child Resource & Reg,Other Agencies,Adoption Allowance,PJ118,28/09/2021,963856,254.85,REVENUE,REDACTED PERSONAL INFORMATION,REDACTED PERSONAL INFORMATION
North East Lincolnshire Council,http://statistics.data.gov.uk/id/local-authority/00FC),Childrens Services,Safeguard & Early Help,Head Of Child Resource & Reg,Other Agencies,Adoption Allowance,PJ118,28/09/2021,963633,318,REVENUE,REDACTED PERSONAL INFORMATION,REDACTED PERSONAL INFORMATION
North East Lincolnshire Council,http://statistics.data.gov.uk/id/local-authority/00FC),Childrens Services,Safeguard & Early Help,Head Of Child Resource & Reg,Other Agencies,Adoption Allowance,PJ118,28/09/2021,963693,284.31,REVENUE,REDACTED PERSONAL INFORMATION,REDACTED PERSONAL INFORMATION
North East Lincolnshire Council,http://statistics.data.gov.uk/id/local-authority/00FC),Childrens Services,Safeguard & Early Help,Head Of Child Resource & Reg,Other Agencies,Adoption Allowance,PJ118,28/09/2021,963915,849.58,REVENUE,REDACTED PERSONAL INFORMATION,REDACTED PERSONAL INFORMATION
North East Lincolnshire Council,http://statistics.data.gov.uk/id/local-authority/00FC),Childrens Services,Safeguard & Early Help,Head Of Child Resource & Reg,Other Agencies,Adoption Allowance,PJ118,28/09/2021,963754,668,REVENUE,REDACTED PERSONAL INFORMATION,REDACTED PERSONAL INFORMATION
North East Lincolnshire Council,http://statistics.data.gov.uk/id/local-authority/00FC),Childrens Services,Safeguard & Early Help,Head Of Child Resource & Reg,Other Agencies,Adoption Allowance,PJ118,07/09/2021,957361,333,REVENUE,REDACTED PERSONAL INFORMATION,REDACTED PERSONAL INFORMATION
North East Lincolnshire Council,http://statistics.data.gov.uk/id/local-authority/00FC),Childrens Services,Safeguard & Early Help,Head Of Child Resource & Reg,Other Agencies,Adoption Allowance,PJ118,07/09/2021,957367,337.55,REVENUE,REDACTED PERSONAL INFORMATION,REDACTED PERSONAL INFORMATION
North East Lincolnshire Council,http://statistics.data.gov.uk/id/local-authority/00FC),Childrens Services,Safeguard & Early Help,Head Of Child Resource & Reg,Other Agencies,Adoption Allowance,PJ118,07/09/2021,957388,318,REVENUE,REDACTED PERSONAL INFORMATION,REDACTED PERSONAL INFORMATION
North East Lincolnshire Council,http://statistics.data.gov.uk/id/local-authority/00FC),Childrens Services,Safeguard & Early Help,Head Of Child Resource & Reg,Other Agencies,Adoption Allowance,PJ118,07/09/2021,957451,284.31,REVENUE,REDACTED PERSONAL INFORMATION,REDACTED PERSONAL INFORMATION
North East Lincolnshire Council,http://statistics.data.gov.uk/id/local-authority/00FC),Childrens Services,Safeguard & Early Help,Head Of Child Resource & Reg,Other Agencies,Adoption Allowance,PJ118,07/09/2021,957513,668,REVENUE,REDACTED PERSONAL INFORMATION,REDACTED PERSONAL INFORMATION
North East Lincolnshire Council,http://statistics.data.gov.uk/id/local-authority/00FC),Childrens Services,Safeguard & Early Help,Head Of Child Resource & Reg,Other Agencies,Adoption Allowance,PJ118,07/09/2021,957581,266.65,REVENUE,REDACTED PERSONAL INFORMATION,REDACTED PERSONAL INFORMATION
North East Lincolnshire Council,http://statistics.data.gov.uk/id/local-authority/00FC),Childrens Services,Safeguard & Early Help,Head Of Child Resource & Reg,Other Agencies,Adoption Allowance,PJ118,07/09/2021,957604,504,REVENUE,REDACTED PERSONAL INFORMATION,REDACTED PERSONAL INFORMATION
North East Lincolnshire Council,http://statistics.data.gov.uk/id/local-authority/00FC),Childrens Services,Safeguard & Early Help,Head Of Child Resource & Reg,Other Agencies,Adoption Allowance,PJ118,07/09/2021,957625,254.85,REVENUE,REDACTED PERSONAL INFORMATION,REDACTED PERSONAL INFORMATION
North East Lincolnshire Council,http://statistics.data.gov.uk/id/local-authority/00FC),Childrens Services,Safeguard & Early Help,Head Of Child Resource & Reg,Other Agencies,Adoption Allowance,PJ118,07/09/2021,957685,849.58,REVENUE,REDACTED PERSONAL INFORMATION,REDACTED PERSONAL INFORMATION
North East Lincolnshire Council,http://statistics.data.gov.uk/id/local-authority/00FC),Childrens Services,Safeguard & Early Help,Head Of Child Resource & Reg,Other Agencies,Adoption Allowance,PJ118,14/09/2021,959211,668,REVENUE,REDACTED PERSONAL INFORMATION,REDACTED PERSONAL INFORMATION
North East Lincolnshire Council,http://statistics.data.gov.uk/id/local-authority/00FC),Childrens Services,Safeguard & Early Help,Head Of Child Resource & Reg,Other Agencies,Adoption Allowance,PJ118,14/09/2021,959279,266.65,REVENUE,REDACTED PERSONAL INFORMATION,REDACTED PERSONAL INFORMATION
North East Lincolnshire Council,http://statistics.data.gov.uk/id/local-authority/00FC),Childrens Services,Safeguard & Early Help,Head Of Child Resource & Reg,Other Agencies,Adoption Allowance,PJ118,14/09/2021,959301,504,REVENUE,REDACTED PERSONAL INFORMATION,REDACTED PERSONAL INFORMATION
North East Lincolnshire Council,http://statistics.data.gov.uk/id/local-authority/00FC),Childrens Services,Safeguard & Early Help,Head Of Child Resource & Reg,Other Agencies,Adoption Allowance,PJ118,14/09/2021,959323,254.85,REVENUE,REDACTED PERSONAL INFORMATION,REDACTED PERSONAL INFORMATION
North East Lincolnshire Council,http://statistics.data.gov.uk/id/local-authority/00FC),Childrens Services,Safeguard & Early Help,Head Of Child Resource & Reg,Other Agencies,Adoption Allowance,PJ118,14/09/2021,959384,849.58,REVENUE,REDACTED PERSONAL INFORMATION,REDACTED PERSONAL INFORMATION
North East Lincolnshire Council,http://statistics.data.gov.uk/id/local-authority/00FC),Childrens Services,Safeguard & Early Help,Head Of Child Resource & Reg,Other Agencies,Adoption Allowance,PJ118,14/09/2021,959084,318,REVENUE,REDACTED PERSONAL INFORMATION,REDACTED PERSONAL INFORMATION
North East Lincolnshire Council,http://statistics.data.gov.uk/id/local-authority/00FC),Childrens Services,Safeguard & Early Help,Head Of Child Resource & Reg,Other Agencies,Adoption Allowance,PJ118,14/09/2021,959149,284.31,REVENUE,REDACTED PERSONAL INFORMATION,REDACTED PERSONAL INFORMATION
North East Lincolnshire Council,http://statistics.data.gov.uk/id/local-authority/00FC),Childrens Services,Safeguard & Early Help,Head Of Child Resource & Reg,Other Agencies,Adoption Allowance,PJ118,07/09/2021,957470,289.85,REVENUE,REDACTED PERSONAL INFORMATION,REDACTED PERSONAL INFORMATION
North East Lincolnshire Council,http://statistics.data.gov.uk/id/local-authority/00FC),Childrens Services,Safeguard & Early Help,Head Of Child Resource & Reg,Other Agencies,Adoption Allowance,PJ118,14/09/2021,959084,435.69,REVENUE,REDACTED PERSONAL INFORMATION,REDACTED PERSONAL INFORMATION
North East Lincolnshire Council,http://statistics.data.gov.uk/id/local-authority/00FC),Childrens Services,Safeguard & Early Help,Head Of Child Resource & Reg,Other Agencies,Adoption Allowance,PJ118,14/09/2021,959168,463.45,REVENUE,REDACTED PERSONAL INFORMATION,REDACTED PERSONAL INFORMATION
North East Lincolnshire Council,http://statistics.data.gov.uk/id/local-authority/00FC),Childrens Services,Safeguard & Early Help,Head Of Child Resource & Reg,Other Agencies,Adoption Allowance,PJ118,14/09/2021,959168,388.36,REVENUE,REDACTED PERSONAL INFORMATION,REDACTED PERSONAL INFORMATION
North East Lincolnshire Council,http://statistics.data.gov.uk/id/local-authority/00FC),Childrens Services,Safeguard & Early Help,Head Of Child Resource & Reg,Other Agencies,Adoption Allowance,PJ118,14/09/2021,959168,388.36,REVENUE,REDACTED PERSONAL INFORMATION,REDACTED PERSONAL INFORMATION
North East Lincolnshire Council,http://statistics.data.gov.uk/id/local-authority/00FC),Childrens Services,Safeguard & Early Help,Head Of Child Resource & Reg,Other Agencies,Adoption Allowance,PJ118,14/09/2021,959168,315.03,REVENUE,REDACTED PERSONAL INFORMATION,REDACTED PERSONAL INFORMATION
North East Lincolnshire Council,http://statistics.data.gov.uk/id/local-authority/00FC),Childrens Services,Safeguard & Early Help,Head Of Child Resource & Reg,Direct Employee Expenses,Agency Staff,EA105,07/09/2021,688622,1964.7,REVENUE,ATTENTI CONSULTING,146503
North East Lincolnshire Council,http://statistics.data.gov.uk/id/local-authority/00FC),Childrens Services,Safeguard & Early Help,Head Of Child Resource & Reg,Direct Employee Expenses,Agency Staff,EA105,07/09/2021,688627,1964.7,REVENUE,ATTENTI CONSULTING,146503
North East Lincolnshire Council,http://statistics.data.gov.uk/id/local-authority/00FC),Childrens Services,Safeguard & Early Help,Head Of Child Resource & Reg,Direct Employee Expenses,Agency Staff,EA105,17/09/2021,689104,1566.45,REVENUE,ATTENTI CONSULTING,146503
North East Lincolnshire Council,http://statistics.data.gov.uk/id/local-authority/00FC),Childrens Services,Safeguard & Early Help,Head Of Child Resource & Reg,Direct Employee Expenses,Agency Staff,EA105,21/09/2021,690847,1964.7,REVENUE,ATTENTI CONSULTING,146503
North East Lincolnshire Council,http://statistics.data.gov.uk/id/local-authority/00FC),Childrens Services,Safeguard & Early Help,Head Of Child Resource & Reg,Direct Employee Expenses,Agency Staff,EA105,16/09/2021,690388,2360,REVENUE,ATTENTI CONSULTING,146503
North East Lincolnshire Council,http://statistics.data.gov.uk/id/local-authority/00FC),Childrens Services,Safeguard & Early Help,Head Of Child Resource & Reg,Direct Employee Expenses,Agency Staff,EA105,16/09/2021,690389,2360,REVENUE,ATTENTI CONSULTING,146503
North East Lincolnshire Council,http://statistics.data.gov.uk/id/local-authority/00FC),Childrens Services,Safeguard & Early Help,Head Of Child Resource & Reg,Direct Employee Expenses,Agency Staff,EA105,16/09/2021,690390,1888,REVENUE,ATTENTI CONSULTING,146503
North East Lincolnshire Council,http://statistics.data.gov.uk/id/local-authority/00FC),Childrens Services,Safeguard & Early Help,Head Of Child Resource & Reg,Direct Employee Expenses,Agency Staff,EA105,22/09/2021,691255,2360,REVENUE,ATTENTI CONSULTING,146503
North East Lincolnshire Council,http://statistics.data.gov.uk/id/local-authority/00FC),Childrens Services,Safeguard & Early Help,Head Of Child Resource & Reg,Direct Employee Expenses,Agency Staff,EA105,23/09/2021,691306,2360,REVENUE,ATTENTI CONSULTING,146503
North East Lincolnshire Council,http://statistics.data.gov.uk/id/local-authority/00FC),Childrens Services,Safeguard & Early Help,Head Of Child Resource & Reg,Direct Employee Expenses,Agency Staff,EA105,30/09/2021,692230,2360,REVENUE,ATTENTI CONSULTING,146503
North East Lincolnshire Council,http://statistics.data.gov.uk/id/local-authority/00FC),Childrens Services,Safeguard & Early Help,Head Of Child Resource & Reg,Direct Employee Expenses,Agency Staff,EA105,28/09/2021,691716,1640.63,REVENUE,NONSTOP RECRUITMENT,120715
North East Lincolnshire Council,http://statistics.data.gov.uk/id/local-authority/00FC),Childrens Services,Safeguard & Early Help,Head Of Child Resource & Reg,Direct Employee Expenses,Agency Staff,EA105,28/09/2021,691718,1640.63,REVENUE,NONSTOP RECRUITMENT,120715
North East Lincolnshire Council,http://statistics.data.gov.uk/id/local-authority/00FC),Childrens Services,Safeguard & Early Help,Head Of Child Resource & Reg,Direct Employee Expenses,Agency Staff,EA105,28/09/2021,691720,1312.5,REVENUE,NONSTOP RECRUITMENT,120715
North East Lincolnshire Council,http://statistics.data.gov.uk/id/local-authority/00FC),Childrens Services,Safeguard & Early Help,Head Of Child Resource & Reg,Direct Employee Expenses,Agency Staff,EA105,28/09/2021,691721,1640.63,REVENUE,NONSTOP RECRUITMENT,120715
North East Lincolnshire Council,http://statistics.data.gov.uk/id/local-authority/00FC),Childrens Services,Safeguard & Early Help,Head Of Child Resource & Reg,Direct Employee Expenses,Agency Staff,EA105,28/09/2021,691723,1640.63,REVENUE,NONSTOP RECRUITMENT,120715
North East Lincolnshire Council,http://statistics.data.gov.uk/id/local-authority/00FC),Childrens Services,Safeguard & Early Help,Head Of Child Resource & Reg,Direct Employee Expenses,Agency Staff,EA105,30/09/2021,692242,1640.63,REVENUE,NONSTOP RECRUITMENT,120715
North East Lincolnshire Council,http://statistics.data.gov.uk/id/local-authority/00FC),Childrens Services,Safeguard & Early Help,Head Of Child Resource & Reg,Direct Employee Expenses,Agency Staff,EA105,28/09/2021,691731,1618.75,REVENUE,NONSTOP RECRUITMENT,120715
North East Lincolnshire Council,http://statistics.data.gov.uk/id/local-authority/00FC),Childrens Services,Safeguard & Early Help,Head Of Child Resource & Reg,Direct Employee Expenses,Agency Staff,EA105,28/09/2021,691734,1312.5,REVENUE,NONSTOP RECRUITMENT,120715
North East Lincolnshire Council,http://statistics.data.gov.uk/id/local-authority/00FC),Childrens Services,Safeguard & Early Help,Head Of Child Resource & Reg,Direct Employee Expenses,Agency Staff,EA105,28/09/2021,691732,1618.75,REVENUE,NONSTOP RECRUITMENT,120715
North East Lincolnshire Council,http://statistics.data.gov.uk/id/local-authority/00FC),Childrens Services,Safeguard & Early Help,Head Of Child Resource & Reg,Direct Employee Expenses,Agency Staff,EA105,28/09/2021,691733,1618.75,REVENUE,NONSTOP RECRUITMENT,120715
North East Lincolnshire Council,http://statistics.data.gov.uk/id/local-authority/00FC),Childrens Services,Safeguard & Early Help,Head Of Child Resource & Reg,Direct Employee Expenses,Agency Staff,EA105,28/09/2021,691736,1618.75,REVENUE,NONSTOP RECRUITMENT,120715
North East Lincolnshire Council,http://statistics.data.gov.uk/id/local-authority/00FC),Childrens Services,Safeguard & Early Help,Head Of Child Resource & Reg,Direct Employee Expenses,Agency Staff,EA105,30/09/2021,692239,1618.75,REVENUE,NONSTOP RECRUITMENT,120715
North East Lincolnshire Council,http://statistics.data.gov.uk/id/local-authority/00FC),Childrens Services,Safeguard & Early Help,Head Of Child Resource & Reg,Direct Employee Expenses,Agency Staff,EA105,28/09/2021,691730,1400,REVENUE,NONSTOP RECRUITMENT,120715
North East Lincolnshire Council,http://statistics.data.gov.uk/id/local-authority/00FC),Childrens Services,Safeguard & Early Help,Head Of Child Resource & Reg,Direct Employee Expenses,Agency Staff,EA105,28/09/2021,691724,962.5,REVENUE,NONSTOP RECRUITMENT,120715
North East Lincolnshire Council,http://statistics.data.gov.uk/id/local-authority/00FC),Childrens Services,Safeguard & Early Help,Head Of Child Resource & Reg,Direct Employee Expenses,Agency Staff,EA105,28/09/2021,691725,984.38,REVENUE,NONSTOP RECRUITMENT,120715
North East Lincolnshire Council,http://statistics.data.gov.uk/id/local-authority/00FC),Childrens Services,Safeguard & Early Help,Head Of Child Resource & Reg,Direct Employee Expenses,Agency Staff,EA105,28/09/2021,691727,962.5,REVENUE,NONSTOP RECRUITMENT,120715
North East Lincolnshire Council,http://statistics.data.gov.uk/id/local-authority/00FC),Childrens Services,Safeguard & Early Help,Head Of Child Resource & Reg,Direct Employee Expenses,Agency Staff,EA105,28/09/2021,691729,984.38,REVENUE,NONSTOP RECRUITMENT,120715
North East Lincolnshire Council,http://statistics.data.gov.uk/id/local-authority/00FC),Childrens Services,Safeguard & Early Help,Head Of Child Resource & Reg,Direct Employee Expenses,Agency Staff,EA105,30/09/2021,692241,962.5,REVENUE,NONSTOP RECRUITMENT,120715
North East Lincolnshire Council,http://statistics.data.gov.uk/id/local-authority/00FC),Childrens Services,Safeguard & Early Help,Head Of Child Resource & Reg,Miscellaneous Expenses,Other Expenses General,LL119,15/09/2021,690151,600,REVENUE,THE FOSTERING NETWORK,103725
North East Lincolnshire Council,http://statistics.data.gov.uk/id/local-authority/00FC),Childrens Services,Safeguard & Early Help,Head Of Child Resource & Reg,Direct Employee Expenses,Agency Staff,EA105,16/09/2021,690387,2271.5,REVENUE,ATTENTI CONSULTING,146503
North East Lincolnshire Council,http://statistics.data.gov.uk/id/local-authority/00FC),Childrens Services,Safeguard & Early Help,Head Of Child Resource & Reg,Direct Employee Expenses,Agency Staff,EA105,16/09/2021,690386,1298,REVENUE,ATTENTI CONSULTING,146503
North East Lincolnshire Council,http://statistics.data.gov.uk/id/local-authority/00FC),Childrens Services,Safeguard & Early Help,Head Of Child Resource & Reg,Direct Employee Expenses,Agency Staff,EA105,23/09/2021,691307,3245,REVENUE,ATTENTI CONSULTING,146503
North East Lincolnshire Council,http://statistics.data.gov.uk/id/local-authority/00FC),Childrens Services,Safeguard & Early Help,Head Of Child Resource & Reg,Direct Employee Expenses,Agency Staff,EA105,30/09/2021,692359,3245,REVENUE,ATTENTI CONSULTING,146503
North East Lincolnshire Council,http://statistics.data.gov.uk/id/local-authority/00FC),Childrens Services,Safeguard & Early Help,Head Of Child Resource & Reg,Direct Employee Expenses,Agency Staff,EA105,07/09/2021,688613,1637.25,REVENUE,ATTENTI CONSULTING,146503
North East Lincolnshire Council,http://statistics.data.gov.uk/id/local-authority/00FC),Childrens Services,Safeguard & Early Help,Head Of Child Resource & Reg,Direct Employee Expenses,Agency Staff,EA105,07/09/2021,688618,259.65,REVENUE,ATTENTI CONSULTING,146503
North East Lincolnshire Council,http://statistics.data.gov.uk/id/local-authority/00FC),Childrens Services,Safeguard & Early Help,Head Of Child Resource & Reg,Direct Employee Expenses,Agency Staff,EA105,07/09/2021,688619,398.32,REVENUE,ATTENTI CONSULTING,146503
North East Lincolnshire Council,http://statistics.data.gov.uk/id/local-authority/00FC),Childrens Services,Safeguard & Early Help,Head Of Child Resource & Reg,Private Contractors,Third Party Prov - Private,PH101,07/09/2021,688527,3803.39,REVENUE,FOSTER CARE ASSOCIATES LIMITED,101455
North East Lincolnshire Council,http://statistics.data.gov.uk/id/local-authority/00FC),Childrens Services,Safeguard & Early Help,Head Of Child Resource & Reg,Private Contractors,Third Party Prov - Private,PH101,28/09/2021,691765,3680.7,REVENUE,FOSTER CARE ASSOCIATES LIMITED,101455
North East Lincolnshire Council,http://statistics.data.gov.uk/id/local-authority/00FC),Childrens Services,Safeguard & Early Help,Head Of Child Resource & Reg,Private Contractors,Third Party Prov - Private,PH101,07/09/2021,688535,3839.66,REVENUE,FOSTER CARE ASSOCIATES LIMITED,101455
North East Lincolnshire Council,http://statistics.data.gov.uk/id/local-authority/00FC),Childrens Services,Safeguard & Early Help,Head Of Child Resource & Reg,Private Contractors,Third Party Prov - Private,PH101,28/09/2021,691785,3715.8,REVENUE,FOSTER CARE ASSOCIATES LIMITED,101455
North East Lincolnshire Council,http://statistics.data.gov.uk/id/local-authority/00FC),Childrens Services,Safeguard & Early Help,Head Of Child Resource & Reg,Private Contractors,Third Party Prov - Private,PH101,07/09/2021,688539,3839.66,REVENUE,FOSTER CARE ASSOCIATES LIMITED,101455
North East Lincolnshire Council,http://statistics.data.gov.uk/id/local-authority/00FC),Childrens Services,Safeguard & Early Help,Head Of Child Resource & Reg,Private Contractors,Third Party Prov - Private,PH101,28/09/2021,691778,3715.8,REVENUE,FOSTER CARE ASSOCIATES LIMITED,101455
